Workbook

Sheet Contingent Bill
B1: =TODAY() -> 2020-06-23 | D1: MAHARSHI DAYANAND UNIVERSITY ROHTAK | S1: Vendor account | T1: Name | U1: Method of payment | V1: Pan number | W1: Bank account no. | X1: IFSC code | Y1: Bank name | Z1: GST number | AB1: Sl. No. | AC1: M. Code | AD1: S. Code | AE1: Budget Head | AF1: Budget Head Name | AG1: DEPARTMENT/Branch | AH1: Departments/Branch as per Budget 2019- 20
B2: =TIME(HOUR(NOW()),MINUTE(NOW()),SECOND(NOW())) -> 13:40:52 | D2: (A State University established under Haryana Act No. XXV of 1975) 'A+' Grade University Accredited by NAAC | P2: 786 | Q2: 778 | R2: 787 | S2: VEN000001 | T2: Payment in favour of NARENDER | U2: CHQ | AB2: 1 | AC2: 1 | AD2: 200690 | AE2: 1/200690 | AF2: Salary | AG2: VICE CHANCELLOR'S OFFICE | AH2: ACADEMIC BRANCH
A3: select, if exp. is to be incurred out of Bud. Head of Acc. Branch | D3: =IFERROR(INDEX(z!D46:D240,z!C46),INDEX(y!A2:A196,y!B2)) -> Internal Receipts Development Fee | S3: VEN000002 | T3: Payment in favour of SOM DUTT | U3: CHQ | AB3: 2 | AC3: 1 | AD3: 400400 | AE3: 1/400400 | AF3: CONTRIBUTION TO PF & GRATUITY | AG3: VICE CHANCELLOR'S OFFICE | AH3: ADMINISTRATIVE STAFF COLLEGE
D4: ="Detail of the bill of Contingent Charge for the Month of : "&INDEX(month!B2:B13,month!C2)&", "&INDEX(month!D2:D13,month!E2) -> Detail of the bill of Contingent Charge for the Month of : September, 2019 | S4: VEN000003 | T4: Payment in favour of HAYANA STATE CONSUMER REDVESSER COMMISSION, PANCHKULA | U4: CHQ | AB4: 3 | AC4: 1 | AD4: 401936 | AE4: 1/401936 | AF4: Contingencies incl. Telephone/Stationery etc. | AG4: VICE CHANCELLOR'S OFFICE | AH4: ALUMINI CENTRE
A5: Department/ Branch | D5: Sl. No. of sub-vou. | E5: Head of Charge(s) | F5: Description of charges and authority for special sanction, if any | N5: Amount (`) | S5: VEN000004 | T5: Payment in favour of EPF A/c No- 112175 | U5: CHQ | AB5: 4 | AC5: 1 | AD5: 401940 | AE5: 1/401940 | AF5: V.C. Discretionary Fund | AG5: VICE CHANCELLOR'S OFFICE | AH5: ARCHITECT CELL
A6: Budget Head | S6: VEN000005 | T6: Payment in favour of Emp. Pension Fund A/c No-113076 | U6: CHQ | AB6: 5 | AC6: 10 | AD6: 200690 | AE6: 10/200690 | AF6: Salary | AG6: CONTROLLER OF EXAMINATION's OFFICE | AH6: BOYS HOSTEL NO. IX
A7: Month & Year | E7: =INDEX(z!F46:F88,z!E46) -> 546/300158 - Development Fee- INTERNAL RECEIPTS | F7: Vendor ID | G7: =INDEX($S$2:$S$2501,$R$2) -> VEN000822 | H7: Bill No. | I7: =IF($B$14="","pls. see below",$B$14) -> 1 | K7: =IF($B$15="","Dt. : pls. see below","Dt. : "&TEXT($B$15,"dd-mmm-yyyy")) -> Dt. : pls. see below | M7: Amount (`) | S7: VEN000006 | T7: Payment in favour of Defined Cont. pension Fund | U7: CHQ | AB7: 6 | AC7: 10 | AD7: 400400 | AE7: 10/400400 | AF7: CONTRIBUTION TO PF & GRATUITY | AG7: CONTROLLER OF EXAMINATION's OFFICE | AH7: BOYS HOSTEL NO. VIII
F8: =" "&VLOOKUP(INDEX($S$2:$S$2501,$R$2),$S$2:$T$2501,2,0) -> Payment in favour of M/S TFS CORPORATE SOLUTIONS LIMITED | M8: =$N$123-ROUND(SUM($M$119:$M$122),0) -> 96133 | S8: VEN000007 | T8: Payment in favour of Manager, LIC of India, Rohtak | U8: CHQ | AB8: 7 | AC8: 10 | AD8: 401620 | AE8: 10/401620 | AF8: Material & Supply(printing of question papers and other Exam | AG8: CONTROLLER OF EXAMINATION's OFFICE | AH8: BOYS HOSTEL NO. X
F9: =" "&IF($Q$15=1,$P$23,IF($Q$15=2,$P$20,IF($Q$15=3,$P$21,IF($Q$15=4,$P$22)))) -> Cheque in f/o Manager, SBI, MDUR, 200920 (Income TDS on T. V. i.e. 2% of 93333.33) | M9: =IF($Q$15=1,0,IF($Q$15=2, ROUND($B$16*0.01,0),IF($Q$15=3,ROUND($B$16*0.02,0),IF($Q$15=4,ROUND($B$16*0.1,0))))) -> 1867 | P9: Haryana (GST No. begins with 06…...) | Q9: 3 | S9: VEN000010 | T9: Payment in favour of E.B.F A/c No- C&I 112685 | U9: CHQ | AB9: 8 | AC9: 10 | AD9: 401936 | AE9: 10/401936 | AF9: Contingencies incl. Telephone/Stationery etc. | AG9: CONTROLLER OF EXAMINATION's OFFICE | AH9: BOYS HOSTEL NO-I
F10: =" "&IF($Q$9=2,$P$12,$P$12) -> IGST TDS Payable (on T. V. i.e. 2% of 93333.33), 200991 | M10: =IF($Q$9=2,ROUND($B$16*0.02,2),0) -> 0 | P10: Outside Haryana (GST No. except 06) | S10: VEN000011 | T10: Payment in favour of Deirector Pt. B.D.S.P.G.I.M.S, Rohtak | U10: CHQ | AB10: 9 | AC10: 100 | AD10: 401936 | AE10: 100/401936 | AF10: Contingencies incl. Telephone/Stationery etc. | AG10: CHIEF EDITOR MDU RESEARCH JOURNAL (ARTS) | AH10: BOYS HOSTEL NO-II
F11: =" "&IF($Q$9=1,$P$13,$P$13) -> SGST TDS Payable (on T. V. i.e. 1% of 93333.33), 200992 | M11: =IF($Q$9=1,ROUND($B$16*0.01,2),0) -> 0 | P11: GST TDS not applicable | S11: VEN000012 | T11: Payment in favour of Manager, SBI, MDU, Rohtak | U11: CHQ | AB11: 10 | AC11: 101 | AD11: 200690 | AE11: 101/200690 | AF11: Salary | AG11: CHAUDHRY RANBIR SINGH INSTT.OF SOCIAL AND ECONOMIC CHANGE | AH11: BOYS HOSTEL NO-IV
F12: =" "&IF($Q$9=1,$P$14,$P$14) -> CGST TDS Payable (on T. V. i.e. 1% of 93333.33), 200993 | M12: =IF($Q$9=1,ROUND($B$16*0.01,2),0) -> 0 | P12: ="IGST TDS Payable (on T. V. i.e. 2% of "&$B$16&"), 200991" -> IGST TDS Payable (on T. V. i.e. 2% of 93333.33), 200991 | S12: VEN000015 | T12: Payment in favour of president NTEA MDU ROHTAK | U12: CHQ | AB12: 11 | AC12: 101 | AD12: 400400 | AE12: 101/400400 | AF12: CONTRIBUTION TO PF & GRATUITY | AG12: CHAUDHRY RANBIR SINGH INSTT.OF SOCIAL AND ECONOMIC CHANGE | AH12: BOYS HOSTEL NO-V
A13: Vendor ID | F13: Rounding off, 200994 | M13: =N13-SUM(M8:M12) -> 0 | N13: =ROUND($B$17,0) -> 98000 | P13: ="SGST TDS Payable (on T. V. i.e. 1% of "&$B$16&"), 200992" -> SGST TDS Payable (on T. V. i.e. 1% of 93333.33), 200992 | S13: VEN000016 | T13: Payment in favour of PRESIDENT MDU TA ROHTAK | U13: CHQ | AB13: 12 | AC13: 101 | AD13: 401936 | AE13: 101/401936 | AF13: Contingencies incl. Telephone/Stationery etc. | AG13: CHAUDHRY RANBIR SINGH INSTT.OF SOCIAL AND ECONOMIC CHANGE | AH13: BOYS HOSTEL NO-VI
A14: Bill No. | B14: 1 | P14: ="CGST TDS Payable (on T. V. i.e. 1% of "&$B$16&"), 200993" -> CGST TDS Payable (on T. V. i.e. 1% of 93333.33), 200993 | S14: VEN000017 | T14: Payment in favour of PRSIDENT TEACHER CLUB, MDU ROHTAK | U14: CHQ | AB14: 13 | AC14: 102 | AD14: 100081 | AE14: 102/100081 | AF14: Machinery and Equipments (NR) | AG14: INTERNAL QUALITY ASSURANCE CELL (IQAC) | AH14: BOYS HOSTEL NO-VII
A15: Bill Dated | F15: =IF($B$14<>"","","Bill Numbers : "&IF($I$7<>"pls. see below",$B$14,'Bill Details'!$B$3&" Dt. "&TEXT('Bill Details'!$C$3,"DD/MM/YY")&", "&'Bill Details'!$B$4&" Dt. "&TEXT('Bill Details'!$C$4,"DD/MM/YY")&", "&'Bill Details'!$B$5&" Dt. "&TEXT('Bill Details'!$C$5,"DD/MM/YY"))) ->  | P15: Income TDS not applicable | Q15: 3 | S15: VEN000018 | T15: Payment in favour of CHIEF JUDICIAL MAGISTRATE, AMBALA | U15: CHQ | AB15: 14 | AC15: 102 | AD15: 100105 | AE15: 102/100105 | AF15: Hardware (Computer, Printers, Scaners, CD Writers, etc) | AG15: INTERNAL QUALITY ASSURANCE CELL (IQAC) | AH15: BOYS HOSTELNO-III
A16: Taxable Value | B16: 93333.33 | F16: =" "&IF($B$14<>"","",'Bill Details'!$B$6&" Dt. "&TEXT('Bill Details'!$C$6,"DD/MM/YY")&", "&'Bill Details'!$B$7&" Dt. "&TEXT('Bill Details'!$C$7,"DD/MM/YY")&", "&'Bill Details'!$B$8&" Dt. "&TEXT('Bill Details'!$C$8,"DD/MM/YY")) ->  | P16: 0.01 | S16: VEN000019 | T16: Payment in favour of Wheat Loan Advance | U16: CHQ | AB16: 15 | AC16: 102 | AD16: 100106 | AE16: 102/100106 | AF16: Software | AG16: INTERNAL QUALITY ASSURANCE CELL (IQAC) | AH16: CAREER COUNSELLING & PLACEMENT CELL
A17: Invoice Value | B17: 98000 | F17: =IF($B$14<>"","","Total Taxable Amount of Above Bill Number(s) : "&TEXT('Bill Details'!$D$9,"#,##,##,##,##,###.00")) ->  | P17: 0.02 | S17: VEN000022 | T17: Payment in favour of Salary Payable A/c | U17: CHQ | AB17: 16 | AC17: 102 | AD17: 400117 | AE17: 102/400117 | AF17: Contractual Special Services | AG17: INTERNAL QUALITY ASSURANCE CELL (IQAC) | AH17: CELL TO CHECK THE MENACE OF SEXUAL HARRASSMENT AND VIOLENT AGT.WOMEN
A18: GST TDS | F18: =IF('Bill Details'!E9=0,IF($B$14<>"","","Total GST Amount of Above Bill Number(s) : "&TEXT('Bill Details'!G9,"#,##,##,##,##,###.00")),IF($B$14<>"","","Total GST Amount of Above Bill Number(s) : "&TEXT('Bill Details'!E9,"#,##,##,##,##,###.00"))) ->  | P18: 0.1 | S18: VEN000027 | T18: Payment in favour of Kavita Saini | U18: CHQ | AB18: 17 | AC18: 102 | AD18: 401936 | AE18: 102/401936 | AF18: Contingencies incl. Telephone/Stationery etc. | AG18: INTERNAL QUALITY ASSURANCE CELL (IQAC) | AH18: CENTRAL INSTRUMENTAL LABORATORY
A19: Income TDS | F19: =IF($B$14<>"","","Total Bill Amount of Above Bill Number(s) : "&TEXT('Bill Details'!$H$9,"#,##,##,##,##,###.00")) ->  | S19: VEN000029 | T19: Payment in favour of M/S METAL & WOOD CRAFTS | U19: CHQ | AB19: 18 | AC19: 102 | AD19: 401946 | AE19: 102/401946 | AF19: University Scholarships | AG19: INTERNAL QUALITY ASSURANCE CELL (IQAC) | AH19: CENTRE FOR BIOINFORMATICS
P20: ="Cheque in f/o Manager, SBI, MDUR, 200920 (Income TDS on T. V. i.e. 1% of "&$B$16&")" -> Cheque in f/o Manager, SBI, MDUR, 200920 (Income TDS on T. V. i.e. 1% of 93333.33) | S20: VEN000030 | T20: Payment in favour of M. S. Hooda | U20: CHQ | AB20: 19 | AC20: 102 | AD20: 402001 | AE20: 102/402001 | AF20: Honorarium | AG20: INTERNAL QUALITY ASSURANCE CELL (IQAC) | AH20: CENTRE FOR BIOTECHNOLOGY
A21: Vendor ID | P21: ="Cheque in f/o Manager, SBI, MDUR, 200920 (Income TDS on T. V. i.e. 2% of "&$B$16&")" -> Cheque in f/o Manager, SBI, MDUR, 200920 (Income TDS on T. V. i.e. 2% of 93333.33) | S21: VEN000033 | T21: Payment in favour of ROHTASH SHARMA | U21: CHQ | AB21: 20 | AC21: 103 | AD21: 401936 | AE21: 103/401936 | AF21: Contingencies incl. Telephone/Stationery etc. | AG21: PUBLIC INFORMATION OFFICE (PIO) | AH21: CENTRE FOR HARYANA STUDIES
A22: Bill No. | B22: 882 | P22: ="Cheque in f/o Manager, SBI, MDUR, 200920 (Income TDS on T. V. i.e. 10% of "&$B$16&")" -> Cheque in f/o Manager, SBI, MDUR, 200920 (Income TDS on T. V. i.e. 10% of 93333.33) | S22: VEN000034 | T22: Payment in favour of Nidhi Enterprises | U22: CHQ | AB22: 21 | AC22: 104 | AD22: 100082 | AE22: 104/100082 | AF22: Books/ Journals/ other knowledge resources (NR) | AG22: CENTRE FOR HARYANA STUDIES | AH22: CENTRE FOR MEDICAL BIOTECHNOLOGY
A23: Bill Dated | B23: 2019-08-16 | P23: Income TDS not applicable | S23: VEN000035 | T23: Payment in favour of R.S. Traders | U23: CHQ | AB23: 22 | AC23: 104 | AD23: 401936 | AE23: 104/401936 | AF23: Contingencies incl. Telephone/Stationery etc. | AG23: CENTRE FOR HARYANA STUDIES | AH23: CHAUDHRY RANBIR SINGH CHAIR
A24: Taxable Value | B24: 4368 | S24: VEN000036 | T24: Payment in favour of Ashu Company | U24: CHQ | AB24: 23 | AC24: 104 | AD24: 401944 | AE24: 104/401944 | AF24: Conferences / Symposia/ Workshop | AG24: CENTRE FOR HARYANA STUDIES | AH24: CHAUDHRY RANBIR SINGH INSTT.OF SOCIAL AND ECONOMIC CHANGE
A25: Invoice Value | B25: 4892 | S25: VEN000038 | T25: Payment in favour of NAVEEN SOFTWARE TECHNOLOGY PVT LTD | U25: CHQ | AB25: 24 | AC25: 104 | AD25: 402001 | AE25: 104/402001 | AF25: Honorarium | AG25: CENTRE FOR HARYANA STUDIES | AH25: CHIEF EDITOR MDU RESEARCH JOURNAL (ARTS)
A26: GST TDS | P26: Haryana (GST No. begins with 06…...) | Q26: 1 | S26: VEN000040 | T26: Payment in favour of M/S SHRI SAI MARBLE ART | U26: CHQ | AB26: 25 | AC26: 104 | AD26: 404873 | AE26: 104/404873 | AF26: Subsidies given to Institutions/ Organisations | AG26: CENTRE FOR HARYANA STUDIES | AH26: COLLEGES BRANCH
A27: Income TDS | P27: Outside Haryana (GST No. except 06) | S27: VEN000043 | T27: Payment in favour of SHREE BALA JI ELECTRICALS | U27: CHQ | AB27: 26 | AC27: 105 | AD27: 401936 | AE27: 105/401936 | AF27: Contingencies incl. Telephone/Stationery etc. | AG27: CELL TO CHECK THE MENACE OF SEXUAL HARRASSMENT AND VIOLENT AGT.WOMEN | AH27: COMPUTER CENTRE
P28: GST TDS not applicable | S28: VEN000045 | T28: Payment in favour of M/S STANDARD ELECTRIC CO. | U28: CHQ | AB28: 27 | AC28: 105 | AD28: 401944 | AE28: 105/401944 | AF28: Conferences / Symposia/ Workshop | AG28: CELL TO CHECK THE MENACE OF SEXUAL HARRASSMENT AND VIOLENT AGT.WOMEN | AH28: CONDUCT BRANCH
A29: Vendor ID | P29: ="IGST TDS Payable (on T. V. i.e. 2% of "&$B$24&"), 200991" -> IGST TDS Payable (on T. V. i.e. 2% of 4368), 200991 | S29: VEN000047 | T29: Payment in favour of BANSAL FANCY LIGHT & ELECTRIC GOODS | U29: CHQ | AB29: 28 | AC29: 106 | AD29: 402001 | AE29: 106/402001 | AF29: Honorarium | AG29: CORPORATE RESOURCE CENTRE | AH29: CONTROLLER OF EXAMINATION's OFFICE
A30: Bill No. | B30: 117 | P30: ="SGST TDS Payable (on T. V. i.e. 1% of "&$B$24&"), 200992" -> SGST TDS Payable (on T. V. i.e. 1% of 4368), 200992 | S30: VEN000048 | T30: Payment in favour of M/S DURGA ELECTRICALS | U30: Electronic Payment | V30: AIMPJ2044D | W30: 30250289955 | X30: SBIN0004734 | Y30: State Bank of India | Z30: 06AIMPJ2044D1ZN | AB30: 29 | AC30: 107 | AD30: 402001 | AE30: 107/402001 | AF30: Honorarium | AG30: UNIVERSITY INDUSTRY LIAISION CELL | AH30: CORPORATE RESOURCE CENTRE
A31: Bill Dated | B31: 2019-08-23 | F31: =IF($B$22<>"","","Bill Numbers : "&IF($I$23<>"pls. see below",$B$22,'Bill Details'!$B$13&" Dt. "&TEXT('Bill Details'!$C$13,"DD/MM/YY")&", "&'Bill Details'!$B$14&" Dt. "&TEXT('Bill Details'!$C$14,"DD/MM/YY")&", "&'Bill Details'!$B$15&" Dt. "&TEXT('Bill Details'!$C$15,"DD/MM/YY"))) ->  | P31: ="CGST TDS Payable (on T. V. i.e. 1% of "&$B$24&"), 200993" -> CGST TDS Payable (on T. V. i.e. 1% of 4368), 200993 | S31: VEN000049 | T31: Payment in favour of M/S DEEP ELECTRIC WORKS | U31: CHQ | AB31: 30 | AC31: 108 | AD31: 401936 | AE31: 108/401936 | AF31: Contingencies incl. Telephone/Stationery etc. | AG31: ADMINISTRATIVE STAFF COLLEGE | AH31: D.D.E---EXAMINATION WING (R III)
A32: Taxable Value | B32: 4016.25 | F32: =" "&IF($B$22<>"","",'Bill Details'!$B$16&" Dt. "&TEXT('Bill Details'!$C$16,"DD/MM/YY")&", "&'Bill Details'!$B$17&" Dt. "&TEXT('Bill Details'!$C$17,"DD/MM/YY")&", "&'Bill Details'!$B$18&" Dt. "&TEXT('Bill Details'!$C$18,"DD/MM/YY")) ->  | P32: Income TDS not applicable | Q32: 1 | S32: VEN000050 | T32: Payment in favour of MANAGER PRESS, MDU, ROHTAK | U32: CHQ | AB32: 31 | AC32: 108 | AD32: 402000 | AE32: 108/402000 | AF32: Ext. Lectures/In House Seminars Etc. | AG32: ADMINISTRATIVE STAFF COLLEGE | AH32: D.D.E---EXAMINATION WING (R IV)
A33: Invoice Value | B33: 4739 | F33: =IF($B$22<>"","","Total Taxable Amount of Above Bill Number(s) : "&TEXT('Bill Details'!$D$19,"#,##,##,##,##,###.00")) ->  | P33: 0.01 | S33: VEN000051 | T33: Payment in favour of CITY PALACE | U33: CHQ | AB33: 32 | AC33: 108 | AD33: 402001 | AE33: 108/402001 | AF33: Honorarium | AG33: ADMINISTRATIVE STAFF COLLEGE | AH33: DEAN STUDENT'S WELFARE
A34: GST TDS | F34: =IF('Bill Details'!E19=0,IF($B$22<>"","","Total GST Amount of Above Bill Number(s) : "&TEXT('Bill Details'!G19,"#,##,##,##,##,###.00")),IF($B$22<>"","","Total GST Amount of Above Bill Number(s) : "&TEXT('Bill Details'!E19,"#,##,##,##,##,###.00"))) ->  | P34: 0.02 | S34: VEN000052 | T34: Payment in favour of M/S ARORA TELECOMMUNICATION PVT. LTD. | U34: CHQ | AB34: 33 | AC34: 109 | AD34: 200701 | AE34: 109/200701 | AF34: DA/Arrear of Pay Scale/ACP(NT) | AG34: LUMPSUM PROVISION ON ACCOUNT OF DA/ ARREARS OF REVISION OF PAY SCALE/ ACP ETC. | AH34: DEAN, ACADEMIC AFFAIR'S OFFICE
A35: Income TDS | F35: =IF($B$22<>"","","Total Bill Amount of Above Bill Number(s) : "&TEXT('Bill Details'!H19,"#,##,##,##,##,###.00")) ->  | P35: 0.1 | S35: VEN000053 | T35: Payment in favour of SAPRA TRADERS | U35: CHQ | AB35: 34 | AC35: 109 | AD35: 200702 | AE35: 109/200702 | AF35: DA/Arrear of Pay Scale/ACP(T) | AG35: LUMPSUM PROVISION ON ACCOUNT OF DA/ ARREARS OF REVISION OF PAY SCALE/ ACP ETC. | AH35: DEBT,DEPOSITS, REMITTANCES
S36: VEN000054 | T36: Payment in favour of M/S ELECTRONIC PLAZA | U36: Electronic Payment | V36: AABFE4441J | W36: 406002100103311 | X36: PUNB0040600 | Y36: Punjab National Bank | Z36: 06AABFE4441J1ZN | AB36: 35 | AC36: 11 | AD36: 200690 | AE36: 11/200690 | AF36: Salary | AG36: RESULT-I BRANCH | AH36: DEPARTMENT OF BIOCHEMISTRY
A37: Budget Grant | B37: 500000 | P37: ="Cheque in f/o Manager, SBI, MDUR, 200920 (Income TDS on T. V. i.e. 1% of "&$B$24&")" -> Cheque in f/o Manager, SBI, MDUR, 200920 (Income TDS on T. V. i.e. 1% of 4368) | S37: VEN000055 | T37: Payment in favour of SOMVIR SINGH | U37: CHQ | AB37: 36 | AC37: 11 | AD37: 400113 | AE37: 11/400113 | AF37: Remuneration Expenses(Teaching, Non-teaching, Examiners | AG37: RESULT-I BRANCH | AH37: DEPARTMENT OF BOTANY
A38: Already Incurred | B38: 300000 | P38: ="Cheque in f/o Manager, SBI, MDUR, 200920 (Income TDS on T. V. i.e. 2% of "&$B$24&")" -> Cheque in f/o Manager, SBI, MDUR, 200920 (Income TDS on T. V. i.e. 2% of 4368) | S38: VEN000056 | T38: Payment in favour of CONTROLLER OF EXAMINATIONS, MDU, ROHTAK | U38: CHQ | AB38: 37 | AC38: 11 | AD38: 400400 | AE38: 11/400400 | AF38: CONTRIBUTION TO PF & GRATUITY | AG38: RESULT-I BRANCH | AH38: DEPARTMENT OF CHEMISTRY
A39: Bal. Available | B39: =B37-B38 -> 200000 | P39: ="Cheque in f/o Manager, SBI, MDUR, 200920 (Income TDS on T. V. i.e. 10% of "&$B$24&")" -> Cheque in f/o Manager, SBI, MDUR, 200920 (Income TDS on T. V. i.e. 10% of 4368) | S39: VEN000057 | T39: Payment in favour of BENGAL CROCKERY HOUSE | U39: CHQ | AB39: 38 | AC39: 11 | AD39: 401936 | AE39: 11/401936 | AF39: Contingencies incl. Telephone/Stationery etc. | AG39: RESULT-I BRANCH | AH39: DEPARTMENT OF COMMERCE
A40: Bud. Reg. P. No. | B40: 2 | P40: Income TDS not applicable | S40: VEN000058 | T40: Payment in favour of H.T.C.L. (TILYAR FILLING STATION), ROHTAK | U40: CHQ | AB40: 39 | AC40: 11 | AD40: 402022 | AE40: 11/402022 | AF40: Outsourcing Spl. services(Computerization (IT)) | AG40: RESULT-I BRANCH | AH40: DEPARTMENT OF COMPUTER SCIENCE & APPLICATIONS
A41: Stock Reg. P. No. | B41: 3 | S41: VEN000059 | T41: Payment in favour of M/S GANGA AGENCIES | U41: Electronic Payment | V41: AAWPK4647B | W41: 8435011000343 | X41: ORBC0100843 | Y41: Oriental Bank of Com | Z41: 06AAWPK4647B1ZK | AB41: 40 | AC41: 112 | AD41: 400113 | AE41: 112/400113 | AF41: Remuneration Expenses(Teaching, Non-teaching, Examiners | AG41: GENERAL BRANCH---SANITATION BRANCH | AH41: DEPARTMENT OF DEFENCE & STRATEGIC STUDIES
A42: Property Register Page No. (for Non -Con. Item(s) only) | B42: 5 | S42: VEN000060 | T42: Payment in favour of M/S GANESH ELECTRONICS | U42: CHQ | AB42: 41 | AC42: 112 | AD42: 401936 | AE42: 112/401936 | AF42: Contingencies incl. Telephone/Stationery etc. | AG42: GENERAL BRANCH---SANITATION BRANCH | AH42: DEPARTMENT OF ECONOMICS
P43: Haryana (GST No. begins with 06…...) | Q43: 2 | S43: VEN000062 | T43: Payment in favour of ASSISTANT REGISTRAR, RE-EVALUATION BRANCH,MDU, ROHTAK | U43: CHQ | AB43: 42 | AC43: 113 | AD43: 100135 | AE43: 113/100135 | AF43: Furniture & Fixtures, Utensils (NR) | AG43: GENERAL BRANCH---UNIVERSITY CANTEEN | AH43: DEPARTMENT OF EDUCATION
P44: Outside Haryana (GST No. except 06) | S44: VEN000063 | T44: Payment in favour of M/S SAGAR SERVICES | U44: CHQ | AB44: 43 | AC44: 113 | AD44: 400113 | AE44: 113/400113 | AF44: Remuneration Expenses(Teaching, Non-teaching, Examiners | AG44: GENERAL BRANCH---UNIVERSITY CANTEEN | AH44: DEPARTMENT OF ENGLISH & FOREIGN LANGUAGES
P45: GST TDS not applicable | S45: VEN000064 | T45: Payment in favour of S B GUPTA CONTRACTOR | U45: Electronic Payment | V45: AGNPG4690H | W45: 308102000003070 | X45: IBKL0000308 | Y45: IDBI Bank | Z45: 06AGNPG4690H1Z6 | AB45: 44 | AC45: 113 | AD45: 401936 | AE45: 113/401936 | AF45: Contingencies incl. Telephone/Stationery etc. | AG45: GENERAL BRANCH---UNIVERSITY CANTEEN | AH45: DEPARTMENT OF ENVIRONMENTAL SCIENCES
P46: ="IGST TDS Payable (on T. V. i.e. 2% of "&$B$32&"), 200991" -> IGST TDS Payable (on T. V. i.e. 2% of 4016.25), 200991 | S46: VEN000065 | T46: Payment in favour of M/S SAHAI EXCLUSIVE CONTRACTS PVT.LTD. | U46: Electronic Payment | V46: AAHCS5823P | W46: 1065448789 | X46: CBIN0280310 | Y46: Central Bank of Indi | Z46: 05AAHCS5823P1ZV | AB46: 45 | AC46: 114 | AD46: 100135 | AE46: 114/100135 | AF46: Furniture & Fixtures, Utensils (NR) | AG46: GENERAL BRANCH---FACULTY HOUSE | AH46: DEPARTMENT OF FOOD TECHNOLOGY
F47: =IF(B30<>"","","Bill Numbers : "&IF(I39<>"pls. see below",B30,'Bill Details'!B23&" Dt. "&TEXT('Bill Details'!C23,"DD/MM/YY")&", "&'Bill Details'!B24&" Dt. "&TEXT('Bill Details'!C24,"DD/MM/YY")&", "&'Bill Details'!B25&" Dt. "&TEXT('Bill Details'!C25,"DD/MM/YY"))) ->  | P47: ="SGST TDS Payable (on T. V. i.e. 1% of "&$B$32&"), 200992" -> SGST TDS Payable (on T. V. i.e. 1% of 4016.25), 200992 | S47: VEN000066 | T47: Payment in favour of JAI PRAKASH | U47: CHQ | AB47: 46 | AC47: 114 | AD47: 401936 | AE47: 114/401936 | AF47: Contingencies incl. Telephone/Stationery etc. | AG47: GENERAL BRANCH---FACULTY HOUSE | AH47: DEPARTMENT OF GENETICS
F48: =" "&IF(B30<>"","",'Bill Details'!B26&" Dt. "&TEXT('Bill Details'!C26,"DD/MM/YY")&", "&'Bill Details'!B27&" Dt. "&TEXT('Bill Details'!C27,"DD/MM/YY")&", "&'Bill Details'!B28&" Dt. "&TEXT('Bill Details'!C28,"DD/MM/YY")) ->  | P48: ="CGST TDS Payable (on T. V. i.e. 1% of "&$B$32&"), 200993" -> CGST TDS Payable (on T. V. i.e. 1% of 4016.25), 200993 | S48: VEN000067 | T48: Payment in favour of M/S DHINGRA BOOK BINDING HOUSE | U48: CHQ | AB48: 47 | AC48: 115 | AD48: 400113 | AE48: 115/400113 | AF48: Remuneration Expenses(Teaching, Non-teaching, Examiners | AG48: D.D.E---EXAMINATION WING (R III) | AH48: DEPARTMENT OF GEOGRAPHY
F49: =IF($B$30<>"","","Total Taxable Amount of Above Bill Number(s) : "&TEXT('Bill Details'!$D$29,"#,##,##,##,##,###.00")) ->  | P49: Income TDS not applicable | Q49: 1 | S49: VEN000068 | T49: Payment in favour of M/S TFS CORPORATE SOLUTIONS PVT. LTD. | U49: 0 | Z49: 07AACCT7069B1ZE | AB49: 48 | AC49: 115 | AD49: 401936 | AE49: 115/401936 | AF49: Contingencies incl. Telephone/Stationery etc. | AG49: D.D.E---EXAMINATION WING (R III) | AH49: DEPARTMENT OF HINDI
F50: =IF('Bill Details'!E29=0,IF($B$30<>"","","Total GST Amount of Above Bill Number(s) : "&TEXT('Bill Details'!G29,"#,##,##,##,##,###.00")),IF($B$30<>"","","Total GST Amount of Above Bill Number(s) : "&TEXT('Bill Details'!E29,"#,##,##,##,##,###.00"))) ->  | P50: 0.01 | S50: VEN000069 | T50: Payment in favour of ROHTASH | U50: CHQ | AB50: 49 | AC50: 115 | AD50: 402022 | AE50: 115/402022 | AF50: Outsourcing Spl. services(Computerization (IT)) | AG50: D.D.E---EXAMINATION WING (R III) | AH50: DEPARTMENT OF HISTORY
F51: =IF($B$30<>"","","Total Bill Amount of Above Bill Number(s) : "&TEXT('Bill Details'!H29,"#,##,##,##,##,###.00")) ->  | P51: 0.02 | S51: VEN000070 | T51: Payment in favour of JAIN STEEL ENTERPRISES | U51: CHQ | AB51: 50 | AC51: 116 | AD51: 400113 | AE51: 116/400113 | AF51: Remuneration Expenses(Teaching, Non-teaching, Examiners | AG51: D.D.E---EXAMINATION WING (R IV) | AH51: DEPARTMENT OF JOURNALISM & MASS COMMUNICATION
P52: 0.1 | S52: VEN000071 | T52: Payment in favour of ASHOKA ELECTRIC STORE | U52: CHQ | AB52: 51 | AC52: 116 | AD52: 401936 | AE52: 116/401936 | AF52: Contingencies incl. Telephone/Stationery etc. | AG52: D.D.E---EXAMINATION WING (R IV) | AH52: DEPARTMENT OF LAW
S53: VEN000072 | T53: Payment in favour of M/S SONITECK COMPUTER | U53: CHQ | AB53: 52 | AC53: 116 | AD53: 402022 | AE53: 116/402022 | AF53: Outsourcing Spl. services(Computerization (IT)) | AG53: D.D.E---EXAMINATION WING (R IV) | AH53: DEPARTMENT OF LIBRARY AND INFORMATION SCIENCE
F54: Carried Forward …… | N54: =SUM(N13,N29,N45) -> 98000 | P54: ="Cheque in f/o Manager, SBI, MDUR, 200920 (Income TDS on T. V. i.e. 1% of "&$B$32&")" -> Cheque in f/o Manager, SBI, MDUR, 200920 (Income TDS on T. V. i.e. 1% of 4016.25) | S54: VEN000073 | T54: Payment in favour of NATIONAL BUILDING CONSTRUCTION CORPORATION LTD | U54: CHQ | AB54: 53 | AC54: 117 | AD54: 400113 | AE54: 117/400113 | AF54: Remuneration Expenses(Teaching, Non-teaching, Examiners | AG54: BOYS HOSTEL NO-VII | AH54: DEPARTMENT OF MATHEMATICS
P55: ="Cheque in f/o Manager, SBI, MDUR, 200920 (Income TDS on T. V. i.e. 2% of "&$B$32&")" -> Cheque in f/o Manager, SBI, MDUR, 200920 (Income TDS on T. V. i.e. 2% of 4016.25) | S55: VEN000074 | T55: Payment in favour of DR. JAGWANTI DESWAL | U55: CHQ | AB55: 54 | AC55: 117 | AD55: 401936 | AE55: 117/401936 | AF55: Contingencies incl. Telephone/Stationery etc. | AG55: BOYS HOSTEL NO-VII | AH55: DEPARTMENT OF MICROBIOLOGY
B56: Developed by Rohi | P56: ="Cheque in f/o Manager, SBI, MDUR, 200920 (Income TDS on T. V. i.e. 10% of "&$B$32&")" -> Cheque in f/o Manager, SBI, MDUR, 200920 (Income TDS on T. V. i.e. 10% of 4016.25) | S56: VEN000075 | T56: Payment in favour of VIKAS HOODA | U56: CHQ | AB56: 55 | AC56: 118 | AD56: 100160 | AE56: 118/100160 | AF56: Lab Equipments & Apparatus (NR) | AG56: DEPT OF PHARMACEUTICAL SCI (CENTRAL ANIMAL HOUSE) | AH56: DEPARTMENT OF MUSIC
P57: Income TDS not applicable | S57: VEN000076 | T57: Payment in favour of N. P. SINGH | U57: CHQ | AB57: 56 | AC57: 118 | AD57: 401936 | AE57: 118/401936 | AF57: Contingencies incl. Telephone/Stationery etc. | AG57: DEPT OF PHARMACEUTICAL SCI (CENTRAL ANIMAL HOUSE) | AH57: DEPARTMENT OF PHARMACEUTICAL SCIENCES
S58: VEN000077 | T58: Payment in favour of M/S MITTAL ELECTRONICS | U58: Electronic Payment | V58: AARPM5237A | W58: 1268155645 | X58: CBIN0280394 | Y58: Central Bank of Indi | Z58: 06AARPM5237A1ZT | AB58: 57 | AC58: 119 | AD58: 401936 | AE58: 119/401936 | AF58: Contingencies incl. Telephone/Stationery etc. | AG58: GIRLS HOSTEL - X | AH58: DEPARTMENT OF PHYSICAL EDUCATION
S59: VEN000078 | T59: Payment in favour of JOON CONSTRUCTION CO. | U59: CHQ | AB59: 58 | AC59: 12 | AD59: 200690 | AE59: 12/200690 | AF59: Salary | AG59: RESULT-II BRANCH | AH59: DEPARTMENT OF PHYSICS
S60: VEN000079 | T60: Payment in favour of SANJEEV KUMAR | U60: CHQ | AB60: 59 | AC60: 12 | AD60: 400113 | AE60: 12/400113 | AF60: Remuneration Expenses(Teaching, Non-teaching, Examiners | AG60: RESULT-II BRANCH | AH60: DEPARTMENT OF POL. SCIENCE
S61: VEN000080 | T61: Payment in favour of THE B.S. CO-OP. L/C SOCIETY LTD. | U61: CHQ | AB61: 60 | AC61: 12 | AD61: 400400 | AE61: 12/400400 | AF61: CONTRIBUTION TO PF & GRATUITY | AG61: RESULT-II BRANCH | AH61: DEPARTMENT OF PSYCHOLOGY
S62: VEN000081 | T62: Payment in favour of BRANCH MANAGER, SBI, MDU BRANCH, ROHTAK | U62: CHQ | AB62: 61 | AC62: 12 | AD62: 401936 | AE62: 12/401936 | AF62: Contingencies incl. Telephone/Stationery etc. | AG62: RESULT-II BRANCH | AH62: DEPARTMENT OF PUBLIC ADMINISTRATION
D63: Brought Forward | N63: =$N$54 -> 98000 | S63: VEN000082 | T63: Payment in favour of M/S SOMNATH ELECTRIC CONTRACTOR | U63: CHQ | AB63: 62 | AC63: 12 | AD63: 402022 | AE63: 12/402022 | AF63: Outsourcing Spl. services(Computerization (IT)) | AG63: RESULT-II BRANCH | AH63: DEPARTMENT OF SANSKRIT,PALI AND PRAKRIT
D64: Budget Heads : | F64: =$E$7 -> 546/300158 - Development Fee- INTERNAL RECEIPTS | S64: VEN000083 | T64: Payment in favour of GROVER PAINTS | U64: CHQ | AB64: 63 | AC64: 120 | AD64: 400113 | AE64: 120/400113 | AF64: Remuneration Expenses(Teaching, Non-teaching, Examiners | AG64: BOYS HOSTEL NO. VIII | AH64: DEPARTMENT OF SOCIOLOGY
D65: Budget Grant : ` | F65: =IF(B37=0,"",B37) -> 500000 | N65: =$N$54 -> 98000 | S65: VEN000084 | T65: Payment in favour of M/S GULSHAN ART | U65: CHQ | AB65: 64 | AC65: 120 | AD65: 401936 | AE65: 120/401936 | AF65: Contingencies incl. Telephone/Stationery etc. | AG65: BOYS HOSTEL NO. VIII | AH65: DEPARTMENT OF STATISTICS
D66: Expenditure already incurred excluding this bill: ` | I66: =IF(B38=0,"",B38) -> 300000 | S66: VEN000085 | T66: Payment in favour of M/S PERFECT ENGG. WORKS | U66: CHQ | AB66: 65 | AC66: 121 | AD66: 400113 | AE66: 121/400113 | AF66: Remuneration Expenses(Teaching, Non-teaching, Examiners | AG66: BOYS HOSTEL NO. IX | AH66: DEPARTMENT OF VISUAL ARTS
D67: Balance Available: ` | F67: =IF(B39=0,"",B39) -> 200000 | S67: VEN000086 | T67: Payment in favour of SCIENTIFIC EMPORIUM | U67: Electronic Payment | V67: AARPD8492L | W67: 11075311576 | X67: SBIN0000706 | Y67: State Bank of India | Z67: 06AARPD8492L1Z0 | AB67: 66 | AC67: 121 | AD67: 401936 | AE67: 121/401936 | AF67: Contingencies incl. Telephone/Stationery etc. | AG67: BOYS HOSTEL NO. IX | AH67: DEPARTMENT OF ZOOLOGY
D68: Passed for payment : ` | G68: =$N$54 -> 98000 | S68: VEN000087 | T68: Payment in favour of M/S LIBRA INFRA PROJECTS PVT LTD. | U68: CHQ | AB68: 67 | AC68: 122 | AD68: 100160 | AE68: 122/100160 | AF68: Lab Equipments & Apparatus (NR) | AG68: UNIVERSITY INSTITUTE OF PUBLIC HEALTH | AH68: DEPT OF PHARMACEUTICAL SCI (CENTRAL ANIMAL HOUSE)
D69: Amount in words : | F69: =spellnumber(G68) -> Rupees NinetyEight Thousand Only | S69: VEN000088 | T69: Payment in favour of M/S SURYA BUILDERS | U69: CHQ | AB69: 68 | AC69: 122 | AD69: 200690 | AE69: 122/200690 | AF69: Salary | AG69: UNIVERSITY INSTITUTE OF PUBLIC HEALTH | AH69: DIGITAL LEARNING INITIATIVES & MONITORING CELL
S70: VEN000089 | T70: Payment in favour of M/S SHREE KRISHNA TRADERS | U70: CHQ | AB70: 69 | AC70: 122 | AD70: 401760 | AE70: 122/401760 | AF70: Mtc. of Machinery & Equipments | AG70: UNIVERSITY INSTITUTE OF PUBLIC HEALTH | AH70: DIRECTORATE OF DISTANCE EDUCATION
D71: 1. | E71: Also certified that the expenditure charged in the bill could not with due regard to interests of the Maharshi Dayanand University be avoided. | S71: VEN000091 | T71: Payment in favour of M/S HAPPY BOOK DEPOT | U71: Electronic Payment | V71: AADFH5141A | W71: 543873943 | X71: IDIB000R019 | Y71: Indian Bank | AB71: 70 | AC71: 122 | AD71: 401936 | AE71: 122/401936 | AF71: Contingencies incl. Telephone/Stationery etc. | AG71: UNIVERSITY INSTITUTE OF PUBLIC HEALTH | AH71: DR AMBEDKAR CHAIR
D72: 2. | E72: I have satisfied myself that the charges supported by vouchers entered in this bill have been really paid with the exceptions noted below, which exceed the balance of the permanent advance and will be paid of receipt of money drawn on this bill. | S72: VEN000092 | T72: Payment in favour of PHOOL SINGH, CONTRACTOR | U72: CHQ | AB72: 71 | AC72: 122 | AD72: 402004 | AE72: 122/402004 | AF72: Field Works/Research Laboratory/other scheme | AG72: UNIVERSITY INSTITUTE OF PUBLIC HEALTH | AH72: DR. MANGAL SEN CHAIR
S73: VEN000093 | T73: Payment in favour of GIAN SINGH | U73: CHQ | AB73: 72 | AC73: 122 | AD73: 402010 | AE73: 122/402010 | AF73: Chemicals/ Glassware Plasticware | AG73: UNIVERSITY INSTITUTE OF PUBLIC HEALTH | AH73: DR---DEPARTMENT OF LAW
S74: VEN000094 | T74: Payment in favour of RAJESH KASHYAP | U74: CHQ | AB74: 73 | AC74: 123 | AD74: 100160 | AE74: 123/100160 | AF74: Lab Equipments & Apparatus (NR) | AG74: CENTRAL INSTRUMENTAL LABORATORY | AH74: DR---DEPARTMENT OF PHARMACEUTICAL SCIENCE
D75: 3. | E75: Certified that this bill is being put up first time for the payment. | S75: VEN000095 | T75: Payment in favour of CHOPRA PUBLISHING HOUSE PVT.LTD. | U75: CHQ | AB75: 74 | AC75: 123 | AD75: 401760 | AE75: 123/401760 | AF75: Mtc. of Machinery & Equipments | AG75: CENTRAL INSTRUMENTAL LABORATORY | AH75: DR---DEPARTMENTOF BIO-CHEMISTRY
S76: VEN000096 | T76: Payment in favour of M/S METREX SCIENTIFIC INSTRUMENTS PVT. LTD. | U76: CHQ | AB76: 75 | AC76: 123 | AD76: 401936 | AE76: 123/401936 | AF76: Contingencies incl. Telephone/Stationery etc. | AG76: CENTRAL INSTRUMENTAL LABORATORY | AH76: DR---DEPARTMENTOF BOTANY
E77: Entry in Stock Register at Page/Sl. No. : | I77: =IF($B$40>0,$B$40,"----") -> 2 | S77: VEN000097 | T77: Payment in favour of M/S HARYANA SCIENTIFIC & ENGG. CORPORATION | U77: Electronic Payment | V77: AAAFH6549R | W77: 830206041000010 | X77: VIJB0008302 | Y77: Vijaya Bank | Z77: 06AAAFH6549R1ZS | AB77: 76 | AC77: 123 | AD77: 402010 | AE77: 123/402010 | AF77: Chemicals/ Glassware Plasticware | AG77: CENTRAL INSTRUMENTAL LABORATORY | AH77: DR---DEPARTMENTOF COMMERCE
E78: Entry in Budget Reg. at Page/Sl. No. : | I78: =IF($B$41>0,$B$41,"----") -> 3 | S78: VEN000098 | T78: Payment in favour of M/S YOGESH BATTERY HOUSE | U78: CHQ | AB78: 77 | AC78: 125 | AD78: 100081 | AE78: 125/100081 | AF78: Machinery and Equipments (NR) | AG78: UNIVERSITY OUT REACH PROGRAMME | AH78: DR---DEPARTMENTOF COMPUTER SCIENCE
E79: Property Reg. Page No., if applicable : | I79: =IF($B$42>0,$B$42,"----") -> 5 | S79: VEN000099 | T79: Payment in favour of M/S MALIK CHEMICALS & INSTRUMENTS COMPANY | U79: Electronic Payment | V79: AJTPM5310K | W79: 10093065851 | X79: SBIN0001761 | Y79: State Bank of India | Z79: 06AJTPM5310K1ZX | AB79: 78 | AC79: 125 | AD79: 100082 | AE79: 125/100082 | AF79: Books/ Journals/ other knowledge resources (NR) | AG79: UNIVERSITY OUT REACH PROGRAMME | AH79: DR---DEPARTMENTOF ENV.SCIENCE
S80: VEN000100 | T80: Payment in favour of M/S RAJAT ENTERPRISES | U80: CHQ | AB80: 79 | AC80: 125 | AD80: 400200 | AE80: 125/400200 | AF80: In-house Seminars etc. | AG80: UNIVERSITY OUT REACH PROGRAMME | AH80: DR---DEPARTMENTOF GENETICS
S81: VEN000101 | T81: Payment in favour of M/S QUALITY MANUFACTURERS & SUPPLIERS | U81: CHQ | AB81: 80 | AC81: 125 | AD81: 400201 | AE81: 125/400201 | AF81: Honorarium for preparation of reading material | AG81: UNIVERSITY OUT REACH PROGRAMME | AH81: DR---DEPARTMENTOF MICROBIOLOGY
E82: Dated : …………………………………….. | J82: Name : ……………….……...…… | S82: VEN000102 | T82: Payment in favour of THE BHARAT INSTRUMENTS & CHEMICALS | U82: CHQ | V82: AATPJ5043P | W82: 115111001590 | X82: BKDN0711151 | Y82: Dena Bank | Z82: 06AATPJ5043P1Z3 | AB82: 81 | AC82: 125 | AD82: 400885 | AE82: 125/400885 | AF82: Travelling Allowance & Dearness Allowance | AG82: UNIVERSITY OUT REACH PROGRAMME | AH82: DR---DEPARTMENTOF ZOOLOGY
J83: Office : …………………………… | S83: VEN000103 | T83: Payment in favour of M/S BIOGEN SCIENTIFIC | U83: CHQ | AB83: 82 | AC83: 125 | AD83: 401565 | AE83: 125/401565 | AF83: Postal Charges | AG83: UNIVERSITY OUT REACH PROGRAMME | AH83: DR---EXTERNAL RECEIPTS(Plan)
S84: VEN000104 | T84: Payment in favour of M/S ATLANTIC PUBLISHERS & DISTRIBUTORS (P) LTD., NEW DELHI | U84: Electronic Payment | V84: AAFCA7265H | W84: 33305001505 | X84: ICIC0000333 | Y84: ICICI Bank | Z84: 07AAFCA7265H1ZK | AB84: 83 | AC84: 125 | AD84: 401936 | AE84: 125/401936 | AF84: Contingencies incl. Telephone/Stationery etc. | AG84: UNIVERSITY OUT REACH PROGRAMME | AH84: DR-INSTITUTE OF MGMT STUDIES & RESEARCH
S85: VEN000105 | T85: Payment in favour of M/S LABORATORY INSTRUMENTS & CHEMICALS | U85: CHQ | V85: ABJPS6023P | W85: 1312790000630 | X85: HDFC0000131 | Y85: HDFC Bank | Z85: 06ABJPS6023P1Z4 | AB85: 84 | AC85: 125 | AD85: 401968 | AE85: 125/401968 | AF85: Printing Charges | AG85: UNIVERSITY OUT REACH PROGRAMME | AH85: DR---MISC RECEIPTS
E86: Pay ` : …………..………..…….. | J86: Pre-audited & Passed for : | S86: VEN000106 | T86: Payment in favour of M/S JUPITER ENGINEERING WORKS | U86: CHQ | AB86: 85 | AC86: 126 | AD86: 100082 | AE86: 126/100082 | AF86: Books/ Journals/ other knowledge resources (NR) | AG86: DR. MANGAL SEN CHAIR | AH86: DR---MISC RECEIPTS (DEVLOPMENT , RESEARCH)
E87: Examined : …………..……….... | S87: VEN000107 | T87: Payment in favour of OFFICE FOR ALTERNATIVE ARCHITECTURE | U87: CHQ | AB87: 86 | AC87: 126 | AD87: 200690 | AE87: 126/200690 | AF87: Salary | AG87: DR. MANGAL SEN CHAIR | AH87: ENGINEERING CELL
J88: ` ………………..…………...……. | S88: VEN000108 | T88: Payment in favour of DURGA CARDS & PRINTERS | U88: CHQ | AB88: 87 | AC88: 126 | AD88: 400200 | AE88: 126/400200 | AF88: In-house Seminars etc. | AG88: DR. MANGAL SEN CHAIR | AH88: Environment Sustainability Management (ESM)Cell
J89: ………………..…………...……. | S89: VEN000109 | T89: Payment in favour of FINANCE OFFICER, MDU, ROHTAK | U89: CHQ | AB89: 88 | AC89: 126 | AD89: 400400 | AE89: 126/400400 | AF89: CONTRIBUTION TO PF & GRATUITY | AG89: DR. MANGAL SEN CHAIR | AH89: ESTABLISHMENT BRANCH
S90: VEN000110 | T90: Payment in favour of M/S SPECTRA COMPUTECH PVT. LTD. | U90: Electronic Payment | V90: AAHCS3691P | W90: 13142320000528 | X90: HDFC0001314 | Y90: HDFC Bank | Z90: 04AAHCS3691P1ZR | AB90: 89 | AC90: 126 | AD90: 401936 | AE90: 126/401936 | AF90: Contingencies incl. Telephone/Stationery etc. | AG90: DR. MANGAL SEN CHAIR | AH90: EXAMINATION FEE
S91: VEN000111 | T91: Payment in favour of SAJJAN SINGH | U91: Electronic Payment | V91: DFEPS3075D | W91: 37324233162 | X91: SBIN0004734 | Y91: State Bank of India | Z91: 06DFEPS3075D1ZH | AB91: 90 | AC91: 126 | AD91: 402001 | AE91: 126/402001 | AF91: Honorarium | AG91: DR. MANGAL SEN CHAIR | AH91: EXTERNAL RECEIPTS
E92: Assistant (Accounts) : ………… | S92: VEN000112 | T92: Payment in favour of SHREE GANESH PHOOL BHANDAR QUILLA ROAD | U92: CHQ | AB92: 91 | AC92: 128 | AD92: 100082 | AE92: 128/100082 | AF92: Books/ Journals/ other knowledge resources (NR) | AG92: PANDIT DEEN DAYAL UPADHAYAY RESEARCH CHAIR | AH92: Foreign Students Cell
E93: Dated : ………………………….. | S93: VEN000113 | T93: Payment in favour of INTELLECTUAL FOUNDATION (INDIA) | U93: CHQ | AB93: 92 | AC93: 128 | AD93: 400200 | AE93: 128/400200 | AF93: In-house Seminars etc. | AG93: PANDIT DEEN DAYAL UPADHAYAY RESEARCH CHAIR | AH93: GENERAL ADMINISTRATION BRANCH
S94: VEN000114 | T94: Payment in favour of M/S SPECTRUM TECHNOLOGIES | U94: Electronic Payment | V94: ABLFS7361L | W94: 917020056956491 | X94: UTIB0002030 | Y94: Axis Bank | Z94: 06ABLFS7361L1ZK | AB94: 93 | AC94: 128 | AD94: 401936 | AE94: 128/401936 | AF94: Contingencies incl. Telephone/Stationery etc. | AG94: PANDIT DEEN DAYAL UPADHAYAY RESEARCH CHAIR | AH94: GENERAL BRANCH---FACULTY HOUSE
S95: VEN000115 | T95: Payment in favour of ADVANCED MICRODEVICES PVT. LTD. | U95: CHQ | AB95: 94 | AC95: 128 | AD95: 402001 | AE95: 128/402001 | AF95: Honorarium | AG95: PANDIT DEEN DAYAL UPADHAYAY RESEARCH CHAIR | AH95: GENERAL BRANCH---SANITATION BRANCH
S96: VEN000116 | T96: Payment in favour of BAJRANG ENTERPRISES | U96: CHQ | AB96: 95 | AC96: 129 | AD96: 400201 | AE96: 129/400201 | AF96: Honorarium for preparation of reading material | AG96: DIGITAL LEARNING INITIATIVES & MONITORING CELL | AH96: GENERAL BRANCH---UNIVERSITY CANTEEN
S97: VEN000117 | T97: Payment in favour of M/S UNIQUE SCIENTIFIC AGENCY | U97: CHQ | AB97: 96 | AC97: 129 | AD97: 401936 | AE97: 129/401936 | AF97: Contingencies incl. Telephone/Stationery etc. | AG97: DIGITAL LEARNING INITIATIVES & MONITORING CELL | AH97: GIRLS HOSTEL - X
S98: VEN000119 | T98: Payment in favour of M/S KILASO BOOKS | U98: Electronic Payment | V98: AADFK9714C | W98: 3142560000639 | X98: HDFC0000314 | Y98: HDFC Bank | AB98: 97 | AC98: 129 | AD98: 401942 | AE98: 129/401942 | AF98: Conferences/ Symposia/ Workshop (National/ International) | AG98: DIGITAL LEARNING INITIATIVES & MONITORING CELL | AH98: GIRLS HOSTEL NO-I
S99: VEN000120 | T99: Payment in favour of M/S UNIVERSITY BOOK CENTRE | U99: Electronic Payment | V99: ABOPS1352E | W99: 1268155678 | X99: CBIN0280394 | Y99: Central Bank of Indi | AB99: 98 | AC99: 13 | AD99: 200690 | AE99: 13/200690 | AF99: Salary | AG99: SECRECY BRANCH | AH99: GIRLS HOSTEL NO-II
E100: Auditor | G100: R. S. A. | L100: Joint Director | S100: VEN000121 | T100: Payment in favour of NAMAN PRAKASHAN | U100: CHQ | AB100: 99 | AC100: 13 | AD100: 400113 | AE100: 13/400113 | AF100: Remuneration Expenses(Teaching, Non-teaching, Examiners | AG100: SECRECY BRANCH | AH100: GIRLS HOSTEL NO-III
S101: VEN000122 | T101: Payment in favour of RESEARCHCO BOOK CENTRE | U101: CHQ | AB101: 100 | AC101: 13 | AD101: 400400 | AE101: 13/400400 | AF101: CONTRIBUTION TO PF & GRATUITY | AG101: SECRECY BRANCH | AH101: GIRLS HOSTEL NO-IV
S102: VEN000123 | T102: Payment in favour of M/S R.K. BOOKS | U102: Electronic Payment | V102: AHFPK6736P | W102: 601706211000048 | X102: VIJB0006017 | Y102: Vijaya Bank | AB102: 101 | AC102: 13 | AD102: 401936 | AE102: 13/401936 | AF102: Contingencies incl. Telephone/Stationery etc. | AG102: SECRECY BRANCH | AH102: GIRLS HOSTEL NO-V
S103: VEN000124 | T103: Payment in favour of M/S RESEARCHCO BOOKS & PERIODICALS PVT.LTD. | U103: Electronic Payment | V103: AADCR8463J | W103: 13172790000821 | X103: HDFC0000314 | Y103: HDFC Bank | Z103: 07AADCR8463J1ZY | AB103: 102 | AC103: 130 | AD103: 401936 | AE103: 130/401936 | AF103: Contingencies incl. Telephone/Stationery etc. | AG103: Maharshi dayanand University Faculty Development Centre (MDUFDC) | AH103: GIRLS HOSTEL NO-VI
S104: VEN000125 | T104: Payment in favour of MEERUT GYM & GYMNASTIC WORKS | U104: CHQ | AB104: 103 | AC104: 130 | AD104: 401944 | AE104: 130/401944 | AF104: Conferences / Symposia/ Workshop | AG104: Maharshi dayanand University Faculty Development Centre (MDUFDC) | AH104: GIRLS HOSTEL NO-VII
S105: VEN000126 | T105: Payment in favour of M/S STAR VISION NETWORK | U105: Electronic Payment | V105: AAOPP3930G | W105: 204010200007689 | X105: UTIB0000204 | Y105: Axis Bank | Z105: 06AAOPP3930G1ZL | AB105: 104 | AC105: 130 | AD105: 402001 | AE105: 130/402001 | AF105: Honorarium | AG105: Maharshi dayanand University Faculty Development Centre (MDUFDC) | AH105: GIRLS HOSTEL NO-VIII
S106: VEN000127 | T106: Payment in favour of M/S TOWA OPTICS (INDIA) PVT. LTD., NEW DELHI | U106: CHQ | AB106: 105 | AC106: 131 | AD106: 401936 | AE106: 131/401936 | AF106: Contingencies incl. Telephone/Stationery etc. | AG106: Professional Consultancy Cell | AH106: HOSTEL RECEIPTS
S107: VEN000128 | T107: Payment in favour of M/S MATRU MAL BAL KISHAN JAIN | U107: CHQ | AB107: 106 | AC107: 131 | AD107: 401942 | AE107: 131/401942 | AF107: Conferences/ Symposia/ Workshop (National/ International) | AG107: Professional Consultancy Cell | AH107: Human Ethics Committee
S108: VEN000129 | T108: Payment in favour of M/S LOHCHAB MOTORS COMPANY PVT. LTD. | U108: Electronic Payment | V108: AABCL6946N | W108: 650014059426 | X108: INDB0000130 | Y108: IndusInd Bank | Z108: 06AABCL6946N1ZO | AB108: 107 | AC108: 132 | AD108: 401936 | AE108: 132/401936 | AF108: Contingencies incl. Telephone/Stationery etc. | AG108: Research and Development | AH108: IMSAR
S109: VEN000130 | T109: Payment in favour of M/S GANESH ELECTRIC STORE | U109: Electronic Payment | V109: AAUPK5971E | W109: 650007373441 | X109: INDB0000130 | Y109: IndusInd Bank | Z109: 06AAUPK5971E1ZB | AB109: 108 | AC109: 132 | AD109: 401942 | AE109: 132/401942 | AF109: Conferences/ Symposia/ Workshop (National/ International) | AG109: Research and Development | AH109: INSTITUE OF MANAGEMENT STUDIES & RESEARCH
S110: VEN000131 | T110: Payment in favour of ROHTASH CONTRACTOR | U110: CHQ | AB110: 109 | AC110: 133 | AD110: 401936 | AE110: 133/401936 | AF110: Contingencies incl. Telephone/Stationery etc. | AG110: IPR Cell | AH110: Institute Innovative Council
S111: VEN000132 | T111: Payment in favour of M/S M.K. ENTERPRISES | U111: CHQ | V111: ALYPM6713D | W111: 603700301000020 | X111: VIJB0006037 | Y111: Vijaya Bank | Z111: 07ALYPM6713D1ZS | AB111: 110 | AC111: 133 | AD111: 401942 | AE111: 133/401942 | AF111: Conferences/ Symposia/ Workshop (National/ International) | AG111: IPR Cell | AH111: INTERNAL QUALITY ASSURANCE CELL (IQAC)
S112: VEN000133 | T112: Payment in favour of VIKRAM PAL | U112: Electronic Payment | V112: AIMPV8371M | W112: 30705509071 | X112: SBIN0004734 | Y112: State Bank of India | Z112: 06AIMPV8371M1ZA | AB112: 111 | AC112: 133 | AD112: 401943 | AE112: 133/401943 | AF112: Filling Patent | AG112: IPR Cell | AH112: IPR Cell
S113: VEN000134 | T113: Payment in favour of POST MASTER, MAIN POST OFFICE, ROHTAK | U113: CHQ | AB113: 112 | AC113: 134 | AD113: 401936 | AE113: 134/401936 | AF113: Contingencies incl. Telephone/Stationery etc. | AG113: Human Ethics Committee | AH113: LANDSCAPING & HORTICULTURE
S114: VEN000135 | T114: Payment in favour of NIRANJAN KUMAR | U114: CHQ | AB114: 113 | AC114: 134 | AD114: 401942 | AE114: 134/401942 | AF114: Conferences/ Symposia/ Workshop (National/ International) | AG114: Human Ethics Committee | AH114: LEGAL CELL
S115: VEN000136 | T115: Payment in favour of M/S COOLING CENTRE | U115: Electronic Payment | V115: AACFC5773E | W115: 32510995500 | X115: SBIN0000706 | Y115: State Bank of India | Z115: 06AACFC5773E1ZM | AB115: 114 | AC115: 135 | AD115: 400200 | AE115: 135/400200 | AF115: In-house Seminars etc. | AG115: Environment Sustainability Management (ESM)Cell | AH115: LOAN & ADVANCES
S116: VEN000138 | T116: Payment in favour of M/S NATURE VIEW LANDSCAPE PVT. LTD. | U116: CHQ | AB116: 115 | AC116: 135 | AD116: 401936 | AE116: 135/401936 | AF116: Contingencies incl. Telephone/Stationery etc. | AG116: Environment Sustainability Management (ESM)Cell | AH116: LUMPSUM PROVISION ON ACCOUNT OF DA/ ARREARS OF REVISION OF PAY SCALE/ ACP ETC.
D117: F7 | F117: Vendor ID | G117: =INDEX($S$2:$S$2501,$R$2) -> VEN000822 | H117: Bill No. | I117: =IF($B$14="","pls. see below",$B$14) -> 1 | K117: =IF($B$15="","Dt. : pls. see below","Dt. : "&TEXT($B$15,"dd-mmm-yyyy")) -> Dt. : pls. see below | M117: Amount (`) | S117: VEN000139 | T117: Payment in favour of M/S SATGURU ENTERPRISE | U117: CHQ | AB117: 116 | AC117: 135 | AD117: 401942 | AE117: 135/401942 | AF117: Conferences/ Symposia/ Workshop (National/ International) | AG117: Environment Sustainability Management (ESM)Cell | AH117: MAHARISHI BALMIKI CHAIR
F118: =" "&VLOOKUP(INDEX($S$2:$S$2501,$R$2),$S$2:$T$2501,2,0) -> Payment in favour of M/S TFS CORPORATE SOLUTIONS LIMITED | M118: =$N$123-ROUND(SUM($M$119:$M$122),0) -> 96133 | S118: VEN000140 | T118: Payment in favour of ALPS INDUSTRIES LTD. | U118: CHQ | AB118: 117 | AC118: 135 | AD118: 402004 | AE118: 135/402004 | AF118: Field Works/Research Laboratory/other scheme | AG118: Environment Sustainability Management (ESM)Cell | AH118: MAHARISHI DAYANAND CHAIR
F119: =" "&IF($Q$15=1,$P$23,IF($Q$15=2,$P$20,IF($Q$15=3,$P$21,IF($Q$15=4,$P$22)))) -> Cheque in f/o Manager, SBI, MDUR, 200920 (Income TDS on T. V. i.e. 2% of 93333.33) | M119: =IF($Q$15=1,0,IF($Q$15=2, ROUND($B$16*0.01,0),IF($Q$15=3,ROUND($B$16*0.02,0),IF($Q$15=4,ROUND($B$16*0.1,0))))) -> 1867 | S119: VEN000141 | T119: Payment in favour of M/S S.N. ALUMINIUM & FUNRNITURE WORKS | U119: CHQ | AB119: 118 | AC119: 135 | AD119: 402006 | AE119: 135/402006 | AF119: Practical Training to Students/Educational Tour | AG119: Environment Sustainability Management (ESM)Cell | AH119: Maharshi dayanand University Faculty Development Centre (MDUFDC)
F120: =" "&IF($Q$9=2,$P$12,$P$12) -> IGST TDS Payable (on T. V. i.e. 2% of 93333.33), 200991 | M120: =IF($Q$9=2,ROUND($B$16*0.02,2),0) -> 0 | S120: VEN000142 | T120: Payment in favour of KUMAR LIGHT & SOUND SERVICE | U120: Electronic Payment | V120: ASSPK5358D | W120: 3009002100008960 | X120: PUNB0300900 | Y120: Punjab National Bank | AB120: 119 | AC120: 136 | AD120: 401936 | AE120: 136/401936 | AF120: Contingencies incl. Telephone/Stationery etc. | AG120: Institute Innovative Council | AH120: MISC.RECEIPTS
F121: =" "&IF($Q$9=1,$P$13,$P$13) -> SGST TDS Payable (on T. V. i.e. 1% of 93333.33), 200992 | M121: =IF($Q$9=1,ROUND($B$16*0.01,2),0) -> 0 | S121: VEN000143 | T121: Payment in favour of MARSHAL INFRA DEVELOPERS INDIA PVT. LTD. | U121: CHQ | AB121: 120 | AC121: 136 | AD121: 401942 | AE121: 136/401942 | AF121: Conferences/ Symposia/ Workshop (National/ International) | AG121: Institute Innovative Council | AH121: OFFICE OF FINANCE OFFICER AND ACCOUNTS BRANCH
F122: =" "&IF($Q$9=1,$P$14,$P$14) -> CGST TDS Payable (on T. V. i.e. 1% of 93333.33), 200993 | M122: =IF($Q$9=1,ROUND($B$16*0.01,2),0) -> 0 | S122: VEN000144 | T122: Payment in favour of YOGI INFO SYSTEMS | U122: CHQ | AB122: 121 | AC122: 136 | AD122: 401945 | AE122: 136/401945 | AF122: Innovative Project | AG122: Institute Innovative Council | AH122: OTHER FEES & FINES
F123: Rounding off, 200994 | M123: =N123-SUM(M118:M122) -> 0 | N123: =ROUND($B$17,0) -> 98000 | S123: VEN000145 | T123: Payment in favour of SAMRAT GRAM UDYOG SANGH | U123: CHQ | AB123: 122 | AC123: 137 | AD123: 401936 | AE123: 137/401936 | AF123: Contingencies incl. Telephone/Stationery etc. | AG123: Foreign Students Cell | AH123: PANDIT DEEN DAYAL UPADHAYAY RESEARCH CHAIR
S124: VEN000146 | T124: Payment in favour of M/S DIGICOP XEROGRAPHIC SYSTEMS | U124: Electronic Payment | V124: AIUPK6986D | W124: 353651100000286 | X124: IBKL0000353 | Y124: IDBI Bank | Z124: 06AIUPK6986D1ZN | AB124: 123 | AC124: 137 | AD124: 401947 | AE124: 137/401947 | AF124: Co-curricular Activities/Visits | AG124: Foreign Students Cell | AH124: PLAN---Construction at Landscaping & Horticulture
S125: VEN000147 | T125: Payment in favour of HOD, PHARMACEUTICAL SCIENCES, MDU, ROHTAK | U125: CHQ | AB125: 124 | AC125: 137 | AD125: 401949 | AE125: 137/401949 | AF125: Academic Activities | AG125: Foreign Students Cell | AH125: PLAN---Construction at University Campus
D126: F23 | F126: Vendor ID | G126: =INDEX($S$2:$S$2501,$Q$2) -> VEN000813 | H126: Bill No. | I126: =IF($B$22="","pls. see below",$B$22) -> 882 | K126: =IF($B$23="","Dt. : pls. see below","Dt. : "&TEXT($B$23,"dd-mmm-yyyy")) -> Dt. : 16-Aug-2019 | M126: Amount (`) | S126: VEN000148 | T126: Payment in favour of M/S TOTAL I.T. SOLUTIONS PVT. LTD. | U126: CHQ | AB126: 125 | AC126: 137 | AD126: 402005 | AE126: 137/402005 | AF126: Exchange Programme/MOU | AG126: Foreign Students Cell | AH126: PROCTOR OFFICE
F127: =" "&VLOOKUP(INDEX($S$2:$S$2501,$Q$2),$S$2:$T$2501,2,0) -> Payment in favour of M/S GAGAN SCIENTIFIC CENTRE | M127: =$N$132-ROUND(SUM($M$128:$M$131),0) -> 4805 | S127: VEN000149 | T127: Payment in favour of M/s SAJAL ENTERPRISE | U127: CHQ | AB127: 126 | AC127: 138 | AD127: 400113 | AE127: 138/400113 | AF127: Remuneration Expenses(Teaching, Non-teaching, Examiners | AG127: BOYS HOSTEL NO. X | AH127: Professional Consultancy Cell
F128: =" "&IF($Q$32=1,$P$40,IF($Q$32=2,$P$37,IF($Q$32=3,$P$38,IF($Q$32=4,$P$39)))) -> Income TDS not applicable | M128: =IF($Q$32=1,0,IF($Q$32=2,ROUND($B$24*0.01,0),IF($Q$32=3,ROUND($B$24*0.02,0),IF($Q$32=4,ROUND($B$24*0.1,0))))) -> 0 | S128: VEN000150 | T128: Payment in favour of M/S LINK ENGINEERS | U128: Electronic Payment | V128: AMPPK5844H | W128: 1951002100035250 | X128: PUNB0195100 | Y128: Punjab National Bank | Z128: 06AMPPK5844H2ZO | AB128: 127 | AC128: 138 | AD128: 401936 | AE128: 138/401936 | AF128: Contingencies incl. Telephone/Stationery etc. | AG128: BOYS HOSTEL NO. X | AH128: PROVOST (BOYS)
F129: =" "&IF($Q$26=2,$P$29,$P$29) -> IGST TDS Payable (on T. V. i.e. 2% of 4368), 200991 | M129: =IF($Q$26=2,ROUND($B$24*0.02,2),0) -> 0 | S129: VEN000151 | T129: Payment in favour of M/s DIGITAL SOLUTION & COMMUNICATION | U129: CHQ | AB129: 128 | AC129: 14 | AD129: 200690 | AE129: 14/200690 | AF129: Salary | AG129: CONDUCT BRANCH | AH129: PROVOST (GIRLS)
F130: =" "&IF($Q$26=1,$P$30,$P$30) -> SGST TDS Payable (on T. V. i.e. 1% of 4368), 200992 | M130: =IF($Q$26=1,ROUND($B$24*0.01,2),0) -> 43.68 | S130: VEN000152 | T130: Payment in favour of DAINIK BHASKAR | U130: CHQ | AB130: 129 | AC130: 14 | AD130: 400113 | AE130: 14/400113 | AF130: Remuneration Expenses(Teaching, Non-teaching, Examiners | AG130: CONDUCT BRANCH | AH130: PT. JAWAHAR LAL NEHRU CHAIR
F131: =" "&IF($Q$26=1,$P$31,$P$31) -> CGST TDS Payable (on T. V. i.e. 1% of 4368), 200993 | M131: =IF($Q$26=1,ROUND($B$24*0.01,2),0) -> 43.68 | S131: VEN000153 | T131: Payment in favour of M/S ARYA GLASS CO. | U131: CHQ | AB131: 130 | AC131: 14 | AD131: 400400 | AE131: 14/400400 | AF131: CONTRIBUTION TO PF & GRATUITY | AG131: CONDUCT BRANCH | AH131: PUBLIC INFORMATION OFFICE (PIO)
F132: Rounding off, 200994 | M132: =N132-SUM(M127:M131) -> -0.36 | N132: =ROUND($B$25,0) -> 4892 | S132: VEN000154 | T132: Payment in favour of M/S ULTRATECK CEMENT LTD. | U132: CHQ | AB132: 131 | AC132: 14 | AD132: 401936 | AE132: 14/401936 | AF132: Contingencies incl. Telephone/Stationery etc. | AG132: CONDUCT BRANCH | AH132: PUBLIC RELATIONS OFFICE
S133: VEN000155 | T133: Payment in favour of M/S COMPUTER WORLD | U133: CHQ | AB133: 132 | AC133: 14 | AD133: 401972 | AE133: 14/401972 | AF133: Manufac. of Answer Books and other examination material | AG133: CONDUCT BRANCH | AH133: PUBLICATION CELL
S134: VEN000156 | T134: Payment in favour of VIP INDUSTRIES LTD. | U134: CHQ | AB134: 133 | AC134: 15 | AD134: 200690 | AE134: 15/200690 | AF134: Salary | AG134: RE-EVALUATION & ENTRANCE EXAMINATIONCELL | AH134: PURCHASE & STORES BRANCH
D135: F39 | F135: Vendor ID | G135: =INDEX($S$2:$S$2501,$P$2) -> VEN000821 | H135: Bill No. | I135: =IF($B$30="","pls. see below",$B$30) -> 117 | K135: =IF($B$31="","Dt. : pls. see below","Dt. : "&TEXT($B$31,"dd-mmm-yyyy")) -> Dt. : 23-Aug-2019 | M135: Amount (`) | S135: VEN000157 | T135: Payment in favour of M/S SHREE JEE ELECTRONICS | U135: CHQ | AB135: 134 | AC135: 15 | AD135: 400113 | AE135: 15/400113 | AF135: Remuneration Expenses(Teaching, Non-teaching, Examiners | AG135: RE-EVALUATION & ENTRANCE EXAMINATIONCELL | AH135: RASHTRIYA UCCHTAR SHIKSHA ABHIYAN (RUSA)
F136: =" "&VLOOKUP(INDEX($S$2:$S$2501,$P$2),$S$2:$T$2501,2,0) -> Payment in favour of M/S DEEP SCIENTIFIC | M136: =N141-ROUND(SUM(M137:M140),0) -> 4659 | S136: VEN000158 | T136: Payment in favour of M/S ON QUEST MERCHANDISING INDIA PVT. LTD. | U136: CHQ | AB136: 135 | AC136: 15 | AD136: 400400 | AE136: 15/400400 | AF136: CONTRIBUTION TO PF & GRATUITY | AG136: RE-EVALUATION & ENTRANCE EXAMINATIONCELL | AH136: RE-EVALUATION & ENTRANCE EXAMINATIONCELL
F137: =" "&IF($Q$49=1,$P$57,IF($Q$49=2,$P$54,IF($Q$49=3,$P$55,IF($Q$49=4,$P$56)))) -> Income TDS not applicable | M137: =IF($Q$49=1,0,IF($Q$49=2,ROUND($B$32*0.01,0),IF($Q$49=3,ROUND($B$32*0.02,0),IF($Q$49=4,ROUND($B$32*0.1,0))))) -> 0 | S137: VEN000159 | T137: Payment in favour of M/S QUALITY MARKETING GROUP | U137: CHQ | AB137: 136 | AC137: 15 | AD137: 401936 | AE137: 15/401936 | AF137: Contingencies incl. Telephone/Stationery etc. | AG137: RE-EVALUATION & ENTRANCE EXAMINATIONCELL | AH137: REGISTRAR'S OFFICE
F138: =" "&IF($Q$43=2,$P$46,$P$46) -> IGST TDS Payable (on T. V. i.e. 2% of 4016.25), 200991 | M138: =IF($Q$43=2,ROUND($B$32*0.02,2),0) -> 80.33 | S138: VEN000160 | T138: Payment in favour of M/S BANSAL SALES CORP. | U138: CHQ | AB138: 137 | AC138: 16 | AD138: 200690 | AE138: 16/200690 | AF138: Salary | AG138: ENGINEERING CELL | AH138: REGISTRATION & SCHOLARSHIP BRANCH
F139: =" "&IF($Q$43=1,$P$47,$P$47) -> SGST TDS Payable (on T. V. i.e. 1% of 4016.25), 200992 | M139: =IF($Q$43=1,ROUND($B$32*0.01,2),0) -> 0 | S139: VEN000161 | T139: Payment in favour of M/S PALL & CO. | U139: Electronic Payment | V139: AAUFP8168L | W139: 50200028615552 | X139: HDFC0002066 | Y139: HDFC Bank | Z139: 06AAUFP8168L1Z9 | AB139: 138 | AC139: 16 | AD139: 400117 | AE139: 16/400117 | AF139: Contractual Special Services | AG139: ENGINEERING CELL | AH139: Research and Development
F140: =" "&IF($Q$43=1,$P$48,$P$48) -> CGST TDS Payable (on T. V. i.e. 1% of 4016.25), 200993 | M140: =IF($Q$43=1,ROUND($B$32*0.01,2),0) -> 0 | S140: VEN000162 | T140: Payment in favour of M/S HARYANA COMPUTER | U140: Electronic Payment | V140: AJBPP8436B | W140: 8644261000038 | X140: CNRB0008644 | Y140: Canara Bank | Z140: 06AJBPP8436B1ZE | AB140: 139 | AC140: 16 | AD140: 400400 | AE140: 16/400400 | AF140: CONTRIBUTION TO PF & GRATUITY | AG140: ENGINEERING CELL | AH140: RESULT-I BRANCH
F141: Rounding off, 200994 | M141: =N141-SUM(M136:M140) -> -0.33 | N141: =ROUND($B$33,0) -> 4739 | S141: VEN000163 | T141: Payment in favour of M/S KIDS INTERNATIONAL PVT. LTD. | U141: CHQ | AB141: 140 | AC141: 16 | AD141: 400995 | AE141: 16/400995 | AF141: Electricity Charges (Payment to (UHBVNL) | AG141: ENGINEERING CELL | AH141: RESULT-II BRANCH
S142: VEN000164 | T142: Payment in favour of M/S TARUN FIRE PROTECTION | U142: CHQ | AB142: 141 | AC142: 16 | AD142: 401755 | AE142: 16/401755 | AF142: Repair & Maintenance Building | AG142: ENGINEERING CELL | AH142: SANT KABIR CHAIR
S143: VEN000165 | T143: Payment in favour of RAMBIR | U143: CHQ | AB143: 142 | AC143: 16 | AD143: 401756 | AE143: 16/401756 | AF143: Maintainence of Electricity works | AG143: ENGINEERING CELL | AH143: SECRECY BRANCH
S144: VEN000166 | T144: Payment in favour of THE INDIAN EXPRESS (P) LIMITED | U144: Electronic Payment | V144: AACCT1148F | W144: 328640000034 | X144: HDFC0000032 | Y144: HDFC Bank | AB144: 143 | AC144: 16 | AD144: 401936 | AE144: 16/401936 | AF144: Contingencies incl. Telephone/Stationery etc. | AG144: ENGINEERING CELL | AH144: SFS--- University Institute of Eng. & Tech.
S145: VEN000167 | T145: Payment in favour of OM CONSTRUCTION | U145: CHQ | AB145: 144 | AC145: 17 | AD145: 200690 | AE145: 17/200690 | AF145: Salary | AG145: LANDSCAPING & HORTICULTURE | AH145: SFS---DEPARTMENT OF ENG & FOREIGN
S146: VEN000168 | T146: Payment in favour of M/S DARA CONSTRUCTION CO. | U146: CHQ | AB146: 145 | AC146: 17 | AD146: 400400 | AE146: 17/400400 | AF146: CONTRIBUTION TO PF & GRATUITY | AG146: LANDSCAPING & HORTICULTURE | AH146: SFS---DEPARTMENT OF ENGLISH & FOREIGN LANG.
S147: VEN000169 | T147: Payment in favour of B. C. BERI | U147: CHQ | AB147: 146 | AC147: 17 | AD147: 401936 | AE147: 17/401936 | AF147: Contingencies incl. Telephone/Stationery etc. | AG147: LANDSCAPING & HORTICULTURE | AH147: SFS---DEPARTMENT OF MATHEMATICS
S148: VEN000170 | T148: Payment in favour of M.S. ELECTRIC WORKS | U148: CHQ | AB148: 147 | AC148: 17 | AD148: 401974 | AE148: 17/401974 | AF148: Plant, Nursery and Plants Maintenance | AG148: LANDSCAPING & HORTICULTURE | AH148: SFS---DEPARTMENT OF MATHS
S149: VEN000171 | T149: Payment in favour of SHREE BALAJI ELECTRIC AND HARDWARE STORE | U149: CHQ | AB149: 148 | AC149: 18 | AD149: 200690 | AE149: 18/200690 | AF149: Salary | AG149: ARCHITECT CELL | AH149: SFS---DEPARTMENT OF PHYSICAL EDU.
S150: VEN000172 | T150: Payment in favour of RAJ SPORTS & ELECTRICALS (REGD.) | U150: CHQ | AB150: 149 | AC150: 18 | AD150: 400400 | AE150: 18/400400 | AF150: CONTRIBUTION TO PF & GRATUITY | AG150: ARCHITECT CELL | AH150: SFS---DEPARTMENT PHYSICAL EDUCATION
S151: VEN000173 | T151: Payment in favour of M/S RAINBOW LIGHTS | U151: Electronic Payment | V151: AFXPR8622M | W151: 8431010000490 | X151: ORBC0100843 | Y151: Oriental Bank of Com | Z151: 06AFXPR8622M1ZG | AB151: 150 | AC151: 18 | AD151: 401936 | AE151: 18/401936 | AF151: Contingencies incl. Telephone/Stationery etc. | AG151: ARCHITECT CELL | AH151: SFS---INSTITUTE OF HOTEL & TOURISM MGT
S152: VEN000174 | T152: Payment in favour of SHREE GANESH ELECTRICALS | U152: CHQ | AB152: 151 | AC152: 19 | AD152: 100052 | AE152: 19/100052 | AF152: Purchase of Vehicles (NR) | AG152: TRANSPORT OFFICE | AH152: SFS---INSTT.OF HOTEL & TOURISM MGT.
S153: VEN000175 | T153: Payment in favour of POWER CONTROL SYSTEM | U153: CHQ | AB153: 152 | AC153: 19 | AD153: 200690 | AE153: 19/200690 | AF153: Salary | AG153: TRANSPORT OFFICE | AH153: SFS---MISC.EXPENDITURE
S154: VEN000176 | T154: Payment in favour of DEVENDRA CO-OP SOCIETY | U154: CHQ | AB154: 153 | AC154: 19 | AD154: 400113 | AE154: 19/400113 | AF154: Remuneration Expenses(Teaching, Non-teaching, Examiners | AG154: TRANSPORT OFFICE | AH154: SFS---MISC.RECEIPTS
S155: VEN000177 | T155: Payment in favour of RED CROSS PARENTS ASSOCIATION FOR THE W.M.H.C. | U155: CHQ | AB155: 154 | AC155: 19 | AD155: 400117 | AE155: 19/400117 | AF155: Contractual Special Services | AG155: TRANSPORT OFFICE | AH155: SFS---UIET
S156: VEN000178 | T156: Payment in favour of M/S DIGITAL COMMUNICATION | U156: Electronic Payment | V156: APFPG5647B | W156: 20662000001174 | X156: HDFC0002066 | Y156: HDFC Bank | Z156: 06APFPG5647B1Z8 | AB156: 155 | AC156: 19 | AD156: 400400 | AE156: 19/400400 | AF156: CONTRIBUTION TO PF & GRATUITY | AG156: TRANSPORT OFFICE | AH156: SIR CHHOTU RAM CHAIR
S157: VEN000179 | T157: Payment in favour of NEW INDIA ASSURANCE COMPANY LTD. | U157: CHQ | AB157: 156 | AC157: 19 | AD157: 401760 | AE157: 19/401760 | AF157: Mtc. of Machinery & Equipments | AG157: TRANSPORT OFFICE | AH157: SPECIAL CELL FOR SC/ST
S158: VEN000180 | T158: Payment in favour of M/S SCIENTIFIC TRADERS | U158: CHQ | AB158: 157 | AC158: 19 | AD158: 401936 | AE158: 19/401936 | AF158: Contingencies incl. Telephone/Stationery etc. | AG158: TRANSPORT OFFICE | AH158: SPORTS OFFICE
S159: VEN000181 | T159: Payment in favour of EXCELLENT COMPUTER | U159: CHQ | AB159: 158 | AC159: 19 | AD159: 401980 | AE159: 19/401980 | AF159: POL Charges (Petrol / Diesel Expenses) | AG159: TRANSPORT OFFICE | AH159: STUDENT'S UNION OFFICE
S160: VEN000182 | T160: Payment in favour of ATLANTIS (INDIA) APPLICATIONS ENGINEERING PVT. LTD. | U160: Electronic Payment | V160: AAACA2953K | W160: 20027493257 | X160: MAHB0001188 | Y160: Bank of Maharashtra | Z160: 07AAACA2953K1ZP | AB160: 159 | AC160: 2 | AD160: 200690 | AE160: 2/200690 | AF160: Salary | AG160: REGISTRAR'S OFFICE | AH160: SURYA KAVI PT.LAKHMI CHAND JI CHAIR
S161: VEN000183 | T161: Payment in favour of THE TIMES OF INDIA GROUP | U161: CHQ | AB161: 160 | AC161: 2 | AD161: 400400 | AE161: 2/400400 | AF161: CONTRIBUTION TO PF & GRATUITY | AG161: REGISTRAR'S OFFICE | AH161: TRANSPORT OFFICE
S162: VEN000184 | T162: Payment in favour of COORDINATOR, NRIMS SUMMER TRAINING PROGRAMME | U162: CHQ | AB162: 161 | AC162: 2 | AD162: 401936 | AE162: 2/401936 | AF162: Contingencies incl. Telephone/Stationery etc. | AG162: REGISTRAR'S OFFICE | AH162: TUITION FEES & FINES
S163: VEN000185 | T163: Payment in favour of K.S. SANGWAN | U163: CHQ | AB163: 162 | AC163: 20 | AD163: 200690 | AE163: 20/200690 | AF163: Salary | AG163: WATCH & WARD OFFICE | AH163: UNIVERSITY CAMPUS SCHOOL
S164: VEN000187 | T164: Payment in favour of M/S DEEP MALA CO-OP SOCIETY LTD. | U164: CHQ | AB164: 163 | AC164: 20 | AD164: 400113 | AE164: 20/400113 | AF164: Remuneration Expenses(Teaching, Non-teaching, Examiners | AG164: WATCH & WARD OFFICE | AH164: UNIVERSITY CENTRE FOR COMPETITIVE EXAMINATIONS
S165: VEN000188 | T165: Payment in favour of UNIVERSAL ELECTRICAL WORK | U165: CHQ | AB165: 164 | AC165: 20 | AD165: 400400 | AE165: 20/400400 | AF165: CONTRIBUTION TO PF & GRATUITY | AG165: WATCH & WARD OFFICE | AH165: UNIVERSITY HEALTH CENTRE
S166: VEN000189 | T166: Payment in favour of HARI BHOOMI | U166: Electronic Payment | V166: AACH0077K | W166: 1762320000284 | X166: HDFC0000176 | Y166: HDFC Bank | AB166: 165 | AC166: 20 | AD166: 401760 | AE166: 20/401760 | AF166: Mtc. of Machinery & Equipments | AG166: WATCH & WARD OFFICE | AH166: UNIVERSITY INDUSTRY LIAISION CELL
S167: VEN000190 | T167: Payment in favour of M/S CHAUDHRY SANITARY SALES | U167: Electronic Payment | V167: AEMPK1690J | W167: 47102000001102 | X167: IOBA0000471 | Y167: Indian Overseas Bank | Z167: 06AEMPK1690J2Z7 | AB167: 166 | AC167: 20 | AD167: 401936 | AE167: 20/401936 | AF167: Contingencies incl. Telephone/Stationery etc. | AG167: WATCH & WARD OFFICE | AH167: UNIVERSITY INSTITUTE OF PUBLIC HEALTH
S168: VEN000191 | T168: Payment in favour of K.D. TRADERS | U168: CHQ | AB168: 167 | AC168: 201 | AD168: 100206 | AE168: 201/100206 | AF168: Construction work (Continued) | AG168: PLAN---Construction at University Campus | AH168: UNIVERSITY LIBRARY
S169: VEN000192 | T169: Payment in favour of RAJ BALA | U169: CHQ | AB169: 168 | AC169: 201 | AD169: 100208 | AE169: 201/100208 | AF169: Development Charges demanded by MCR | AG169: PLAN---Construction at University Campus | AH169: UNIVERSITY OUT REACH PROGRAMME
S170: VEN000193 | T170: Payment in favour of KRISHAN KANT BERI | U170: CHQ | AB170: 169 | AC170: 201 | AD170: 100209 | AE170: 201/100209 | AF170: Municipal Tax | AG170: PLAN---Construction at University Campus | AH170: UNIVERSITY PRESS
S171: VEN000194 | T171: Payment in favour of M/S NARANG SCIENTIFIC WORKS PVT LTD. | U171: Electronic Payment | V171: AAACN4089K | W171: 90281250000240 | X171: SYNB0009028 | Y171: Syndicate Bank | Z171: 07AAACN4089K1Z5 | AB171: 170 | AC171: 202 | AD171: 100161 | AE171: 202/100161 | AF171: Landscaping & Horticulture | AG171: PLAN---Construction at Landscaping & Horticulture | AH171: VICE CHANCELLOR'S OFFICE
S172: VEN000195 | T172: Payment in favour of DHAKA TENT & DECORATORS | U172: CHQ | AB172: 171 | AC172: 21 | AD172: 200690 | AE172: 21/200690 | AF172: Salary | AG172: LEGAL CELL | AH172: WATCH & WARD OFFICE
S173: VEN000196 | T173: Payment in favour of M/S HANS DIGITAL LAB & STUDIO | U173: CHQ | AB173: 172 | AC173: 21 | AD173: 400400 | AE173: 21/400400 | AF173: CONTRIBUTION TO PF & GRATUITY | AG173: LEGAL CELL | AH173: Unknown 01
S174: VEN000197 | T174: Payment in favour of M/S AMBIKA DISTRIBUTORS | U174: CHQ | AB174: 173 | AC174: 21 | AD174: 401355 | AE174: 21/401355 | AF174: Legal Expenses | AG174: LEGAL CELL | AH174: Unknown 02
S175: VEN000198 | T175: Payment in favour of DEVENDER KUMAR CONTRACTOR | U175: Electronic Payment | V175: AHNPK5593J | W175: 737986562 | X175: IDIB000R019 | Y175: Indian Bank | Z175: 06AHNPK5593J1ZR | AB175: 174 | AC175: 21 | AD175: 401936 | AE175: 21/401936 | AF175: Contingencies incl. Telephone/Stationery etc. | AG175: LEGAL CELL | AH175: Unknown 03
S176: VEN000199 | T176: Payment in favour of M/S A.D. ELECTRIC SERVICE | U176: Electronic Payment | V176: DLUPS9738B | W176: 3130849169 | X176: CBIN0280394 | Y176: Central Bank of Indi | Z176: 06DLUPS9738B1ZE | AB176: 175 | AC176: 22 | AD176: 200690 | AE176: 22/200690 | AF176: Salary | AG176: DEAN STUDENT'S WELFARE | AH176: Unknown 04
S177: VEN000200 | T177: Payment in favour of SHARMA REFRIGERATION | U177: CHQ | AB177: 176 | AC177: 22 | AD177: 400400 | AE177: 22/400400 | AF177: CONTRIBUTION TO PF & GRATUITY | AG177: DEAN STUDENT'S WELFARE | AH177: Unknown 05
S178: VEN000201 | T178: Payment in favour of M/S RADHEY REFRIGERATION | U178: CHQ | AB178: 177 | AC178: 22 | AD178: 401936 | AE178: 22/401936 | AF178: Contingencies incl. Telephone/Stationery etc. | AG178: DEAN STUDENT'S WELFARE | AH178: Unknown 06
S179: VEN000203 | T179: Payment in favour of P.S. DAHIYA | U179: Electronic Payment | V179: ABJPD9096M | W179: 11075522509 | X179: SBIN0014637 | Y179: State Bank of India | AB179: 178 | AC179: 22 | AD179: 401990 | AE179: 22/401990 | AF179: Sports Stipends to Students | AG179: DEAN STUDENT'S WELFARE | AH179: Unknown 07
S180: VEN000205 | T180: Payment in favour of SURESH KUMAR | U180: Electronic Payment | V180: BUIPK7180G | W180: 19020100002222 | X180: UCBA0001902 | Y180: UCO Bank | AB180: 179 | AC180: 23 | AD180: 200690 | AE180: 23/200690 | AF180: Salary | AG180: PROCTOR OFFICE | AH180: Unknown 08
S181: VEN000206 | T181: Payment in favour of NUWOOD INDUSTRIES | U181: CHQ | AB181: 180 | AC181: 23 | AD181: 401936 | AE181: 23/401936 | AF181: Contingencies incl. Telephone/Stationery etc. | AG181: PROCTOR OFFICE | AH181: Unknown 09
S182: VEN000207 | T182: Payment in favour of DIRECTOR, MAMC, AGROHA (HISAR) | U182: CHQ | AB182: 181 | AC182: 24 | AD182: 401932 | AE182: 24/401932 | AF182: Misc. Expenditure | AG182: ALUMINI CENTRE | AH182: Unknown 10
S183: VEN000208 | T183: Payment in favour of M/S JAGDAMBA TYRES | U183: CHQ | AB183: 182 | AC183: 24 | AD183: 401936 | AE183: 24/401936 | AF183: Contingencies incl. Telephone/Stationery etc. | AG183: ALUMINI CENTRE | AH183: Unknown 11
S184: VEN000209 | T184: Payment in favour of J. K. BOOK DEPOT | U184: 0 | AB184: 183 | AC184: 24 | AD184: 402001 | AE184: 24/402001 | AF184: Honorarium | AG184: ALUMINI CENTRE | AH184: Unknown 12
S185: VEN000210 | T185: Payment in favour of SHREE BALA JI ENTERPRISES | U185: Electronic Payment | V185: AAWFS7728P | W185: 21400400006475 | X185: BARB0TRDROH | Y185: Bank of Baroda | Z185: 06AAWFS7728P1Z0 | AB185: 184 | AC185: 25 | AD185: 401936 | AE185: 25/401936 | AF185: Contingencies incl. Telephone/Stationery etc. | AG185: CAREER COUNSELLING & PLACEMENT CELL | AH185: Unknown 13
S186: VEN000211 | T186: Payment in favour of M/S DELHI PAPERS | U186: CHQ | AB186: 185 | AC186: 25 | AD186: 401993 | AE186: 25/401993 | AF186: Career Counselling and Placement Activities | AG186: CAREER COUNSELLING & PLACEMENT CELL | AH186: Unknown 14
S187: VEN000212 | T187: Payment in favour of M/S KCT TRADING PVT. LTD. | U187: Electronic Payment | V187: AACCK9323M | W187: 1760310000076 | X187: HDFC0000176 | Y187: HDFC Bank | Z187: 06AACCK9323M1Z9 | AB187: 186 | AC187: 27 | AD187: 200690 | AE187: 27/200690 | AF187: Salary | AG187: STUDENT'S UNION OFFICE | AH187: Unknown 15
S188: VEN000213 | T188: Payment in favour of SHAM ARTS | U188: CHQ | AB188: 187 | AC188: 27 | AD188: 400400 | AE188: 27/400400 | AF188: CONTRIBUTION TO PF & GRATUITY | AG188: STUDENT'S UNION OFFICE | AH188: Unknown 16
S189: VEN000214 | T189: Payment in favour of M/S DUA BOOK DEPOT | U189: CHQ | AB189: 188 | AC189: 27 | AD189: 404872 | AE189: 27/404872 | AF189: Grand To Student Union | AG189: STUDENT'S UNION OFFICE | AH189: Unknown 17
S190: VEN000215 | T190: Payment in favour of M/S PRAMOD ENGINEERING WORKS | U190: CHQ | AB190: 189 | AC190: 28 | AD190: 100135 | AE190: 28/100135 | AF190: Furniture & Fixtures, Utensils (NR) | AG190: PROVOST (GIRLS) | AH190: Unknown 18
S191: VEN000216 | T191: Payment in favour of ANAND ELECTRONICS | U191: CHQ | AB191: 190 | AC191: 28 | AD191: 401936 | AE191: 28/401936 | AF191: Contingencies incl. Telephone/Stationery etc. | AG191: PROVOST (GIRLS) | AH191: Unknown 19
S192: VEN000217 | T192: Payment in favour of JAWAHAR BOOK BINDING CO. | U192: CHQ | AB192: 191 | AC192: 29 | AD192: 200690 | AE192: 29/200690 | AF192: Salary | AG192: GIRLS HOSTEL NO-I | AH192: Unknown 20
S193: VEN000218 | T193: Payment in favour of M/S S. K. COMPUTER | U193: CHQ | AB193: 192 | AC193: 29 | AD193: 400400 | AE193: 29/400400 | AF193: CONTRIBUTION TO PF & GRATUITY | AG193: GIRLS HOSTEL NO-I | AH193: Unknown 21
S194: VEN000219 | T194: Payment in favour of M/S S D ADVANCE COMPUTER CONSULTANTS PVT. LTD. | U194: Electronic Payment | V194: AAICS9501P | W194: 164405000188 | X194: ICIC0001644 | Y194: ICICI Bank | Z194: 07AAICS9501P1ZR | AB194: 193 | AC194: 29 | AD194: 401936 | AE194: 29/401936 | AF194: Contingencies incl. Telephone/Stationery etc. | AG194: GIRLS HOSTEL NO-I | AH194: Unknown 22
S195: VEN000220 | T195: Payment in favour of VIKAS PUBLISHING HOUSE PVT. LTD., NEW DELHI | U195: CHQ | AB195: 194 | AC195: 3 | AD195: 200690 | AE195: 3/200690 | AF195: Salary | AG195: ESTABLISHMENT BRANCH | AH195: Unknown 23
S196: VEN000221 | T196: Payment in favour of M/S TYRE GHAR | U196: Electronic Payment | V196: AJUPA2836P | W196: 7520200000716 | X196: BARB0ROHTAK | Y196: Bank of Baroda | Z196: 06AJUPA2836P2ZO | AB196: 195 | AC196: 3 | AD196: 400113 | AE196: 3/400113 | AF196: Remuneration Expenses(Teaching, Non-teaching, Examiners | AG196: ESTABLISHMENT BRANCH | AH196: Unknown 24
S197: VEN000222 | T197: Payment in favour of MEHTA BROTHERS | U197: CHQ | AB197: 196 | AC197: 3 | AD197: 400117 | AE197: 3/400117 | AF197: Contractual Special Services | AG197: ESTABLISHMENT BRANCH
S198: VEN000223 | T198: Payment in favour of M/S SHREE GANESH TRADING CO. | U198: CHQ | AB198: 197 | AC198: 3 | AD198: 400118 | AE198: 3/400118 | AF198: National Appreticeship Promotion Scheme, Govt. of India | AG198: ESTABLISHMENT BRANCH
S199: VEN000224 | T199: Payment in favour of SAROJ PAINTS & HARDWARE STORE | U199: CHQ | AB199: 198 | AC199: 3 | AD199: 400119 | AE199: 3/400119 | AF199: Payment to Adjunct Faculty/Visitng Professors | AG199: ESTABLISHMENT BRANCH
S200: VEN000225 | T200: Payment in favour of M/S GARV GLASS & EQUIPMENT WORKS | U200: Electronic Payment | V200: AJPPS7287P | W200: 32262436756 | X200: SBIN0014633 | Y200: State Bank of India | Z200: 06AJPPS7287P1ZX | AB200: 199 | AC200: 3 | AD200: 400400 | AE200: 3/400400 | AF200: CONTRIBUTION TO PF & GRATUITY | AG200: ESTABLISHMENT BRANCH
... 1676 more rows

Sheet z (hidden)
A1: ACADEMIC BRANCH | B1: ADMINISTRATIVE STAFF COLLEGE | C1: ALUMINI CENTRE | D1: ARCHITECT CELL | E1: BOYS HOSTEL NO. IX | F1: BOYS HOSTEL NO. VIII | G1: BOYS HOSTEL NO. X | H1: BOYS HOSTEL NO-I | I1: BOYS HOSTEL NO-II | J1: BOYS HOSTEL NO-IV | K1: BOYS HOSTEL NO-V | L1: BOYS HOSTEL NO-VI | M1: BOYS HOSTEL NO-VII | N1: BOYS HOSTELNO-III | O1: CAREER COUNSELLING & PLACEMENT CELL | P1: CELL TO CHECK THE MENACE OF SEXUAL HARRASSMENT AND VIOLENT AGT.WOMEN | Q1: CENTRAL INSTRUMENTAL LABORATORY | R1: CENTRE FOR BIOINFORMATICS | S1: CENTRE FOR BIOTECHNOLOGY | T1: CENTRE FOR HARYANA STUDIES | U1: CENTRE FOR MEDICAL BIOTECHNOLOGY | V1: CHAUDHRY RANBIR SINGH CHAIR | W1: CHAUDHRY RANBIR SINGH INSTT.OF SOCIAL AND ECONOMIC CHANGE | X1: CHIEF EDITOR MDU RESEARCH JOURNAL (ARTS) | Y1: COLLEGES BRANCH | Z1: COMPUTER CENTRE | AA1: CONDUCT BRANCH | AB1: CONTROLLER OF EXAMINATION's OFFICE | AC1: CORPORATE RESOURCE CENTRE | AD1: D.D.E---EXAMINATION WING (R III) | AE1: D.D.E---EXAMINATION WING (R IV) | AF1: DEAN STUDENT'S WELFARE | AG1: DEAN, ACADEMIC AFFAIR'S OFFICE | AH1: DEBT,DEPOSITS, REMITTANCES | AI1: DEPARTMENT OF BIOCHEMISTRY | AJ1: DEPARTMENT OF BOTANY | AK1: DEPARTMENT OF CHEMISTRY | AL1: DEPARTMENT OF COMMERCE | AM1: DEPARTMENT OF COMPUTER SCIENCE & APPLICATIONS | AN1: DEPARTMENT OF DEFENCE & STRATEGIC STUDIES | AO1: DEPARTMENT OF ECONOMICS | AP1: DEPARTMENT OF EDUCATION | AQ1: DEPARTMENT OF ENGLISH & FOREIGN LANGUAGES | AR1: DEPARTMENT OF ENVIRONMENTAL SCIENCES | AS1: DEPARTMENT OF FOOD TECHNOLOGY | AT1: DEPARTMENT OF GENETICS | AU1: DEPARTMENT OF GEOGRAPHY | AV1: DEPARTMENT OF HINDI | AW1: DEPARTMENT OF HISTORY | AX1: DEPARTMENT OF JOURNALISM & MASS COMMUNICATION | AY1: DEPARTMENT OF LAW | AZ1: DEPARTMENT OF LIBRARY AND INFORMATION SCIENCE | BA1: DEPARTMENT OF MATHEMATICS | BB1: DEPARTMENT OF MICROBIOLOGY | BC1: DEPARTMENT OF MUSIC | BD1: DEPARTMENT OF PHARMACEUTICAL SCIENCES | BE1: DEPARTMENT OF PHYSICAL EDUCATION | BF1: DEPARTMENT OF PHYSICS | BG1: DEPARTMENT OF POL. SCIENCE | BH1: DEPARTMENT OF PSYCHOLOGY | BI1: DEPARTMENT OF PUBLIC ADMINISTRATION | BJ1: DEPARTMENT OF SANSKRIT,PALI AND PRAKRIT | BK1: DEPARTMENT OF SOCIOLOGY | BL1: DEPARTMENT OF STATISTICS | BM1: DEPARTMENT OF VISUAL ARTS | BN1: DEPARTMENT OF ZOOLOGY | BO1: DEPT OF PHARMACEUTICAL SCI (CENTRAL ANIMAL HOUSE) | BP1: DIGITAL LEARNING INITIATIVES & MONITORING CELL | BQ1: DIRECTORATE OF DISTANCE EDUCATION | BR1: DR AMBEDKAR CHAIR | BS1: DR. MANGAL SEN CHAIR | BT1: DR---DEPARTMENT OF LAW | BU1: DR---DEPARTMENT OF PHARMACEUTICAL SCIENCE | BV1: DR---DEPARTMENTOF BIO-CHEMISTRY | BW1: DR---DEPARTMENTOF BOTANY | BX1: DR---DEPARTMENTOF COMMERCE | BY1: DR---DEPARTMENTOF COMPUTER SCIENCE | BZ1: DR---DEPARTMENTOF ENV.SCIENCE | CA1: DR---DEPARTMENTOF GENETICS | CB1: DR---DEPARTMENTOF MICROBIOLOGY | CC1: DR---DEPARTMENTOF ZOOLOGY | CD1: DR---EXTERNAL RECEIPTS(Plan) | CE1: DR-INSTITUTE OF MGMT STUDIES & RESEARCH | CF1: DR---MISC RECEIPTS | CG1: DR---MISC RECEIPTS (DEVLOPMENT , RESEARCH) | CH1: ENGINEERING CELL | CI1: Environment Sustainability Management (ESM)Cell | CJ1: ESTABLISHMENT BRANCH | CK1: EXAMINATION FEE | CL1: EXTERNAL RECEIPTS | CM1: Foreign Students Cell | CN1: GENERAL ADMINISTRATION BRANCH | CO1: GENERAL BRANCH---FACULTY HOUSE | CP1: GENERAL BRANCH---SANITATION BRANCH | CQ1: GENERAL BRANCH---UNIVERSITY CANTEEN | CR1: GIRLS HOSTEL - X | CS1: GIRLS HOSTEL NO-I | CT1: GIRLS HOSTEL NO-II | CU1: GIRLS HOSTEL NO-III | CV1: GIRLS HOSTEL NO-IV | CW1: GIRLS HOSTEL NO-V | CX1: GIRLS HOSTEL NO-VI | CY1: GIRLS HOSTEL NO-VII | CZ1: GIRLS HOSTEL NO-VIII | DA1: HOSTEL RECEIPTS | DB1: Human Ethics Committee | DC1: IMSAR | DD1: INSTITUE OF MANAGEMENT STUDIES & RESEARCH | DE1: Institute Innovative Council | DF1: INTERNAL QUALITY ASSURANCE CELL (IQAC) | DG1: IPR Cell | DH1: LANDSCAPING & HORTICULTURE | DI1: LEGAL CELL | DJ1: LOAN & ADVANCES | DK1: LUMPSUM PROVISION ON ACCOUNT OF DA/ ARREARS OF REVISION OF PAY SCALE/ ACP ETC. | DL1: MAHARISHI BALMIKI CHAIR | DM1: MAHARISHI DAYANAND CHAIR | DN1: Maharshi dayanand University Faculty Development Centre (MDUFDC) | DO1: MISC.RECEIPTS | DP1: OFFICE OF FINANCE OFFICER AND ACCOUNTS BRANCH | DQ1: OTHER FEES & FINES | DR1: PANDIT DEEN DAYAL UPADHAYAY RESEARCH CHAIR | DS1: PLAN---Construction at Landscaping & Horticulture | DT1: PLAN---Construction at University Campus | DU1: PROCTOR OFFICE | DV1: Professional Consultancy Cell | DW1: PROVOST (BOYS) | DX1: PROVOST (GIRLS) | DY1: PT. JAWAHAR LAL NEHRU CHAIR | DZ1: PUBLIC INFORMATION OFFICE (PIO) | EA1: PUBLIC RELATIONS OFFICE | EB1: PUBLICATION CELL | EC1: PURCHASE & STORES BRANCH | ED1: RASHTRIYA UCCHTAR SHIKSHA ABHIYAN (RUSA) | EE1: RE-EVALUATION & ENTRANCE EXAMINATIONCELL | EF1: REGISTRAR'S OFFICE | EG1: REGISTRATION & SCHOLARSHIP BRANCH | EH1: Research and Development | EI1: RESULT-I BRANCH | EJ1: RESULT-II BRANCH | EK1: SANT KABIR CHAIR | EL1: SECRECY BRANCH | EM1: SFS--- University Institute of Eng. & Tech. | EN1: SFS---DEPARTMENT OF ENG & FOREIGN | EO1: SFS---DEPARTMENT OF ENGLISH & FOREIGN LANG. | EP1: SFS---DEPARTMENT OF MATHEMATICS | EQ1: SFS---DEPARTMENT OF MATHS | ER1: SFS---DEPARTMENT OF PHYSICAL EDU. | ES1: SFS---DEPARTMENT PHYSICAL EDUCATION | ET1: SFS---INSTITUTE OF HOTEL & TOURISM MGT | EU1: SFS---INSTT.OF HOTEL & TOURISM MGT. | EV1: SFS---MISC.EXPENDITURE | EW1: SFS---MISC.RECEIPTS | EX1: SFS---UIET | EY1: SIR CHHOTU RAM CHAIR | EZ1: SPECIAL CELL FOR SC/ST | FA1: SPORTS OFFICE | FB1: STUDENT'S UNION OFFICE | FC1: SURYA KAVI PT.LAKHMI CHAND JI CHAIR | FD1: TRANSPORT OFFICE | FE1: TUITION FEES & FINES | FF1: UNIVERSITY CAMPUS SCHOOL | FG1: UNIVERSITY CENTRE FOR COMPETITIVE EXAMINATIONS | FH1: UNIVERSITY HEALTH CENTRE | FI1: UNIVERSITY INDUSTRY LIAISION CELL | FJ1: UNIVERSITY INSTITUTE OF PUBLIC HEALTH | FK1: UNIVERSITY LIBRARY | FL1: UNIVERSITY OUT REACH PROGRAMME | FM1: UNIVERSITY PRESS | FN1: VICE CHANCELLOR'S OFFICE | FO1: WATCH & WARD OFFICE | FP1: Unknown 01 | FQ1: UGC, CSIR & Other Funding Agencies/Schemes | FR1: UGC, CSIR & Other Funding Agencies/Schemes | FS1: UGC, CSIR & Other Funding Agencies/Schemes | FT1: UGC, CSIR & Other Funding Agencies/Schemes | FU1: UGC, CSIR & Other Funding Agencies/Schemes | FV1: UGC, CSIR & Other Funding Agencies/Schemes | FW1: UGC, CSIR & Other Funding Agencies/Schemes | FX1: Research Projects - CSIR/ICSSR & Other Funding Agencies | FY1: Scholarships, Stipends & Prizes | FZ1: Scholarships, Stipends & Prizes | GA1: Internal Receipts Development Fee | GB1: Internal Receipts Development Fee | GC1: External Receipts | GD1: UGC, CSIR & Other Funding Agencies/Schemes - Expenditure | GE1: UGC, CSIR & Other Funding Agencies/Schemes - Expenditure | GF1: UGC, CSIR & Other Funding Agencies/Schemes - Expenditure | GG1: UGC, CSIR & Other Funding Agencies/Schemes - Expenditure | GH1: UGC, CSIR & Other Funding Agencies/Schemes - Expenditure | GI1: UGC, CSIR & Other Funding Agencies/Schemes - Expenditure | GJ1: UGC, CSIR & Other Funding Agencies/Schemes - Expenditure | GK1: UGC, CSIR & Other Funding Agencies/Schemes - Expenditure | GL1: Scholarships, Stipends & Prizes - Expenditure | GM1: Scholarships, Stipends & Prizes - Expenditure | GN1: Common Budget Head
A2: 4/200690 - Salary | B2: 108/401936 - Contingencies incl. Telephone/Stationery etc. | C2: 24/401932 - Misc. Expenditure | D2: 18/200690 - Salary | E2: 121/400113 - Remuneration Expenses(Teaching, Non-teaching, Examiners | F2: 120/400113 - Remuneration Expenses(Teaching, Non-teaching, Examiners | G2: 138/400113 - Remuneration Expenses(Teaching, Non-teaching, Examiners | H2: 38/200690 - Salary | I2: 39/200690 - Salary | J2: 41/400113 - Remuneration Expenses(Teaching, Non-teaching, Examiners | K2: 42/400113 - Remuneration Expenses(Teaching, Non-teaching, Examiners | L2: 43/400113 - Remuneration Expenses(Teaching, Non-teaching, Examiners | M2: 117/400113 - Remuneration Expenses(Teaching, Non-teaching, Examiners | N2: 40/200690 - Salary | O2: 25/401936 - Contingencies incl. Telephone/Stationery etc. | P2: 105/401936 - Contingencies incl. Telephone/Stationery etc. | Q2: 123/100160 - Lab Equipments & Apparatus (NR) | R2: 83/100160 - Lab Equipments & Apparatus (NR) | S2: 80/100160 - Lab Equipments & Apparatus (NR) | T2: 104/100082 - Books/ Journals/ other knowledge resources (NR) | U2: 82/100160 - Lab Equipments & Apparatus (NR) | V2: 93/100082 - Books/ Journals/ other knowledge resources (NR) | W2: 101/200690 - Salary | X2: 100/401936 - Contingencies incl. Telephone/Stationery etc. | Y2: 5/200690 - Salary | Z2: 96/100105 - Hardware (Computer, Printers, Scaners, CD Writers, etc) | AA2: 14/200690 - Salary | AB2: 10/200690 - Salary | AC2: 106/402001 - Honorarium | AD2: 115/400113 - Remuneration Expenses(Teaching, Non-teaching, Examiners | AE2: 116/400113 - Remuneration Expenses(Teaching, Non-teaching, Examiners | AF2: 22/200690 - Salary | AG2: 50/401936 - Contingencies incl. Telephone/Stationery etc. | AH2: 508/200305 - Security, Caution & Earnest Money | AI2: 77/100081 - Machinery and Equipments (NR) | AJ2: 74/100081 - Machinery and Equipments (NR) | AK2: 69/100160 - Lab Equipments & Apparatus (NR) | AL2: 67/200690 - Salary | AM2: 73/100105 - Hardware (Computer, Printers, Scaners, CD Writers, etc) | AN2: 65/200690 - Salary | AO2: 60/200690 - Salary | AP2: 84/200690 - Salary | AQ2: 51/200690 - Salary | AR2: 76/100160 - Lab Equipments & Apparatus (NR) | AS2: 81/100160 - Lab Equipments & Apparatus (NR) | AT2: 78/100081 - Machinery and Equipments (NR) | AU2: 63/100160 - Lab Equipments & Apparatus (NR) | AV2: 52/200690 - Salary | AW2: 61/200690 - Salary | AX2: 54/100083 - Setting Of Community Radio Station | AY2: 57/100105 - Hardware (Computer, Printers, Scaners, CD Writers, etc) | AZ2: 66/100006 - Electrical Items (Like electronic watch, TV, VCR, etc) (NR) | BA2: 71/200690 - Salary | BB2: 79/100160 - Lab Equipments & Apparatus (NR) | BC2: 55/100160 - Lab Equipments & Apparatus (NR) | BD2: 86/100082 - Books/ Journals/ other knowledge resources (NR) | BE2: 85/100156 - Sports Equipments (NR) | BF2: 70/100160 - Lab Equipments & Apparatus (NR) | BG2: 58/200690 - Salary | BH2: 64/100006 - Electrical Items (Like electronic watch, TV, VCR, etc) (NR) | BI2: 59/200690 - Salary | BJ2: 53/200690 - Salary | BK2: 62/200690 - Salary | BL2: 72/200690 - Salary | BM2: 56/100160 - Lab Equipments & Apparatus (NR) | BN2: 75/100081 - Machinery and Equipments (NR) | BO2: 118/100160 - Lab Equipments & Apparatus (NR) | BP2: 129/400201 - Honorarium for preparation of reading material | BQ2: 510/300141 - INCOME FROM DDE | BR2: 88/100082 - Books/ Journals/ other knowledge resources (NR) | BS2: 126/100082 - Books/ Journals/ other knowledge resources (NR) | BT2: 514/300158 - Development Fee- INTERNAL RECEIPTS | BU2: 513/300158 - Development Fee- INTERNAL RECEIPTS | BV2: 519/300158 - Development Fee- INTERNAL RECEIPTS | BW2: 516/300158 - Development Fee- INTERNAL RECEIPTS | BX2: 311/401907 - Commission anf Fee Share to NIAM(Agst Income) | BY2: 515/300158 - Development Fee- INTERNAL RECEIPTS | BZ2: 518/300158 - Development Fee- INTERNAL RECEIPTS | CA2: 520/300158 - Development Fee- INTERNAL RECEIPTS | CB2: 521/300158 - Development Fee- INTERNAL RECEIPTS | CC2: 517/300158 - Development Fee- INTERNAL RECEIPTS | CD2: 525/200153 - GRANT-IN-AID GENERAL FROM STATE GOVT. | CE2: 512/300158 - Development Fee- INTERNAL RECEIPTS | CF2: 312/401932 - Misc. Expenditure | CG2: 524/300158 - Development Fee- INTERNAL RECEIPTS | CH2: 16/200690 - Salary | CI2: 135/400200 - In-house Seminars etc. | CJ2: 3/200690 - Salary | CK2: 504/300320 - Exam Fees | CL2: 511/300030 - Grand-in-Aid general from the State Government | CM2: 137/401936 - Contingencies incl. Telephone/Stationery etc. | CN2: 7/200690 - Salary | CO2: 114/100135 - Furniture & Fixtures, Utensils (NR) | CP2: 112/400113 - Remuneration Expenses(Teaching, Non-teaching, Examiners | CQ2: 113/100135 - Furniture & Fixtures, Utensils (NR) | CR2: 119/401936 - Contingencies incl. Telephone/Stationery etc. | CS2: 29/200690 - Salary | CT2: 30/200690 - Salary | CU2: 31/200690 - Salary | CV2: 32/401936 - Contingencies incl. Telephone/Stationery etc. | CW2: 33/401936 - Contingencies incl. Telephone/Stationery etc. | CX2: 34/401936 - Contingencies incl. Telephone/Stationery etc. | CY2: 35/401936 - Contingencies incl. Telephone/Stationery etc. | CZ2: 36/401936 - Contingencies incl. Telephone/Stationery etc. | DA2: 505/300420 - Girls Hostel | DB2: 134/401936 - Contingencies incl. Telephone/Stationery etc. | DC2: 407/200690 - Salary | DD2: 68/100081 - Machinery and Equipments (NR) | DE2: 136/401936 - Contingencies incl. Telephone/Stationery etc. | DF2: 102/100081 - Machinery and Equipments (NR) | DG2: 133/401936 - Contingencies incl. Telephone/Stationery etc. | DH2: 17/200690 - Salary | DI2: 21/200690 - Salary | DJ2: 509/201665 - Personal Computer Loan | DK2: 109/200701 - DA/Arrear of Pay Scale/ACP(NT) | DL2: 90/100082 - Books/ Journals/ other knowledge resources (NR) | DM2: 91/100082 - Books/ Journals/ other knowledge resources (NR) | DN2: 130/401936 - Contingencies incl. Telephone/Stationery etc. | DO2: 506/300171 - RTI Fee | DP2: 9/100081 - Machinery and Equipments (NR) | DQ2: 503/300154 - Registration/ Continuation Fee | DR2: 128/100082 - Books/ Journals/ other knowledge resources (NR) | DS2: 202/100161 - Landscaping & Horticulture | DT2: 201/100206 - Construction work (Continued) | DU2: 23/200690 - Salary | DV2: 131/401936 - Contingencies incl. Telephone/Stationery etc. | DW2: 37/200690 - Salary | DX2: 28/100135 - Furniture & Fixtures, Utensils (NR) | DY2: 89/100082 - Books/ Journals/ other knowledge resources (NR) | DZ2: 103/401936 - Contingencies incl. Telephone/Stationery etc. | EA2: 45/200690 - Salary | EB2: 48/200690 - Salary | EC2: 8/100006 - Electrical Items (Like electronic watch, TV, VCR, etc) (NR) | ED2: 318/100093 - New Construction (RUSA) | EE2: 15/200690 - Salary | EF2: 2/200690 - Salary | EG2: 6/200690 - Salary | EH2: 132/401936 - Contingencies incl. Telephone/Stationery etc. | EI2: 11/200690 - Salary | EJ2: 12/200690 - Salary | EK2: 94/100082 - Books/ Journals/ other knowledge resources (NR) | EL2: 13/200690 - Salary | EM2: 529/300111 - Income fron Self Financing Scheme | EN2: 402/200690 - Salary | EO2: 526/300111 - Income fron Self Financing Scheme | EP2: 528/300111 - Income fron Self Financing Scheme | EQ2: 401/100105 - Hardware (Computer, Printers, Scaners, CD Writers, etc) | ER2: 404/100081 - Machinery and Equipments (NR) | ES2: 527/300111 - Income fron Self Financing Scheme | ET2: 405/100082 - Books/ Journals/ other knowledge resources (NR) | EU2: 530/300111 - Income fron Self Financing Scheme | EV2: 406/200431 - Contribution to Revoling Fund | EW2: 531/300111 - Income fron Self Financing Scheme | EX2: 403/100082 - Books/ Journals/ other knowledge resources (NR) | EY2: 87/100082 - Books/ Journals/ other knowledge resources (NR) | EZ2: 98/200690 - Salary | FA2: 44/200690 - Salary | FB2: 27/200690 - Salary | FC2: 92/100082 - Books/ Journals/ other knowledge resources (NR) | FD2: 19/100052 - Purchase of Vehicles (NR) | FE2: 501/200361 - Library Fund | FF2: 502/300140 - Tuition Fee | FG2: 97/100082 - Books/ Journals/ other knowledge resources (NR) | FH2: 46/100160 - Lab Equipments & Apparatus (NR) | FI2: 107/402001 - Honorarium | FJ2: 122/100160 - Lab Equipments & Apparatus (NR) | FK2: 49/100081 - Machinery and Equipments (NR) | FL2: 125/100081 - Machinery and Equipments (NR) | FM2: 47/100081 - Machinery and Equipments (NR) | FN2: 1/200690 - Salary | FO2: 20/200690 - Salary | FP2: 532/30011 - ???? | FQ2: 532/300427 - Development Grant | FR2: 532/300429 - Research & other Schemes (Major/Minor Research Projects, TF, BWP, JRF etc.) | FS2: 532/300430 - Un-assigned Grant (Merged Schemes) | FT2: 532/300431 - Refresher Course | FU2: 532/300432 - S.A.P/D.R.S | FV2: 532/300433 - Rajiv Gandhi National Scholarship | FW2: 532/300434 - Misc. Schemes | FX2: 533/300437 - Research Projects of CSIR/ICSSR & other Funding Agencies | FY2: 534/300442 - Govt. of Haryana | FZ2: 534/300443 - Others | GA2: 545/300158 - Development Fee- INTERNAL RECEIPTS | GB2: 546/300158 - Development Fee- INTERNAL RECEIPTS | GC2: 547/200153 - GRANT-IN-AID GENERAL FROM STATE GOVT. | GD2: 601/100090 - University Buildings | GE2: 601/500021 - Research and other Schemes | GF2: 601/500022 - Un-assigned Grant (Merged Schemes) | GG2: 601/500023 - Refresher Course | GH2: 601/500024 - S.A.P/D.R.S | GI2: 601/500025 - Rajiv Gandhi National Scholarship | GJ2: 601/500026 - Misc Expenses | GK2: 602/500032 - Research Project of CSIR/ICSSR & other Funding Agencies | GL2: 603/500037 - Govt of Haryana | GM2: 603/500038 - Others | GN2: 9/401966 - E-Governance Charges
A3: 4/400113 - Remuneration Expenses(Teaching, Non-teaching, Examiners | B3: 108/402000 - Ext. Lectures/In House Seminars Etc. | C3: 24/401936 - Contingencies incl. Telephone/Stationery etc. | D3: 18/400400 - CONTRIBUTION TO PF & GRATUITY | E3: 121/401936 - Contingencies incl. Telephone/Stationery etc. | F3: 120/401936 - Contingencies incl. Telephone/Stationery etc. | G3: 138/401936 - Contingencies incl. Telephone/Stationery etc. | H3: 38/400113 - Remuneration Expenses(Teaching, Non-teaching, Examiners | I3: 39/400113 - Remuneration Expenses(Teaching, Non-teaching, Examiners | J3: 41/401936 - Contingencies incl. Telephone/Stationery etc. | K3: 42/401936 - Contingencies incl. Telephone/Stationery etc. | L3: 43/401936 - Contingencies incl. Telephone/Stationery etc. | M3: 117/401936 - Contingencies incl. Telephone/Stationery etc. | N3: 40/400113 - Remuneration Expenses(Teaching, Non-teaching, Examiners | O3: 25/401993 - Career Counselling and Placement Activities | P3: 105/401944 - Conferences / Symposia/ Workshop | Q3: 123/401760 - Mtc. of Machinery & Equipments | R3: 83/200690 - Salary | S3: 80/200690 - Salary | T3: 104/401936 - Contingencies incl. Telephone/Stationery etc. | U3: 82/200690 - Salary | V3: 93/400006 - Salary of Contractual Staff | W3: 101/400400 - CONTRIBUTION TO PF & GRATUITY | X3: NA | Y3: 5/400113 - Remuneration Expenses(Teaching, Non-teaching, Examiners | Z3: 96/100106 - Software | AA3: 14/400113 - Remuneration Expenses(Teaching, Non-teaching, Examiners | AB3: 10/400400 - CONTRIBUTION TO PF & GRATUITY | AC3: NA | AD3: 115/401936 - Contingencies incl. Telephone/Stationery etc. | AE3: 116/401936 - Contingencies incl. Telephone/Stationery etc. | AF3: 22/400400 - CONTRIBUTION TO PF & GRATUITY | AG3: NA | AH3: 508/200310 - Youth Welfare Fees | AI3: 77/100160 - Lab Equipments & Apparatus (NR) | AJ3: 74/100160 - Lab Equipments & Apparatus (NR) | AK3: 69/200690 - Salary | AL3: 67/400400 - CONTRIBUTION TO PF & GRATUITY | AM3: 73/100106 - Software | AN3: 65/400400 - CONTRIBUTION TO PF & GRATUITY | AO3: 60/400400 - CONTRIBUTION TO PF & GRATUITY | AP3: 84/400400 - CONTRIBUTION TO PF & GRATUITY | AQ3: 51/400400 - CONTRIBUTION TO PF & GRATUITY | AR3: 76/200690 - Salary | AS3: 81/200690 - Salary | AT3: 78/100160 - Lab Equipments & Apparatus (NR) | AU3: 63/200690 - Salary | AV3: 52/400400 - CONTRIBUTION TO PF & GRATUITY | AW3: 61/400400 - CONTRIBUTION TO PF & GRATUITY | AX3: 54/100084 - Setting Of T.V Station | AY3: 57/100106 - Software | AZ3: 66/200690 - Salary | BA3: 71/400400 - CONTRIBUTION TO PF & GRATUITY | BB3: 79/200690 - Salary | BC3: 55/200690 - Salary | BD3: 86/100160 - Lab Equipments & Apparatus (NR) | BE3: 85/200690 - Salary | BF3: 70/200690 - Salary | BG3: 58/400400 - CONTRIBUTION TO PF & GRATUITY | BH3: 64/100160 - Lab Equipments & Apparatus (NR) | BI3: 59/400400 - CONTRIBUTION TO PF & GRATUITY | BJ3: 53/400113 - Remuneration Expenses(Teaching, Non-teaching, Examiners | BK3: 62/400400 - CONTRIBUTION TO PF & GRATUITY | BL3: 72/400400 - CONTRIBUTION TO PF & GRATUITY | BM3: 56/200690 - Salary | BN3: 75/100160 - Lab Equipments & Apparatus (NR) | BO3: 118/401936 - Contingencies incl. Telephone/Stationery etc. | BP3: 129/401936 - Contingencies incl. Telephone/Stationery etc. | BQ3: 99/100105 - Hardware (Computer, Printers, Scaners, CD Writers, etc) | BR3: 88/200690 - Salary | BS3: 126/200690 - Salary | BT3: NA | BU3: NA | BV3: NA | BW3: NA | BX3: 522/300158 - Development Fee- INTERNAL RECEIPTS | BY3: NA | BZ3: NA | CA3: NA | CB3: NA | CC3: NA | CD3: NA | CE3: NA | CF3: NA | CG3: NA | CH3: 16/400117 - Contractual Special Services | CI3: 135/401936 - Contingencies incl. Telephone/Stationery etc. | CJ3: 3/400113 - Remuneration Expenses(Teaching, Non-teaching, Examiners | CK3: 504/300340 - Duplicate Certificate Fee | CL3: NA | CM3: 137/401947 - Co-curricular Activities/Visits | CN3: 7/400113 - Remuneration Expenses(Teaching, Non-teaching, Examiners | CO3: 114/401936 - Contingencies incl. Telephone/Stationery etc. | CP3: 112/401936 - Contingencies incl. Telephone/Stationery etc. | CQ3: 113/400113 - Remuneration Expenses(Teaching, Non-teaching, Examiners | CR3: NA | CS3: 29/400400 - CONTRIBUTION TO PF & GRATUITY | CT3: 30/400400 - CONTRIBUTION TO PF & GRATUITY | CU3: 31/400400 - CONTRIBUTION TO PF & GRATUITY | CV3: NA | CW3: NA | CX3: NA | CY3: NA | CZ3: NA | DA3: 505/300421 - Boys Hostel | DB3: 134/401942 - Conferences/ Symposia/ Workshop (National/ International) | DC3: 407/400400 - CONTRIBUTION TO PF & GRATUITY | DD3: 68/100082 - Books/ Journals/ other knowledge resources (NR) | DE3: 136/401942 - Conferences/ Symposia/ Workshop (National/ International) | DF3: 102/100105 - Hardware (Computer, Printers, Scaners, CD Writers, etc) | DG3: 133/401942 - Conferences/ Symposia/ Workshop (National/ International) | DH3: 17/400400 - CONTRIBUTION TO PF & GRATUITY | DI3: 21/400400 - CONTRIBUTION TO PF & GRATUITY | DJ3: 509/201670 - House Building Loan | DK3: 109/200702 - DA/Arrear of Pay Scale/ACP(T) | DL3: 90/400200 - In-house Seminars etc. | DM3: 91/400200 - In-house Seminars etc. | DN3: 130/401944 - Conferences / Symposia/ Workshop | DO3: 506/300331 - Income From Colleges (Application Fee / Subject/Affilation) | DP3: 9/100165 - Techno Mgt. Fee | DQ3: 503/300260 - Migration Fee | DR3: 128/400200 - In-house Seminars etc. | DS3: NA | DT3: 201/100208 - Development Charges demanded by MCR | DU3: 23/401936 - Contingencies incl. Telephone/Stationery etc. | DV3: 131/401942 - Conferences/ Symposia/ Workshop (National/ International) | DW3: 37/400400 - CONTRIBUTION TO PF & GRATUITY | DX3: 28/401936 - Contingencies incl. Telephone/Stationery etc. | DY3: 89/200690 - Salary | DZ3: NA | EA3: 45/400400 - CONTRIBUTION TO PF & GRATUITY | EB3: 48/400400 - CONTRIBUTION TO PF & GRATUITY | EC3: 8/100081 - Machinery and Equipments (NR) | ED3: 318/100094 - Upgradation & Rennovation (RUSA) | EE3: 15/400113 - Remuneration Expenses(Teaching, Non-teaching, Examiners | EF3: 2/400400 - CONTRIBUTION TO PF & GRATUITY | EG3: 6/400113 - Remuneration Expenses(Teaching, Non-teaching, Examiners | EH3: 132/401942 - Conferences/ Symposia/ Workshop (National/ International) | EI3: 11/400113 - Remuneration Expenses(Teaching, Non-teaching, Examiners | EJ3: 12/400113 - Remuneration Expenses(Teaching, Non-teaching, Examiners | EK3: 94/400200 - In-house Seminars etc. | EL3: 13/400113 - Remuneration Expenses(Teaching, Non-teaching, Examiners | EM3: NA | EN3: NA | EO3: NA | EP3: NA | EQ3: 401/100106 - Software | ER3: 404/200690 - Salary | ES3: NA | ET3: 405/100135 - Furniture & Fixtures, Utensils (NR) | EU3: NA | EV3: 406/200432 - Lump-sum Provision for Medical Reim & LTC etc | EW3: NA | EX3: 403/100106 - Software | EY3: 87/200690 - Salary | EZ3: 98/400400 - CONTRIBUTION TO PF & GRATUITY | FA3: 44/400400 - CONTRIBUTION TO PF & GRATUITY | FB3: 27/400400 - CONTRIBUTION TO PF & GRATUITY | FC3: 92/400200 - In-house Seminars etc. | FD3: 19/200690 - Salary | FE3: 501/300140 - Tuition Fee | FF3: 502/300150 - Admission Fee | FG3: 97/100105 - Hardware (Computer, Printers, Scaners, CD Writers, etc) | FH3: 46/200690 - Salary | FI3: NA | FJ3: 122/200690 - Salary | FK3: 49/100082 - Books/ Journals/ other knowledge resources (NR) | FL3: 125/100082 - Books/ Journals/ other knowledge resources (NR) | FM3: 47/200690 - Salary | FN3: 1/400400 - CONTRIBUTION TO PF & GRATUITY | FO3: 20/400113 - Remuneration Expenses(Teaching, Non-teaching, Examiners | FP3: NA | FQ3: NA | FR3: NA | FS3: NA | FT3: NA | FU3: NA | FV3: NA | FW3: NA | FX3: NA | FY3: NA | FZ3: NA | GA3: NA | GB3: NA | GC3: NA | GD3: NA | GE3: NA | GF3: NA | GG3: NA | GH3: NA | GI3: NA | GJ3: NA | GK3: NA | GL3: NA | GM3: NA | GN3: NA
A4: 4/400400 - CONTRIBUTION TO PF & GRATUITY | B4: 108/402001 - Honorarium | C4: 24/402001 - Honorarium | D4: 18/401936 - Contingencies incl. Telephone/Stationery etc. | H4: 38/400400 - CONTRIBUTION TO PF & GRATUITY | I4: 39/400400 - CONTRIBUTION TO PF & GRATUITY | N4: 40/400400 - CONTRIBUTION TO PF & GRATUITY | Q4: 123/401936 - Contingencies incl. Telephone/Stationery etc. | R4: 83/400400 - CONTRIBUTION TO PF & GRATUITY | S4: 80/400400 - CONTRIBUTION TO PF & GRATUITY | T4: 104/401944 - Conferences / Symposia/ Workshop | U4: 82/400400 - CONTRIBUTION TO PF & GRATUITY | V4: 93/401932 - Misc. Expenditure | W4: 101/401936 - Contingencies incl. Telephone/Stationery etc. | Y4: 5/400400 - CONTRIBUTION TO PF & GRATUITY | Z4: 96/200690 - Salary | AA4: 14/400400 - CONTRIBUTION TO PF & GRATUITY | AB4: 10/401620 - Material & Supply(printing of question papers and other Exam | AD4: 115/402022 - Outsourcing Spl. services(Computerization (IT)) | AE4: 116/402022 - Outsourcing Spl. services(Computerization (IT)) | AF4: 22/401936 - Contingencies incl. Telephone/Stationery etc. | AH4: 508/200311 - Holiday Home Fees | AI4: 77/200690 - Salary | AJ4: 74/200690 - Salary | AK4: 69/400400 - CONTRIBUTION TO PF & GRATUITY | AL4: 67/401936 - Contingencies incl. Telephone/Stationery etc. | AM4: 73/200690 - Salary | AN4: 65/401936 - Contingencies incl. Telephone/Stationery etc. | AO4: 60/401936 - Contingencies incl. Telephone/Stationery etc. | AP4: 84/401936 - Contingencies incl. Telephone/Stationery etc. | AQ4: 51/401936 - Contingencies incl. Telephone/Stationery etc. | AR4: 76/400400 - CONTRIBUTION TO PF & GRATUITY | AS4: 81/400400 - CONTRIBUTION TO PF & GRATUITY | AT4: 78/200690 - Salary | AU4: 63/400400 - CONTRIBUTION TO PF & GRATUITY | AV4: 52/401936 - Contingencies incl. Telephone/Stationery etc. | AW4: 61/401936 - Contingencies incl. Telephone/Stationery etc. | AX4: 54/100160 - Lab Equipments & Apparatus (NR) | AY4: 57/200690 - Salary | AZ4: 66/400400 - CONTRIBUTION TO PF & GRATUITY | BA4: 71/401760 - Mtc. of Machinery & Equipments | BB4: 79/400400 - CONTRIBUTION TO PF & GRATUITY | BC4: 55/400400 - CONTRIBUTION TO PF & GRATUITY | BD4: 86/200690 - Salary | BE4: 85/400400 - CONTRIBUTION TO PF & GRATUITY | BF4: 70/400400 - CONTRIBUTION TO PF & GRATUITY | BG4: 58/401936 - Contingencies incl. Telephone/Stationery etc. | BH4: 64/200690 - Salary | BI4: 59/401936 - Contingencies incl. Telephone/Stationery etc. | BJ4: 53/400400 - CONTRIBUTION TO PF & GRATUITY | BK4: 62/401936 - Contingencies incl. Telephone/Stationery etc. | BL4: 72/401760 - Mtc. of Machinery & Equipments | BM4: 56/400400 - CONTRIBUTION TO PF & GRATUITY | BN4: 75/200690 - Salary | BP4: 129/401942 - Conferences/ Symposia/ Workshop (National/ International) | BQ4: 99/100106 - Software | BR4: 88/400200 - In-house Seminars etc. | BS4: 126/400200 - In-house Seminars etc. | CH4: 16/400400 - CONTRIBUTION TO PF & GRATUITY | CI4: 135/401942 - Conferences/ Symposia/ Workshop (National/ International) | CJ4: 3/400117 - Contractual Special Services | CK4: 504/300350 - Re-evaluation/Re-Checking Fee | CM4: 137/401949 - Academic Activities | CN4: 7/400400 - CONTRIBUTION TO PF & GRATUITY | CQ4: 113/401936 - Contingencies incl. Telephone/Stationery etc. | CS4: 29/401936 - Contingencies incl. Telephone/Stationery etc. | CT4: 30/401936 - Contingencies incl. Telephone/Stationery etc. | CU4: 31/401936 - Contingencies incl. Telephone/Stationery etc. | DC4: 407/401936 - Contingencies incl. Telephone/Stationery etc. | DD4: 68/100135 - Furniture & Fixtures, Utensils (NR) | DE4: 136/401945 - Innovative Project | DF4: 102/100106 - Software | DG4: 133/401943 - Filling Patent | DH4: 17/401936 - Contingencies incl. Telephone/Stationery etc. | DI4: 21/401355 - Legal Expenses | DJ4: 509/201675 - Conveyance Loan | DL4: 90/401936 - Contingencies incl. Telephone/Stationery etc. | DM4: 91/401936 - Contingencies incl. Telephone/Stationery etc. | DN4: 130/402001 - Honorarium | DO4: 506/300460 - Sale Proceeds of University Canteen | DP4: 9/100310 - Youth Welfare Fees | DQ4: 503/300270 - Medical Fee | DR4: 128/401936 - Contingencies incl. Telephone/Stationery etc. | DT4: 201/100209 - Municipal Tax | DW4: 37/401936 - Contingencies incl. Telephone/Stationery etc. | DY4: 89/400200 - In-house Seminars etc. | EA4: 45/400710 - Advertisement Expenses | EB4: 48/401936 - Contingencies incl. Telephone/Stationery etc. | EC4: 8/100105 - Hardware (Computer, Printers, Scaners, CD Writers, etc) | ED4: 318/100095 - New Equipment/Facility (RUSA) | EE4: 15/400400 - CONTRIBUTION TO PF & GRATUITY | EF4: 2/401936 - Contingencies incl. Telephone/Stationery etc. | EG4: 6/400400 - CONTRIBUTION TO PF & GRATUITY | EI4: 11/400400 - CONTRIBUTION TO PF & GRATUITY | EJ4: 12/400400 - CONTRIBUTION TO PF & GRATUITY | EK4: 94/401936 - Contingencies incl. Telephone/Stationery etc. | EL4: 13/400400 - CONTRIBUTION TO PF & GRATUITY | EQ4: 401/200690 - Salary | ER4: 404/400400 - CONTRIBUTION TO PF & GRATUITY | ET4: 405/100160 - Lab Equipments & Apparatus (NR) | EX4: 403/100135 - Furniture & Fixtures, Utensils (NR) | EY4: 87/400400 - CONTRIBUTION TO PF & GRATUITY | EZ4: 98/401936 - Contingencies incl. Telephone/Stationery etc. | FA4: 44/401936 - Contingencies incl. Telephone/Stationery etc. | FB4: 27/404872 - Grand To Student Union | FC4: 92/401936 - Contingencies incl. Telephone/Stationery etc. | FD4: 19/400113 - Remuneration Expenses(Teaching, Non-teaching, Examiners | FE4: 501/300150 - Admission Fee | FF4: 502/300154 - Registration/ Continuation Fee | FG4: 97/401936 - Contingencies incl. Telephone/Stationery etc. | FH4: 46/400400 - CONTRIBUTION TO PF & GRATUITY | FJ4: 122/401760 - Mtc. of Machinery & Equipments | FK4: 49/100105 - Hardware (Computer, Printers, Scaners, CD Writers, etc) | FL4: 125/400200 - In-house Seminars etc. | FM4: 47/400400 - CONTRIBUTION TO PF & GRATUITY | FN4: 1/401936 - Contingencies incl. Telephone/Stationery etc. | FO4: 20/400400 - CONTRIBUTION TO PF & GRATUITY
A5: 4/400604 - Membership fees to various bodies | H5: 38/401936 - Contingencies incl. Telephone/Stationery etc. | I5: 39/401936 - Contingencies incl. Telephone/Stationery etc. | N5: 40/401936 - Contingencies incl. Telephone/Stationery etc. | Q5: 123/402010 - Chemicals/ Glassware Plasticware | R5: 83/401760 - Mtc. of Machinery & Equipments | S5: 80/401760 - Mtc. of Machinery & Equipments | T5: 104/402001 - Honorarium | U5: 82/401760 - Mtc. of Machinery & Equipments | V5: 93/401936 - Contingencies incl. Telephone/Stationery etc. | Y5: 5/401936 - Contingencies incl. Telephone/Stationery etc. | Z5: 96/400007 - Traning of Employees | AA5: 14/401936 - Contingencies incl. Telephone/Stationery etc. | AB5: 10/401936 - Contingencies incl. Telephone/Stationery etc. | AF5: 22/401990 - Sports Stipends to Students | AH5: 508/200350 - Sports council fee | AI5: 77/400400 - CONTRIBUTION TO PF & GRATUITY | AJ5: 74/400400 - CONTRIBUTION TO PF & GRATUITY | AK5: 69/401760 - Mtc. of Machinery & Equipments | AM5: 73/400400 - CONTRIBUTION TO PF & GRATUITY | AR5: 76/401760 - Mtc. of Machinery & Equipments | AS5: 81/401760 - Mtc. of Machinery & Equipments | AT5: 78/400400 - CONTRIBUTION TO PF & GRATUITY | AU5: 63/401936 - Contingencies incl. Telephone/Stationery etc. | AW5: 61/402002 - Archeological Works/History Tours | AX5: 54/200690 - Salary | AY5: 57/400113 - Remuneration Expenses(Teaching, Non-teaching, Examiners | AZ5: 66/401760 - Mtc. of Machinery & Equipments | BA5: 71/401936 - Contingencies incl. Telephone/Stationery etc. | BB5: 79/401760 - Mtc. of Machinery & Equipments | BC5: 55/401936 - Contingencies incl. Telephone/Stationery etc. | BD5: 86/400400 - CONTRIBUTION TO PF & GRATUITY | BE5: 85/401936 - Contingencies incl. Telephone/Stationery etc. | BF5: 70/401760 - Mtc. of Machinery & Equipments | BH5: 64/400400 - CONTRIBUTION TO PF & GRATUITY | BJ5: 53/401936 - Contingencies incl. Telephone/Stationery etc. | BK5: 62/402004 - Field Works/Research Laboratory/other scheme | BL5: 72/401936 - Contingencies incl. Telephone/Stationery etc. | BM5: 56/401936 - Contingencies incl. Telephone/Stationery etc. | BN5: 75/400400 - CONTRIBUTION TO PF & GRATUITY | BQ5: 99/200690 - Salary | BR5: 88/400400 - CONTRIBUTION TO PF & GRATUITY | BS5: 126/400400 - CONTRIBUTION TO PF & GRATUITY | CH5: 16/400995 - Electricity Charges (Payment to (UHBVNL) | CI5: 135/402004 - Field Works/Research Laboratory/other scheme | CJ5: 3/400118 - National Appreticeship Promotion Scheme, Govt. of India | CK5: 504/300360 - Sale of Answer Books & Waster Paper etc. | CM5: 137/402005 - Exchange Programme/MOU | CN5: 7/401936 - Contingencies incl. Telephone/Stationery etc. | DD5: 68/200690 - Salary | DF5: 102/400117 - Contractual Special Services | DH5: 17/401974 - Plant, Nursery and Plants Maintenance | DI5: 21/401936 - Contingencies incl. Telephone/Stationery etc. | DJ5: 509/201680 - Wheat loan | DL5: 90/402001 - Honorarium | DM5: 91/402001 - Honorarium | DO5: 506/300470 - Income from Vehicles | DP5: 9/100311 - Holiday Home Fees | DQ5: 503/300280 - Misc. Fee | DR5: 128/402001 - Honorarium | DY5: 89/400400 - CONTRIBUTION TO PF & GRATUITY | EA5: 45/401936 - Contingencies incl. Telephone/Stationery etc. | EC5: 8/100106 - Software | EE5: 15/401936 - Contingencies incl. Telephone/Stationery etc. | EG5: 6/401936 - Contingencies incl. Telephone/Stationery etc. | EI5: 11/401936 - Contingencies incl. Telephone/Stationery etc. | EJ5: 12/401936 - Contingencies incl. Telephone/Stationery etc. | EK5: 94/402001 - Honorarium | EL5: 13/401936 - Contingencies incl. Telephone/Stationery etc. | EQ5: 401/400400 - CONTRIBUTION TO PF & GRATUITY | ET5: 405/200690 - Salary | EX5: 403/100160 - Lab Equipments & Apparatus (NR) | EY5: 87/401936 - Contingencies incl. Telephone/Stationery etc. | FA5: 44/401992 - Sports and Other Activities (Uni. Employee) | FC5: 92/402001 - Honorarium | FD5: 19/400117 - Contractual Special Services | FE5: 501/300160 - Laboratory Fee | FF5: 502/300161 - Building Fee | FG5: 97/402001 - Honorarium | FH5: 46/401936 - Contingencies incl. Telephone/Stationery etc. | FJ5: 122/401936 - Contingencies incl. Telephone/Stationery etc. | FK5: 49/100106 - Software | FL5: 125/400201 - Honorarium for preparation of reading material | FM5: 47/401760 - Mtc. of Machinery & Equipments | FN5: 1/401940 - V.C. Discretionary Fund | FO5: 20/401760 - Mtc. of Machinery & Equipments
A6: 4/401936 - Contingencies incl. Telephone/Stationery etc. | R6: 83/401936 - Contingencies incl. Telephone/Stationery etc. | S6: 80/401936 - Contingencies incl. Telephone/Stationery etc. | T6: 104/404873 - Subsidies given to Institutions/ Organisations | U6: 82/401936 - Contingencies incl. Telephone/Stationery etc. | Y6: 5/401942 - Conferences/ Symposia/ Workshop (National/ International) | Z6: 96/400400 - CONTRIBUTION TO PF & GRATUITY | AA6: 14/401972 - Manufac. of Answer Books and other examination material | AH6: 508/200352 - N.S.S Fee | AI6: 77/401760 - Mtc. of Machinery & Equipments | AJ6: 74/401760 - Mtc. of Machinery & Equipments | AK6: 69/401936 - Contingencies incl. Telephone/Stationery etc. | AM6: 73/401936 - Contingencies incl. Telephone/Stationery etc. | AR6: 76/401936 - Contingencies incl. Telephone/Stationery etc. | AS6: 81/401936 - Contingencies incl. Telephone/Stationery etc. | AT6: 78/401760 - Mtc. of Machinery & Equipments | AX6: 54/400400 - CONTRIBUTION TO PF & GRATUITY | AY6: 57/400400 - CONTRIBUTION TO PF & GRATUITY | AZ6: 66/401936 - Contingencies incl. Telephone/Stationery etc. | BB6: 79/401936 - Contingencies incl. Telephone/Stationery etc. | BD6: 86/401760 - Mtc. of Machinery & Equipments | BF6: 70/401936 - Contingencies incl. Telephone/Stationery etc. | BH6: 64/401760 - Mtc. of Machinery & Equipments | BL6: 72/402006 - Practical Training to Students/Educational Tour | BM6: 56/401998 - Material & Supplies (R) | BN6: 75/401760 - Mtc. of Machinery & Equipments | BQ6: 99/400117 - Contractual Special Services | BR6: 88/401936 - Contingencies incl. Telephone/Stationery etc. | BS6: 126/401936 - Contingencies incl. Telephone/Stationery etc. | CH6: 16/401755 - Repair & Maintenance Building | CI6: 135/402006 - Practical Training to Students/Educational Tour | CJ6: 3/400119 - Payment to Adjunct Faculty/Visitng Professors | CN6: 7/401950 - Liveries/ Uniform | DD6: 68/400006 - Salary of Contractual Staff | DF6: 102/401936 - Contingencies incl. Telephone/Stationery etc. | DJ6: 509/201685 - MARRIAGE LOAN | DO6: 506/300690 - Rent (Shoping Complex,uni Shop,Bank,Etc.) | DP6: 9/100350 - Sports council fee | DQ6: 503/300290 - Lib. Fee & overdue charges | DY6: 89/401936 - Contingencies incl. Telephone/Stationery etc. | EC6: 8/100135 - Furniture & Fixtures, Utensils (NR) | EG6: 6/401946 - University Scholarships | EI6: 11/402022 - Outsourcing Spl. services(Computerization (IT)) | EJ6: 12/402022 - Outsourcing Spl. services(Computerization (IT)) | EQ6: 401/401936 - Contingencies incl. Telephone/Stationery etc. | ET6: 405/400400 - CONTRIBUTION TO PF & GRATUITY | EX6: 403/200690 - Salary | EY6: 87/402000 - Ext. Lectures/In House Seminars Etc. | FD6: 19/400400 - CONTRIBUTION TO PF & GRATUITY | FE6: 501/300170 - Dilapidation Fee | FF6: 502/300270 - Medical Fee | FG6: 97/402007 - Training & Development Activities | FH6: 46/401996 - Medicines | FJ6: 122/402004 - Field Works/Research Laboratory/other scheme | FK6: 49/200690 - Salary | FL6: 125/400885 - Travelling Allowance & Dearness Allowance | FM6: 47/401936 - Contingencies incl. Telephone/Stationery etc. | FO6: 20/401936 - Contingencies incl. Telephone/Stationery etc.
R7: 83/402010 - Chemicals/ Glassware Plasticware | S7: 80/402004 - Field Works/Research Laboratory/other scheme | U7: 82/402004 - Field Works/Research Laboratory/other scheme | Z7: 96/401936 - Contingencies incl. Telephone/Stationery etc. | AH7: 508/200370 - You Red Cross Fee | AI7: 77/401936 - Contingencies incl. Telephone/Stationery etc. | AJ7: 74/401936 - Contingencies incl. Telephone/Stationery etc. | AK7: 69/402010 - Chemicals/ Glassware Plasticware | AM7: 73/402006 - Practical Training to Students/Educational Tour | AR7: 76/402004 - Field Works/Research Laboratory/other scheme | AS7: 81/402004 - Field Works/Research Laboratory/other scheme | AT7: 78/401936 - Contingencies incl. Telephone/Stationery etc. | AX7: 54/401936 - Contingencies incl. Telephone/Stationery etc. | AY7: 57/401936 - Contingencies incl. Telephone/Stationery etc. | BB7: 79/402004 - Field Works/Research Laboratory/other scheme | BD7: 86/401936 - Contingencies incl. Telephone/Stationery etc. | BF7: 70/402010 - Chemicals/ Glassware Plasticware | BH7: 64/401936 - Contingencies incl. Telephone/Stationery etc. | BM7: 56/402006 - Practical Training to Students/Educational Tour | BN7: 75/401936 - Contingencies incl. Telephone/Stationery etc. | BQ7: 99/400400 - CONTRIBUTION TO PF & GRATUITY | BS7: 126/402001 - Honorarium | CH7: 16/401756 - Maintainence of Electricity works | CJ7: 3/400400 - CONTRIBUTION TO PF & GRATUITY | CN7: 7/401952 - Convocation | DD7: 68/400200 - In-house Seminars etc. | DF7: 102/401946 - University Scholarships | DJ7: 509/201687 - FESTIVAL LOAN | DO7: 506/300730 - Income from publications(Journals/Text Books/Forms/Prospectu | DP7: 9/100352 - N.S.S Fee | DY7: 89/402001 - Honorarium | EC7: 8/200690 - Salary | EQ7: 401/402001 - Honorarium | ET7: 405/401936 - Contingencies incl. Telephone/Stationery etc. | EX7: 403/400006 - Salary of Contractual Staff | EY7: 87/402001 - Honorarium | FD7: 19/401760 - Mtc. of Machinery & Equipments | FE7: 501/300180 - Training And Placement Fee (IMSAR) | FF7: 502/300280 - Misc. Fee | FG7: 97/402009 - Short Term Courses (UCCE) | FJ7: 122/402010 - Chemicals/ Glassware Plasticware | FK7: 49/300520 - Binding of Books & Journals etc. | FL7: 125/401565 - Postal Charges | FM7: 47/401998 - Material & Supplies (R)
R8: 83/402014 - Field Study Tours | S8: 80/402010 - Chemicals/ Glassware Plasticware | U8: 82/402010 - Chemicals/ Glassware Plasticware | Z8: 96/402022 - Outsourcing Spl. services(Computerization (IT)) | AH8: 508/200375 - Zonal Youth Fest Fee | AI8: 77/402010 - Chemicals/ Glassware Plasticware | AJ8: 74/402004 - Field Works/Research Laboratory/other scheme | AK8: 69/402012 - Gas Plant | AR8: 76/402010 - Chemicals/ Glassware Plasticware | AS8: 81/402010 - Chemicals/ Glassware Plasticware | AT8: 78/402004 - Field Works/Research Laboratory/other scheme | BB8: 79/402010 - Chemicals/ Glassware Plasticware | BD8: 86/401997 - Purchase of animals, Animals food & Drugs | BH8: 64/402006 - Practical Training to Students/Educational Tour | BN8: 75/402006 - Practical Training to Students/Educational Tour | BQ8: 99/400885 - Travelling Allowance & Dearness Allowance | CH8: 16/401936 - Contingencies incl. Telephone/Stationery etc. | CJ8: 3/401936 - Contingencies incl. Telephone/Stationery etc. | CN8: 7/402032 - Installation of Telephones (NR) | DD8: 68/400400 - CONTRIBUTION TO PF & GRATUITY | DF8: 102/402001 - Honorarium | DJ8: 509/201688 - Other Loan(Personal, Medical Ground) | DO8: 506/300741 - Overhead Charges | DP8: 9/100370 - Youth Red Cross Fee | EC8: 8/400400 - CONTRIBUTION TO PF & GRATUITY | ET8: 405/401942 - Conferences/ Symposia/ Workshop (National/ International) | EX8: 403/400400 - CONTRIBUTION TO PF & GRATUITY | FD8: 19/401936 - Contingencies incl. Telephone/Stationery etc. | FE8: 501/300190 - Special Practical Fee | FF8: 95/100105 - Hardware (Computer, Printers, Scaners, CD Writers, etc) | FK8: 49/400400 - CONTRIBUTION TO PF & GRATUITY | FL8: 125/401936 - Contingencies incl. Telephone/Stationery etc. | FM8: 507/301510 - BINDING & PRINTING CHARGES(OUTSIDE JOB)
Z9: 96/402034 - AMC for Hardware/Software | AH9: 508/200460 - Dr. Radha Krishnan Fund | AJ9: 74/402010 - Chemicals/ Glassware Plasticware | AT9: 78/402010 - Chemicals/ Glassware Plasticware | BD9: 86/402010 - Chemicals/ Glassware Plasticware | BN9: 75/402010 - Chemicals/ Glassware Plasticware | BQ9: 99/401565 - Postal Charges | CJ9: 3/401942 - Conferences/ Symposia/ Workshop (National/ International) | DD9: 68/401936 - Contingencies incl. Telephone/Stationery etc. | DO9: 506/300981 - Interest on Fixed Deposit / Saving Account | DP9: 9/100375 - Zonal Youth Fest Fee | EC9: 8/401760 - Mtc. of Machinery & Equipments | ET9: 405/401998 - Material & Supplies (R) | EX9: 403/400885 - Travelling Allowance & Dearness Allowance | FD9: 19/401980 - POL Charges (Petrol / Diesel Expenses) | FF9: 95/100106 - Software | FK9: 49/401760 - Mtc. of Machinery & Equipments | FL9: 125/401968 - Printing Charges | FM9: 507/301520 - UNIVERSITY JOB(BOOK ADJUSTMENT)
AH10: 508/300165 - TECHNO MGT. FEE | AJ10: 74/402233 - Plants & Tools for Cactus, Nakshatra, Herbal & Spritual Gard | BQ10: 99/401620 - Material & Supply(printing of question papers and other Exam | DD10: 68/401976 - Maintainance of Machinery and equipments | DO10: 506/301110 - Miscellaneous Receipts | DP10: 9/100460 - Dr. Radha Krishnan Fund | EC10: 8/401936 - Contingencies incl. Telephone/Stationery etc. | ET10: 405/402000 - Ext. Lectures/In House Seminars Etc. | EX10: 403/401936 - Contingencies incl. Telephone/Stationery etc. | FF10: 95/200690 - Salary | FK10: 49/401932 - Misc. Expenditure
BQ11: 99/401760 - Mtc. of Machinery & Equipments | DD11: 68/402006 - Practical Training to Students/Educational Tour | DO11: 506/301120 - Sale Proceeds of Fixed Assets | DP11: 9/101665 - Personal Computer Loan | ET11: 405/402006 - Practical Training to Students/Educational Tour | EX11: 403/401938 - Refund of Fee | FF11: 95/400400 - CONTRIBUTION TO PF & GRATUITY | FK11: 49/401936 - Contingencies incl. Telephone/Stationery etc.
BQ12: 99/401936 - Contingencies incl. Telephone/Stationery etc. | DD12: 68/402008 - Training & Placement Funds/Directory | DO12: 506/301240 - Licence Fee ( University Quarters) | DP12: 9/101670 - House Building Loan | EX12: 403/401942 - Conferences/ Symposia/ Workshop (National/ International) | FF12: 95/401936 - Contingencies incl. Telephone/Stationery etc. | FK12: 49/402001 - Honorarium
BQ13: 99/401937 - Refund of security/Caution Money/EMO | DO13: 506/301260 - Guest House/Faculty House/Teachers Club | DP13: 9/101675 - Conveyance Loan | EX13: 403/402006 - Practical Training to Students/Educational Tour | FF13: 95/401938 - Refund of Fee
BQ14: 99/401938 - Refund of Fee | DO14: 506/301270 - Campus Community Club | DP14: 9/101680 - Wheat loan | EX14: 403/402010 - Chemicals/ Glassware Plasticware
BQ15: 99/402018 - Personal Contact programme/TP | DO15: 506/400592 - Leave Salary & Pension Contribution | DP15: 9/101685 - Marriage Loan
BQ16: 99/402026 - Fee share of Computer Agency | DO16: 506/400995 - Electricity Charges (Payment to (UHBVNL) | DP16: 9/101687 - Festival Loan
DP17: 9/101688 - Other Loan(Personal, Medical Ground)
DP18: 9/105001 - Permanent Advance(Imprest)
DP19: 9/200001 - Corpus fund for Pension, Leave Salary
DP20: 9/200690 - Salary
DP21: 9/400050 - Medical Re-imbursement
DP22: 9/400113 - Remuneration Expenses(Teaching, Non-teaching, Examiners
DP23: 9/400114 - Ex-gratia assistance to families of decreased Univ. employee
DP24: 9/400115 - Leave Encashment
DP25: 9/400116 - Leave Travel Concession
DP26: 9/400200 - In-house Seminars etc.
DP27: 9/400400 - CONTRIBUTION TO PF & GRATUITY
DP28: 9/400430 - Gratuity
DP29: 9/400592 - Leave Salary & Pension Contribution
DP30: 9/400885 - Travelling Allowance & Dearness Allowance
DP31: 9/400886 - Travelling Allowance & Dearness Allowance(Examination Wing--
DP32: 9/400887 - Travelling Allowance & Dearness Allowance(Examination Wing--
DP33: 9/401565 - Postal Charges
DP34: 9/401936 - Contingencies incl. Telephone/Stationery etc.
DP35: 9/401937 - Refund of security/Caution Money/EMO
DP36: 9/401938 - Refund of Fee
DP37: 9/401939 - Transfer of fee to Colleges incl. counselling expenditure
DP38: 9/401941 - Contribution to Samarth Corpus Fund
DP39: 9/401942 - Conferences/ Symposia/ Workshop (National/ International)
DP40: 9/401960 - Reserve for Unforseen Exp.
DP41: 9/401962 - Payment to Audit fee
DP42: 9/401966 - E-Governance Charges
DP43: 9/401968 - Printing Charges
DP44: 9/404851 - Depreciation Fund
A46: 1/200690 - Salary | C46: 184 | D46: =TRANSPOSE(A1:GN1) -> ACADEMIC BRANCH | E46: 1 | F46: =INDEX(A2:GN2,,$C$46) -> 546/300158 - Development Fee- INTERNAL RECEIPTS
A47: 1/400400 - CONTRIBUTION TO PF & GRATUITY | D47: ADMINISTRATIVE STAFF COLLEGE | F47: =INDEX(A3:GN3,,$C$46) -> NA
A48: 1/401936 - Contingencies incl. Telephone/Stationery etc. | D48: ALUMINI CENTRE | F48: 0 | G48: =$F$46:INDEX($F$46:$F$88,MATCH("zzzzzz",$F$46:$F$88,1)) -> 
A49: 1/401940 - V.C. Discretionary Fund | D49: ARCHITECT CELL | F49: 0
A50: 10/200690 - Salary | D50: BOYS HOSTEL NO. IX | F50: 0
A51: 10/400400 - CONTRIBUTION TO PF & GRATUITY | D51: BOYS HOSTEL NO. VIII | F51: 0
A52: 10/401620 - Material & Supply(printing of question papers and other Exam | D52: BOYS HOSTEL NO. X | F52: 0
A53: 10/401936 - Contingencies incl. Telephone/Stationery etc. | D53: BOYS HOSTEL NO-I | F53: 0
A54: 100/401936 - Contingencies incl. Telephone/Stationery etc. | D54: BOYS HOSTEL NO-II | F54: 0
A55: 101/200690 - Salary | D55: BOYS HOSTEL NO-IV | F55: 0
A56: 101/400400 - CONTRIBUTION TO PF & GRATUITY | D56: BOYS HOSTEL NO-V | F56: 0
A57: 101/401936 - Contingencies incl. Telephone/Stationery etc. | D57: BOYS HOSTEL NO-VI | F57: 0
A58: 102/100081 - Machinery and Equipments (NR) | D58: BOYS HOSTEL NO-VII | F58: 0
A59: 102/100105 - Hardware (Computer, Printers, Scaners, CD Writers, etc) | D59: BOYS HOSTELNO-III | F59: 0
A60: 102/100106 - Software | D60: CAREER COUNSELLING & PLACEMENT CELL | F60: 0
A61: 102/400117 - Contractual Special Services | D61: CELL TO CHECK THE MENACE OF SEXUAL HARRASSMENT AND VIOLENT AGT.WOMEN | F61: 0
A62: 102/401936 - Contingencies incl. Telephone/Stationery etc. | D62: CENTRAL INSTRUMENTAL LABORATORY | F62: 0
A63: 102/401946 - University Scholarships | D63: CENTRE FOR BIOINFORMATICS | F63: 0
A64: 102/402001 - Honorarium | D64: CENTRE FOR BIOTECHNOLOGY | F64: 0
A65: 103/401936 - Contingencies incl. Telephone/Stationery etc. | D65: CENTRE FOR HARYANA STUDIES | F65: 0
A66: 104/100082 - Books/ Journals/ other knowledge resources (NR) | D66: CENTRE FOR MEDICAL BIOTECHNOLOGY | F66: 0
A67: 104/401936 - Contingencies incl. Telephone/Stationery etc. | D67: CHAUDHRY RANBIR SINGH CHAIR | F67: 0
A68: 104/401944 - Conferences / Symposia/ Workshop | D68: CHAUDHRY RANBIR SINGH INSTT.OF SOCIAL AND ECONOMIC CHANGE | F68: 0
A69: 104/402001 - Honorarium | D69: CHIEF EDITOR MDU RESEARCH JOURNAL (ARTS) | F69: 0
A70: 104/404873 - Subsidies given to Institutions/ Organisations | D70: COLLEGES BRANCH | F70: 0
A71: 105/401936 - Contingencies incl. Telephone/Stationery etc. | D71: COMPUTER CENTRE | F71: 0
A72: 105/401944 - Conferences / Symposia/ Workshop | D72: CONDUCT BRANCH | F72: 0
A73: 106/402001 - Honorarium | D73: CONTROLLER OF EXAMINATION's OFFICE | F73: 0
A74: 107/402001 - Honorarium | D74: CORPORATE RESOURCE CENTRE | F74: 0
A75: 108/401936 - Contingencies incl. Telephone/Stationery etc. | D75: D.D.E---EXAMINATION WING (R III) | F75: 0
A76: 108/402000 - Ext. Lectures/In House Seminars Etc. | D76: D.D.E---EXAMINATION WING (R IV) | F76: 0
A77: 108/402001 - Honorarium | D77: DEAN STUDENT'S WELFARE | F77: 0
A78: 109/200701 - DA/Arrear of Pay Scale/ACP(NT) | D78: DEAN, ACADEMIC AFFAIR'S OFFICE | F78: 0
A79: 109/200702 - DA/Arrear of Pay Scale/ACP(T) | D79: DEBT,DEPOSITS, REMITTANCES | F79: 0
A80: 11/200690 - Salary | D80: DEPARTMENT OF BIOCHEMISTRY | F80: 0
A81: 11/400113 - Remuneration Expenses(Teaching, Non-teaching, Examiners | D81: DEPARTMENT OF BOTANY | F81: 0
A82: 11/400400 - CONTRIBUTION TO PF & GRATUITY | D82: DEPARTMENT OF CHEMISTRY | F82: 0
A83: 11/401936 - Contingencies incl. Telephone/Stationery etc. | D83: DEPARTMENT OF COMMERCE | F83: 0
A84: 11/402022 - Outsourcing Spl. services(Computerization (IT)) | D84: DEPARTMENT OF COMPUTER SCIENCE & APPLICATIONS | F84: 0
A85: 112/400113 - Remuneration Expenses(Teaching, Non-teaching, Examiners | D85: DEPARTMENT OF DEFENCE & STRATEGIC STUDIES | F85: 0
A86: 112/401936 - Contingencies incl. Telephone/Stationery etc. | D86: DEPARTMENT OF ECONOMICS | F86: 0
A87: 113/100135 - Furniture & Fixtures, Utensils (NR) | D87: DEPARTMENT OF EDUCATION | F87: 0
A88: 113/400113 - Remuneration Expenses(Teaching, Non-teaching, Examiners | D88: DEPARTMENT OF ENGLISH & FOREIGN LANGUAGES | F88: 0
A89: 113/401936 - Contingencies incl. Telephone/Stationery etc. | D89: DEPARTMENT OF ENVIRONMENTAL SCIENCES
A90: 114/100135 - Furniture & Fixtures, Utensils (NR) | D90: DEPARTMENT OF FOOD TECHNOLOGY
A91: 114/401936 - Contingencies incl. Telephone/Stationery etc. | D91: DEPARTMENT OF GENETICS
A92: 115/400113 - Remuneration Expenses(Teaching, Non-teaching, Examiners | D92: DEPARTMENT OF GEOGRAPHY
A93: 115/401936 - Contingencies incl. Telephone/Stationery etc. | D93: DEPARTMENT OF HINDI
A94: 115/402022 - Outsourcing Spl. services(Computerization (IT)) | D94: DEPARTMENT OF HISTORY
A95: 116/400113 - Remuneration Expenses(Teaching, Non-teaching, Examiners | D95: DEPARTMENT OF JOURNALISM & MASS COMMUNICATION
A96: 116/401936 - Contingencies incl. Telephone/Stationery etc. | D96: DEPARTMENT OF LAW
A97: 116/402022 - Outsourcing Spl. services(Computerization (IT)) | D97: DEPARTMENT OF LIBRARY AND INFORMATION SCIENCE
A98: 117/400113 - Remuneration Expenses(Teaching, Non-teaching, Examiners | D98: DEPARTMENT OF MATHEMATICS
A99: 117/401936 - Contingencies incl. Telephone/Stationery etc. | D99: DEPARTMENT OF MICROBIOLOGY
A100: 118/100160 - Lab Equipments & Apparatus (NR) | D100: DEPARTMENT OF MUSIC
A101: 118/401936 - Contingencies incl. Telephone/Stationery etc. | D101: DEPARTMENT OF PHARMACEUTICAL SCIENCES
A102: 119/401936 - Contingencies incl. Telephone/Stationery etc. | D102: DEPARTMENT OF PHYSICAL EDUCATION
A103: 12/200690 - Salary | D103: DEPARTMENT OF PHYSICS
A104: 12/400113 - Remuneration Expenses(Teaching, Non-teaching, Examiners | D104: DEPARTMENT OF POL. SCIENCE
A105: 12/400400 - CONTRIBUTION TO PF & GRATUITY | D105: DEPARTMENT OF PSYCHOLOGY
A106: 12/401936 - Contingencies incl. Telephone/Stationery etc. | D106: DEPARTMENT OF PUBLIC ADMINISTRATION
A107: 12/402022 - Outsourcing Spl. services(Computerization (IT)) | D107: DEPARTMENT OF SANSKRIT,PALI AND PRAKRIT
A108: 120/400113 - Remuneration Expenses(Teaching, Non-teaching, Examiners | D108: DEPARTMENT OF SOCIOLOGY
A109: 120/401936 - Contingencies incl. Telephone/Stationery etc. | D109: DEPARTMENT OF STATISTICS
A110: 121/400113 - Remuneration Expenses(Teaching, Non-teaching, Examiners | D110: DEPARTMENT OF VISUAL ARTS
A111: 121/401936 - Contingencies incl. Telephone/Stationery etc. | D111: DEPARTMENT OF ZOOLOGY
A112: 122/100160 - Lab Equipments & Apparatus (NR) | D112: DEPT OF PHARMACEUTICAL SCI (CENTRAL ANIMAL HOUSE)
A113: 122/200690 - Salary | D113: DIGITAL LEARNING INITIATIVES & MONITORING CELL
A114: 122/401760 - Mtc. of Machinery & Equipments | D114: DIRECTORATE OF DISTANCE EDUCATION
A115: 122/401936 - Contingencies incl. Telephone/Stationery etc. | D115: DR AMBEDKAR CHAIR
A116: 122/402004 - Field Works/Research Laboratory/other scheme | D116: DR. MANGAL SEN CHAIR
A117: 122/402010 - Chemicals/ Glassware Plasticware | D117: DR---DEPARTMENT OF LAW
A118: 123/100160 - Lab Equipments & Apparatus (NR) | D118: DR---DEPARTMENT OF PHARMACEUTICAL SCIENCE
A119: 123/401760 - Mtc. of Machinery & Equipments | D119: DR---DEPARTMENTOF BIO-CHEMISTRY
A120: 123/401936 - Contingencies incl. Telephone/Stationery etc. | D120: DR---DEPARTMENTOF BOTANY
A121: 123/402010 - Chemicals/ Glassware Plasticware | D121: DR---DEPARTMENTOF COMMERCE
A122: 125/100081 - Machinery and Equipments (NR) | D122: DR---DEPARTMENTOF COMPUTER SCIENCE
A123: 125/100082 - Books/ Journals/ other knowledge resources (NR) | D123: DR---DEPARTMENTOF ENV.SCIENCE
A124: 125/400200 - In-house Seminars etc. | D124: DR---DEPARTMENTOF GENETICS
A125: 125/400201 - Honorarium for preparation of reading material | D125: DR---DEPARTMENTOF MICROBIOLOGY
A126: 125/400885 - Travelling Allowance & Dearness Allowance | D126: DR---DEPARTMENTOF ZOOLOGY
A127: 125/401565 - Postal Charges | D127: DR---EXTERNAL RECEIPTS(Plan)
A128: 125/401936 - Contingencies incl. Telephone/Stationery etc. | D128: DR-INSTITUTE OF MGMT STUDIES & RESEARCH
A129: 125/401968 - Printing Charges | D129: DR---MISC RECEIPTS
A130: 126/100082 - Books/ Journals/ other knowledge resources (NR) | D130: DR---MISC RECEIPTS (DEVLOPMENT , RESEARCH)
A131: 126/200690 - Salary | D131: ENGINEERING CELL
A132: 126/400200 - In-house Seminars etc. | D132: Environment Sustainability Management (ESM)Cell
A133: 126/400400 - CONTRIBUTION TO PF & GRATUITY | D133: ESTABLISHMENT BRANCH
A134: 126/401936 - Contingencies incl. Telephone/Stationery etc. | D134: EXAMINATION FEE
A135: 126/402001 - Honorarium | D135: EXTERNAL RECEIPTS
A136: 128/100082 - Books/ Journals/ other knowledge resources (NR) | D136: Foreign Students Cell
A137: 128/400200 - In-house Seminars etc. | D137: GENERAL ADMINISTRATION BRANCH
A138: 128/401936 - Contingencies incl. Telephone/Stationery etc. | D138: GENERAL BRANCH---FACULTY HOUSE
A139: 128/402001 - Honorarium | D139: GENERAL BRANCH---SANITATION BRANCH
A140: 129/400201 - Honorarium for preparation of reading material | D140: GENERAL BRANCH---UNIVERSITY CANTEEN
A141: 129/401936 - Contingencies incl. Telephone/Stationery etc. | D141: GIRLS HOSTEL - X
A142: 129/401942 - Conferences/ Symposia/ Workshop (National/ International) | D142: GIRLS HOSTEL NO-I
A143: 13/200690 - Salary | D143: GIRLS HOSTEL NO-II
A144: 13/400113 - Remuneration Expenses(Teaching, Non-teaching, Examiners | D144: GIRLS HOSTEL NO-III
A145: 13/400400 - CONTRIBUTION TO PF & GRATUITY | D145: GIRLS HOSTEL NO-IV
A146: 13/401936 - Contingencies incl. Telephone/Stationery etc. | D146: GIRLS HOSTEL NO-V
A147: 130/401936 - Contingencies incl. Telephone/Stationery etc. | D147: GIRLS HOSTEL NO-VI
A148: 130/401944 - Conferences / Symposia/ Workshop | D148: GIRLS HOSTEL NO-VII
A149: 130/402001 - Honorarium | D149: GIRLS HOSTEL NO-VIII
A150: 131/401936 - Contingencies incl. Telephone/Stationery etc. | D150: HOSTEL RECEIPTS
A151: 131/401942 - Conferences/ Symposia/ Workshop (National/ International) | D151: Human Ethics Committee
A152: 132/401936 - Contingencies incl. Telephone/Stationery etc. | D152: IMSAR
A153: 132/401942 - Conferences/ Symposia/ Workshop (National/ International) | D153: INSTITUE OF MANAGEMENT STUDIES & RESEARCH
A154: 133/401936 - Contingencies incl. Telephone/Stationery etc. | D154: Institute Innovative Council
A155: 133/401942 - Conferences/ Symposia/ Workshop (National/ International) | D155: INTERNAL QUALITY ASSURANCE CELL (IQAC)
A156: 133/401943 - Filling Patent | D156: IPR Cell
A157: 134/401936 - Contingencies incl. Telephone/Stationery etc. | D157: LANDSCAPING & HORTICULTURE
A158: 134/401942 - Conferences/ Symposia/ Workshop (National/ International) | D158: LEGAL CELL
A159: 135/400200 - In-house Seminars etc. | D159: LOAN & ADVANCES
A160: 135/401936 - Contingencies incl. Telephone/Stationery etc. | D160: LUMPSUM PROVISION ON ACCOUNT OF DA/ ARREARS OF REVISION OF PAY SCALE/ ACP ETC.
A161: 135/401942 - Conferences/ Symposia/ Workshop (National/ International) | D161: MAHARISHI BALMIKI CHAIR
A162: 135/402004 - Field Works/Research Laboratory/other scheme | D162: MAHARISHI DAYANAND CHAIR
A163: 135/402006 - Practical Training to Students/Educational Tour | D163: Maharshi dayanand University Faculty Development Centre (MDUFDC)
A164: 136/401936 - Contingencies incl. Telephone/Stationery etc. | D164: MISC.RECEIPTS
A165: 136/401942 - Conferences/ Symposia/ Workshop (National/ International) | D165: OFFICE OF FINANCE OFFICER AND ACCOUNTS BRANCH
A166: 136/401945 - Innovative Project | D166: OTHER FEES & FINES
A167: 137/401936 - Contingencies incl. Telephone/Stationery etc. | D167: PANDIT DEEN DAYAL UPADHAYAY RESEARCH CHAIR
A168: 137/401947 - Co-curricular Activities/Visits | D168: PLAN---Construction at Landscaping & Horticulture
A169: 137/401949 - Academic Activities | D169: PLAN---Construction at University Campus
A170: 137/402005 - Exchange Programme/MOU | D170: PROCTOR OFFICE
A171: 138/400113 - Remuneration Expenses(Teaching, Non-teaching, Examiners | D171: Professional Consultancy Cell
A172: 138/401936 - Contingencies incl. Telephone/Stationery etc. | D172: PROVOST (BOYS)
A173: 14/200690 - Salary | D173: PROVOST (GIRLS)
A174: 14/400113 - Remuneration Expenses(Teaching, Non-teaching, Examiners | D174: PT. JAWAHAR LAL NEHRU CHAIR
A175: 14/400400 - CONTRIBUTION TO PF & GRATUITY | D175: PUBLIC INFORMATION OFFICE (PIO)
A176: 14/401936 - Contingencies incl. Telephone/Stationery etc. | D176: PUBLIC RELATIONS OFFICE
A177: 14/401972 - Manufac. of Answer Books and other examination material | D177: PUBLICATION CELL
A178: 15/200690 - Salary | D178: PURCHASE & STORES BRANCH
A179: 15/400113 - Remuneration Expenses(Teaching, Non-teaching, Examiners | D179: RASHTRIYA UCCHTAR SHIKSHA ABHIYAN (RUSA)
A180: 15/400400 - CONTRIBUTION TO PF & GRATUITY | D180: RE-EVALUATION & ENTRANCE EXAMINATIONCELL
A181: 15/401936 - Contingencies incl. Telephone/Stationery etc. | D181: REGISTRAR'S OFFICE
A182: 16/200690 - Salary | D182: REGISTRATION & SCHOLARSHIP BRANCH
A183: 16/400117 - Contractual Special Services | D183: Research and Development
A184: 16/400400 - CONTRIBUTION TO PF & GRATUITY | D184: RESULT-I BRANCH
A185: 16/400995 - Electricity Charges (Payment to (UHBVNL) | D185: RESULT-II BRANCH
A186: 16/401755 - Repair & Maintenance Building | D186: SANT KABIR CHAIR
A187: 16/401756 - Maintainence of Electricity works | D187: SECRECY BRANCH
A188: 16/401936 - Contingencies incl. Telephone/Stationery etc. | D188: SFS--- University Institute of Eng. & Tech.
A189: 17/200690 - Salary | D189: SFS---DEPARTMENT OF ENG & FOREIGN
A190: 17/400400 - CONTRIBUTION TO PF & GRATUITY | D190: SFS---DEPARTMENT OF ENGLISH & FOREIGN LANG.
A191: 17/401936 - Contingencies incl. Telephone/Stationery etc. | D191: SFS---DEPARTMENT OF MATHEMATICS
A192: 17/401974 - Plant, Nursery and Plants Maintenance | D192: SFS---DEPARTMENT OF MATHS
A193: 18/200690 - Salary | D193: SFS---DEPARTMENT OF PHYSICAL EDU.
A194: 18/400400 - CONTRIBUTION TO PF & GRATUITY | D194: SFS---DEPARTMENT PHYSICAL EDUCATION
A195: 18/401936 - Contingencies incl. Telephone/Stationery etc. | D195: SFS---INSTITUTE OF HOTEL & TOURISM MGT
A196: 19/100052 - Purchase of Vehicles (NR) | D196: SFS---INSTT.OF HOTEL & TOURISM MGT.
A197: 19/200690 - Salary | D197: SFS---MISC.EXPENDITURE
A198: 19/400113 - Remuneration Expenses(Teaching, Non-teaching, Examiners | D198: SFS---MISC.RECEIPTS
A199: 19/400117 - Contractual Special Services | D199: SFS---UIET
A200: 19/400400 - CONTRIBUTION TO PF & GRATUITY | D200: SIR CHHOTU RAM CHAIR
A201: 19/401760 - Mtc. of Machinery & Equipments | D201: SPECIAL CELL FOR SC/ST
... 613 more rows

Sheet y (hidden)
A2: ACADEMIC BRANCH | B2: 54
A3: ADMINISTRATIVE STAFF COLLEGE
A4: ALUMINI CENTRE
A5: ARCHITECT CELL
A6: BOYS HOSTEL NO. IX
A7: BOYS HOSTEL NO. VIII
A8: BOYS HOSTEL NO. X
A9: BOYS HOSTEL NO-I
A10: BOYS HOSTEL NO-II
A11: BOYS HOSTEL NO-IV
A12: BOYS HOSTEL NO-V
A13: BOYS HOSTEL NO-VI
A14: BOYS HOSTEL NO-VII
A15: BOYS HOSTELNO-III
A16: CAREER COUNSELLING & PLACEMENT CELL
A17: CELL TO CHECK THE MENACE OF SEXUAL HARRASSMENT AND VIOLENT AGT.WOMEN
A18: CENTRAL INSTRUMENTAL LABORATORY
A19: CENTRE FOR BIOINFORMATICS
A20: CENTRE FOR BIOTECHNOLOGY
A21: CENTRE FOR HARYANA STUDIES
A22: CENTRE FOR MEDICAL BIOTECHNOLOGY
A23: CHAUDHRY RANBIR SINGH CHAIR
A24: CHAUDHRY RANBIR SINGH INSTT.OF SOCIAL AND ECONOMIC CHANGE
A25: CHIEF EDITOR MDU RESEARCH JOURNAL (ARTS)
A26: COLLEGES BRANCH
A27: COMPUTER CENTRE
A28: CONDUCT BRANCH
A29: CONTROLLER OF EXAMINATION's OFFICE
A30: CORPORATE RESOURCE CENTRE
A31: D.D.E---EXAMINATION WING (R III)
A32: D.D.E---EXAMINATION WING (R IV)
A33: DEAN STUDENT'S WELFARE
A34: DEAN, ACADEMIC AFFAIR'S OFFICE
A35: DEBT,DEPOSITS, REMITTANCES
A36: DEPARTMENT OF BIOCHEMISTRY
A37: DEPARTMENT OF BOTANY
A38: DEPARTMENT OF CHEMISTRY
A39: DEPARTMENT OF COMMERCE
A40: DEPARTMENT OF COMPUTER SCIENCE & APPLICATIONS
A41: DEPARTMENT OF DEFENCE & STRATEGIC STUDIES
A42: DEPARTMENT OF ECONOMICS
A43: DEPARTMENT OF EDUCATION
A44: DEPARTMENT OF ENGLISH & FOREIGN LANGUAGES
A45: DEPARTMENT OF ENVIRONMENTAL SCIENCES
A46: DEPARTMENT OF FOOD TECHNOLOGY
A47: DEPARTMENT OF GENETICS
A48: DEPARTMENT OF GEOGRAPHY
A49: DEPARTMENT OF HINDI
A50: DEPARTMENT OF HISTORY
A51: DEPARTMENT OF JOURNALISM & MASS COMMUNICATION
A52: DEPARTMENT OF LAW
A53: DEPARTMENT OF LIBRARY AND INFORMATION SCIENCE
A54: DEPARTMENT OF MATHEMATICS
A55: DEPARTMENT OF MICROBIOLOGY
A56: DEPARTMENT OF MUSIC
A57: DEPARTMENT OF PHARMACEUTICAL SCIENCES
A58: DEPARTMENT OF PHYSICAL EDUCATION
A59: DEPARTMENT OF PHYSICS
A60: DEPARTMENT OF POL. SCIENCE
A61: DEPARTMENT OF PSYCHOLOGY
A62: DEPARTMENT OF PUBLIC ADMINISTRATION
A63: DEPARTMENT OF SANSKRIT,PALI AND PRAKRIT
A64: DEPARTMENT OF SOCIOLOGY
A65: DEPARTMENT OF STATISTICS
A66: DEPARTMENT OF VISUAL ARTS
A67: DEPARTMENT OF ZOOLOGY
A68: DEPT OF PHARMACEUTICAL SCI (CENTRAL ANIMAL HOUSE)
A69: DIGITAL LEARNING INITIATIVES & MONITORING CELL
A70: DIRECTORATE OF DISTANCE EDUCATION
A71: DR AMBEDKAR CHAIR
A72: DR. MANGAL SEN CHAIR
A73: DR---DEPARTMENT OF LAW
A74: DR---DEPARTMENT OF PHARMACEUTICAL SCIENCE
A75: DR---DEPARTMENTOF BIO-CHEMISTRY
A76: DR---DEPARTMENTOF BOTANY
A77: DR---DEPARTMENTOF COMMERCE
A78: DR---DEPARTMENTOF COMPUTER SCIENCE
A79: DR---DEPARTMENTOF ENV.SCIENCE
A80: DR---DEPARTMENTOF GENETICS
A81: DR---DEPARTMENTOF MICROBIOLOGY
A82: DR---DEPARTMENTOF ZOOLOGY
A83: DR---EXTERNAL RECEIPTS(Plan)
A84: DR-INSTITUTE OF MGMT STUDIES & RESEARCH
A85: DR---MISC RECEIPTS
A86: DR---MISC RECEIPTS (DEVLOPMENT , RESEARCH)
A87: ENGINEERING CELL
A88: Environment Sustainability Management (ESM)Cell
A89: ESTABLISHMENT BRANCH
A90: EXAMINATION FEE
A91: EXTERNAL RECEIPTS
A92: Foreign Students Cell
A93: GENERAL ADMINISTRATION BRANCH
A94: GENERAL BRANCH---FACULTY HOUSE
A95: GENERAL BRANCH---SANITATION BRANCH
A96: GENERAL BRANCH---UNIVERSITY CANTEEN
A97: GIRLS HOSTEL - X
A98: GIRLS HOSTEL NO-I
A99: GIRLS HOSTEL NO-II
A100: GIRLS HOSTEL NO-III
A101: GIRLS HOSTEL NO-IV
A102: GIRLS HOSTEL NO-V
A103: GIRLS HOSTEL NO-VI
A104: GIRLS HOSTEL NO-VII
A105: GIRLS HOSTEL NO-VIII
A106: HOSTEL RECEIPTS
A107: Human Ethics Committee
A108: IMSAR
A109: INSTITUE OF MANAGEMENT STUDIES & RESEARCH
A110: Institute Innovative Council
A111: INTERNAL QUALITY ASSURANCE CELL (IQAC)
A112: IPR Cell
A113: LANDSCAPING & HORTICULTURE
A114: LEGAL CELL
A115: LOAN & ADVANCES
A116: LUMPSUM PROVISION ON ACCOUNT OF DA/ ARREARS OF REVISION OF PAY SCALE/ ACP ETC.
A117: MAHARISHI BALMIKI CHAIR
A118: MAHARISHI DAYANAND CHAIR
A119: Maharshi dayanand University Faculty Development Centre (MDUFDC)
A120: MISC.RECEIPTS
A121: OFFICE OF FINANCE OFFICER AND ACCOUNTS BRANCH
A122: OTHER FEES & FINES
A123: PANDIT DEEN DAYAL UPADHAYAY RESEARCH CHAIR
A124: PLAN---Construction at Landscaping & Horticulture
A125: PLAN---Construction at University Campus
A126: PROCTOR OFFICE
A127: Professional Consultancy Cell
A128: PROVOST (BOYS)
A129: PROVOST (GIRLS)
A130: PT. JAWAHAR LAL NEHRU CHAIR
A131: PUBLIC INFORMATION OFFICE (PIO)
A132: PUBLIC RELATIONS OFFICE
A133: PUBLICATION CELL
A134: PURCHASE & STORES BRANCH
A135: RASHTRIYA UCCHTAR SHIKSHA ABHIYAN (RUSA)
A136: RE-EVALUATION & ENTRANCE EXAMINATIONCELL
A137: REGISTRAR'S OFFICE
A138: REGISTRATION & SCHOLARSHIP BRANCH
A139: Research and Development
A140: RESULT-I BRANCH
A141: RESULT-II BRANCH
A142: SANT KABIR CHAIR
A143: SECRECY BRANCH
A144: SFS--- University Institute of Eng. & Tech.
A145: SFS---DEPARTMENT OF ENG & FOREIGN
A146: SFS---DEPARTMENT OF ENGLISH & FOREIGN LANG.
A147: SFS---DEPARTMENT OF MATHEMATICS
A148: SFS---DEPARTMENT OF MATHS
A149: SFS---DEPARTMENT OF PHYSICAL EDU.
A150: SFS---DEPARTMENT PHYSICAL EDUCATION
A151: SFS---INSTITUTE OF HOTEL & TOURISM MGT
A152: SFS---INSTT.OF HOTEL & TOURISM MGT.
A153: SFS---MISC.EXPENDITURE
A154: SFS---MISC.RECEIPTS
A155: SFS---UIET
A156: SIR CHHOTU RAM CHAIR
A157: SPECIAL CELL FOR SC/ST
A158: SPORTS OFFICE
A159: STUDENT'S UNION OFFICE
A160: SURYA KAVI PT.LAKHMI CHAND JI CHAIR
A161: TRANSPORT OFFICE
A162: TUITION FEES & FINES
A163: UNIVERSITY CAMPUS SCHOOL
A164: UNIVERSITY CENTRE FOR COMPETITIVE EXAMINATIONS
A165: UNIVERSITY HEALTH CENTRE
A166: UNIVERSITY INDUSTRY LIAISION CELL
A167: UNIVERSITY INSTITUTE OF PUBLIC HEALTH
A168: UNIVERSITY LIBRARY
A169: UNIVERSITY OUT REACH PROGRAMME
A170: UNIVERSITY PRESS
A171: VICE CHANCELLOR'S OFFICE
A172: WATCH & WARD OFFICE
A173: Unknown 01
A174: UGC, CSIR & Other Funding Agencies/Schemes
A175: UGC, CSIR & Other Funding Agencies/Schemes
A176: UGC, CSIR & Other Funding Agencies/Schemes
A177: UGC, CSIR & Other Funding Agencies/Schemes
A178: UGC, CSIR & Other Funding Agencies/Schemes
A179: UGC, CSIR & Other Funding Agencies/Schemes
A180: UGC, CSIR & Other Funding Agencies/Schemes
A181: Research Projects - CSIR/ICSSR & Other Funding Agencies
A182: Scholarships, Stipends & Prizes
A183: Scholarships, Stipends & Prizes
A184: Internal Receipts Development Fee
A185: Internal Receipts Development Fee
A186: External Receipts
A187: UGC, CSIR & Other Funding Agencies/Schemes - Expenditure
A188: UGC, CSIR & Other Funding Agencies/Schemes - Expenditure
A189: UGC, CSIR & Other Funding Agencies/Schemes - Expenditure
A190: UGC, CSIR & Other Funding Agencies/Schemes - Expenditure
A191: UGC, CSIR & Other Funding Agencies/Schemes - Expenditure
A192: UGC, CSIR & Other Funding Agencies/Schemes - Expenditure
A193: UGC, CSIR & Other Funding Agencies/Schemes - Expenditure
A194: UGC, CSIR & Other Funding Agencies/Schemes - Expenditure
A195: Scholarships, Stipends & Prizes - Expenditure
A196: Scholarships, Stipends & Prizes - Expenditure

Sheet Emp. No. (hidden)
A1: Employee No. | B1: Name
A2: 2 | B2: SH. N. C. JAIN
A3: 3 | B3: SH. LABH SINGH
A4: 4 | B4: SH. HAWA SINGH SHARMA
A5: 5 | B5: S K MADAN
A6: 6 | B6: SH. PRIKSHAT KUMAR SAXENA
A7: 8 | B7: RAJ SINGH MALIK
A8: 9 | B8: S P MAGOO
A9: 11 | B9: HARBANS LAL
A10: 12 | B10: KALUP SINGH
A11: 13 | B11: S K BHATNAGAR
A12: 15 | B12: SANTOSH ARORA
A13: 16 | B13: MEENA
A14: 17 | B14: NEELAM SHARMA
A15: 18 | B15: SUMITRA DEVI
A16: 19 | B16: DARSHANA
A17: 20 | B17: JAI DEVI
A18: 21 | B18: KANTA RANI
A19: 22 | B19: MADAN LAL BATRA
A20: 24 | B20: SARLA VIRMANI
A21: 25 | B21: CHANDER KANTA ARORA
A22: 26 | B22: SH. MANJEET S/O LATE SH.VED PARKASH
A23: 27 | B23: OM PARKASH
A24: 29 | B24: BALBIR SINGH
A25: 30 | B25: DILBAG SINGH
A26: 31 | B26: RAM KUMAR
A27: 32 | B27: VIJAY PAL
A28: 34 | B28: SC DUTT
A29: 35 | B29: VIPIN BHARDWAJ
A30: 38 | B30: SMT.BIMLA CHAUDHARY
A31: 39 | B31: SH. SUDARSHAN KUMAR SHARMA
A32: 40 | B32: SURENDER GUGLANI
A33: 41 | B33: NAND LAL
A34: 42 | B34: R N GAUR
A35: 43 | B35: JAI PARKASH
A36: 44 | B36: BHARPAI DEVI
A37: 45 | B37: KAMLESH BHATIA
A38: 46 | B38: KAMLESH RANI
A39: 47 | B39: RADHEY SHAM
A40: 48 | B40: SMT.PORMILA CHOPRA
A41: 50 | B41: SUMAN
A42: 51 | B42: JASBIR SINGH
A43: 53 | B43: MANOJ BADHWAR
A44: 54 | B44: KANTA CHHIKARA
A45: 56 | B45: TOSHI RANI
A46: 57 | B46: SHARDA TULI
A47: 58 | B47: ASHOK NIJHAWAN
A48: 59 | B48: SMT. KALASO DEVI W/O LATE SH.CHANDER HASS
A49: 60 | B49: LAXMI NARAIN SHARMA
A50: 61 | B50: UDAY SINGH
A51: 62 | B51: ANILA RANI
A52: 64 | B52: SH. O.P. GOGIA
A53: 65 | B53: SH. S.P. KHATTER
A54: 66 | B54: SHAKUNTLA DEVI
A55: 67 | B55: AJIT SINGH NANDAL
A56: 68 | B56: ASHOK MALHOTRA
A57: 69 | B57: MADAN GOPAL
A58: 70 | B58: SMT. SANTOSH DEVI W/O LATE SH.BALJIT SINGH DALAL
A59: 71 | B59: JAI BHAGWAN
A60: 72 | B60: SH.KARTAR SINGH
A61: 73 | B61: SANTOSH SUHAG
A62: 74 | B62: INDIRA DAHIYA
A63: 75 | B63: RAJWANTI
A64: 77 | B64: R S RANA
A65: 78 | B65: SUBASH CHANDER
A66: 79 | B66: SMT.OM PATI W/O LATE SH. JAI BHAGWAN
A67: 80 | B67: SH. SAHAJ RAM
A68: 81 | B68: BATI DEVI
A69: 84 | B69: A P JAIN
A70: 85 | B70: SH.K.S.TANWAR
A71: 86 | B71: P K BANSAL
A72: 87 | B72: NAND RAM
A73: 88 | B73: SH. DEV RAJ KAUSHIK
A74: 89 | B74: PREM SINGH
A75: 90 | B75: BHUPINDER P. CHHABRA
A76: 91 | B76: S K DANG
A77: 92 | B77: PREM KUMAR SHARMA
A78: 93 | B78: SH. KRISHAN LAL KATYAL
A79: 94 | B79: SHASHI
A80: 95 | B80: KRISHANA DEVI
A81: 97 | B81: DR.K.C.GUPTA
A82: 98 | B82: HARBANS LAL
A83: 99 | B83: ANITA SARDANA
A84: 100 | B84: NARENDER
A85: 101 | B85: SMT. RAM DEVI W/O LATE SH. SITEL PARSAD
A86: 102 | B86: PUSHPENDER SHARMA
A87: 103 | B87: VIJAY LAXMI
A88: 104 | B88: SURINDER KUMAR
A89: 105 | B89: KAMLESH JUNEJA
A90: 106 | B90: BHAGOT SINGH
A91: 108 | B91: NARINDER SINGH
A92: 116 | B92: SURAJ BHAN
A93: 117 | B93: SUNIL DAHIYA
A94: 118 | B94: SHAM PHOOL
A95: 119 | B95: KRISHAN LAL
A96: 120 | B96: NAND LAL
A97: 121 | B97: RAMESH CHANDER
A98: 122 | B98: SH.INDER SINGH
A99: 123 | B99: SARITA KAKKAR
A100: 124 | B100: JAGDISH
A101: 125 | B101: SH.K.C.DADHWAL
A102: 126 | B102: SH.H.C.WADHWA
A103: 127 | B103: ASHOK KUMAR KALIA
A104: 128 | B104: HEMANT LATA SHARMA
A105: 130 | B105: MADHU BALA
A106: 132 | B106: INDIRA KUMARI
A107: 134 | B107: M M KAUSHIK
A108: 135 | B108: SH.JAG MOHAN
A109: 136 | B109: PAWAN KANSAL
A110: 137 | B110: HAWA SINGH
A111: 138 | B111: SH.K.S.SAINI
A112: 140 | B112: SH.RAM KUMAR LATHWAL
A113: 141 | B113: SMT.SUNITA KUMARI W/O LATE SH.RAM KARAN
A114: 142 | B114: SH.JAGDISH LAL
A115: 143 | B115: RAM KISHAN
A116: 145 | B116: RAGHBIR SINGH
A117: 146 | B117: I S DAHIYA
A118: 147 | B118: K L KATARIA
A119: 148 | B119: NEELAM GULATI
A120: 150 | B120: S C BHARDWAJ
A121: 151 | B121: RAJBIR SINGH GHANGAS
A122: 152 | B122: AZAD SINGH
A123: 153 | B123: BHIM SAIN
A124: 154 | B124: R L PRUTHI
A125: 155 | B125: SATBIR SINGH BHARGAV
A126: 156 | B126: JEET KAUR
A127: 157 | B127: H S NARANG
A128: 158 | B128: BHAWAN SINGH
A129: 160 | B129: DAYA NAND
A130: 161 | B130: LALITA KUMARI MADAN
A131: 164 | B131: PREM CHAND
A132: 165 | B132: RAM CHANDER
A133: 166 | B133: RAM NIWAS
A134: 167 | B134: AMRIT LAL
A135: 168 | B135: BIKRAM KUMAR
A136: 170 | B136: JAI PAL SINGH
A137: 171 | B137: PARHLAD KUMAR
A138: 172 | B138: SURESH KUMAR
A139: 174 | B139: DR. RAVI PARKESH
A140: 175 | B140: DR.K.V.SHASTRI
A141: 176 | B141: DR.B.K.BEHRA
A142: 177 | B142: C S PUNDIR
A143: 179 | B143: P K JAIWAL
A144: 180 | B144: S K GAKHAR
A145: 181 | B145: S N MISHRA
A146: 185 | B146: SMT.BURFO DEVI W/O LATE SH.AMANT TAM
A147: 186 | B147: PREM SINGH
A148: 187 | B148: AZAD SINGH
A149: 189 | B149: RAJPAL SINGH
A150: 191 | B150: MAHABIR SINGH
A151: 193 | B151: CHAMPA DEVI
A152: 194 | B152: MOHINDER SINGH
A153: 195 | B153: OM PARKASH
A154: 198 | B154: SH.RAM LAL
A155: 200 | B155: MAHENDER SINGH
A156: 201 | B156: RAM DHAN SINGH
A157: 202 | B157: R M SAINI
A158: 204 | B158: SH. RAM BACHAN
A159: 205 | B159: DHARMVEER
A160: 208 | B160: SH.NARINDER.K.GAUTAM
A161: 209 | B161: O P SACHDEVA
A162: 210 | B162: ANAR SINGH DHULL
A163: 211 | B163: GIRDHARI LAL
A164: 212 | B164: RAMESH GHANGAS
A165: 213 | B165: VIRENDER KUMAR
A166: 214 | B166: PIARE LAL
A167: 215 | B167: SHAKTI SINGH
A168: 216 | B168: ANIL KUMAR
A169: 217 | B169: RAM PAL
A170: 218 | B170: SH.S.S.ARYA
A171: 219 | B171: SMT. SANTOSH CHAHAR W/O LATE SH. HAWA SINGH CHAHAR
A172: 221 | B172: SARITA
A173: 222 | B173: V KAUSHAL
A174: 223 | B174: ARTI MALA SHARMA
A175: 224 | B175: DINESH KUMAR
A176: 225 | B176: K S RATHEE
A177: 228 | B177: KIRAN DEEP DALAL
A178: 230 | B178: NITA
A179: 231 | B179: SMT.HARMOHENDER KAUR
A180: 232 | B180: LEELA GOGIA
A181: 233 | B181: SMT.SAVITRI DEVI W/O LATE SH. SURENDER SINGH
A182: 236 | B182: AJAY KUMAR
A183: 237 | B183: RENU BALA
A184: 238 | B184: MITHLESH KUMARI
A185: 239 | B185: SHASHI DUDEJA
A186: 240 | B186: KANTA RANI
A187: 241 | B187: NARAIN SINGH
A188: 242 | B188: NIRMLA KUMARI
A189: 243 | B189: RAJ KUMAR
A190: 244 | B190: RAM PARSHAD
A191: 245 | B191: SUMITRA DEVI
A192: 247 | B192: SULTAN SINGH
A193: 248 | B193: BANWARI LAL
A194: 250 | B194: JAGDISH PRASHAD
A195: 251 | B195: DIWAN GIRI
A196: 252 | B196: GUSHAI DUTT
A197: 253 | B197: BHAWANI PHER
A198: 254 | B198: SH.JAGDISH LAL
A199: 255 | B199: RAJ KUMAR
A200: 256 | B200: RAM KISHAN
... 2735 more rows

Sheet Sheet1 (hidden)

Sheet month (hidden)
H1: Month
B2: January | C2: 9 | D2: 2019 | E2: 1 | H2: January
B3: February | D3: 2020 | H3: February
B4: March | D4: 2021 | H4: March
B5: April | D5: 2022 | H5: April
B6: May | D6: 2023 | H6: May
B7: June | D7: 2024 | H7: June
B8: July | D8: 2025 | H8: July
B9: August | D9: 2026 | H9: August
B10: September | D10: 2027 | H10: September
B11: October | D11: 2028 | H11: October
B12: November | D12: 2029 | H12: November
B13: December | D13: 2030 | H13: December

Sheet Bill Details
A1: VENDOR - 1
A2: Sl. No. | B2: Bill No. | C2: Dated | D2: Taxable Value | E2: CGST Amount | F2: SGST Amount | G2: IGST Amount | H2: Inv. Value
A3: 1 | B3: TFS-2019-B-1658 | C3: 2019-09-17 | D3: 127667.76 | G3: 22980.24 | H3: =ROUND(IF(AND(E3<>"",F3<>""),SUM(D3:F3),(D3+G3)),0) -> 150648
A4: 2 | B4: TFS-2019-B-1659 | C4: 2019-09-17 | D4: 138489.87 | G4: 24928.13 | H4: =ROUND(IF(AND(E4<>"",F4<>""),SUM(D4:F4),(D4+G4)),0) -> 163418
A5: 3
A6: 4
A7: 5
A8: 6
A9: Total | D9: =SUM(D3:D8) -> 266157.63 | E9: =SUM(E3:E8)+SUM(F3:F8) -> 0 | G9: =SUM(G3:G8) -> 47908.37 | H9: =SUM(H3:H8) -> 314066
A11: VENDOR - 2
A12: Sl. No. | B12: Bill No. | C12: Dated | D12: Taxable Value | E12: CGST Amount | F12: SGST Amount | G12: IGST Amount | H12: Inv. Value
A13: 1 | B13: 2500 | C13: 2019-01-09 | D13: 500 | E13: =D13*0.09 -> 45 | F13: =E13 -> 45 | H13: =ROUND(IF(AND(E13<>"",F13<>""),SUM(D13:F13),(D13+G13)),0) -> 590
A14: 2 | B14: 2501 | C14: 2019-01-10 | D14: 700 | E14: =D14*0.09 -> 63 | F14: =E14 -> 63 | H14: 826
A15: 3 | B15: 2502 | C15: 2019-01-11 | D15: 600 | E15: 54 | F15: 54 | H15: 708
A16: 4 | H16: 0
A17: 5 | H17: 0
A18: 6 | H18: 0
A19: Total | D19: =SUM(D13:D18) -> 1800 | E19: =SUM(E13:E18)+SUM(F13:F18) -> 324 | G19: =SUM(G13:G18) -> 0 | H19: =SUM(H13:H18) -> 2124
A21: VENDOR - 3
A22: Sl. No. | B22: Bill No. | C22: Dated | D22: Taxable Value | E22: CGST Amount | F22: SGST Amount | G22: IGST Amount | H22: Inv. Value
A23: 1 | B23: 2500 | C23: 2019-01-09 | D23: 100 | G23: 18 | H23: =ROUND(IF(AND(E23<>"",F23<>""),SUM(D23:F23),(D23+G23)),0) -> 118
A24: 2 | B24: 2501 | C24: 2019-01-10 | D24: 200 | G24: 36 | H24: 236
A25: 3 | H25: 0
A26: 4 | H26: 0
A27: 5 | H27: 0
A28: 6 | H28: 0
A29: Total | D29: =SUM(D23:D28) -> 300 | E29: =SUM(E23:E28)+SUM(F23:F28) -> 0 | G29: =SUM(G23:G28) -> 54 | H29: =SUM(H23:H28) -> 354
